Workbook

Sheet guide
B2: Package: AC.finance.fs Available functions: 1.

Sheet FS
B2: TAB: FINANCIAL STATEMENTS IN STANDARDIZED OUTPUT FORMAT
B4: Parameter key | D4: Parameter object | E4: size | H4: Metric output object | L4: size | P4: size | V4: size
B5: =config!B13 -> metric-levels | D5: =_xll.AC.data.map(names!G9:G83, names!I9:I83, 0) -> java.util.LinkedHashMap@Thu, 15 Feb 2018 05:04:37:817..2071232410842837232 | E5: =_xll.AC.data.size(D5, 1) -> 64 | H5: metrics output | J5: =_xll.AC.finance.fs.get(calc!K8, config!B7, _xll.AC.data.map(B5:B6, D5:D6)) -> java.util.ArrayList@Thu, 15 Feb 2018 05:04:37:898..9000302027142440671 | L5: =_xll.AC.data.size(J5, 1) -> 32 | N5: =D5 -> java.util.LinkedHashMap@Thu, 15 Feb 2018 05:04:37:817..2071232410842837232 | P5: =_xll.AC.data.size(N5, 1) -> 64 | R5: =H5 -> metrics output | T5: =_xll.AC.finance.fs.get(calc!K8, config!B7, _xll.AC.data.map(B5:B6, N5:N6)) -> java.util.ArrayList@Thu, 15 Feb 2018 05:04:37:905..7501639911809676148 | V5: =_xll.AC.data.size(T5, 1) -> 20
B6: =config!B15 -> metric-names | D6: =_xll.AC.data.list_x(B12:B13, 0, 1) -> java.util.ArrayList@Thu, 15 Feb 2018 05:04:36:438..6674366794769735504 | E6: =_xll.AC.data.size(D6, 1) -> 2 | L6: =_xll.AC.data.size(J5, 2) -> 14 | N6: =_xll.AC.data.list_x(B15:B24, 0, 1) -> java.util.ArrayList@Thu, 15 Feb 2018 05:04:36:441..733514025384559712 | P6: =_xll.AC.data.size(N6, 1) -> 10 | V6: =_xll.AC.data.size(T5, 2) -> 14
C9: Balance Sheet | N9: Income Statement
B11: Metric | C11: # | D11: =_xll.AC.data._get(J5, "", 0) -> Account Name | E11: level | F11: is metric | G11: 31-Mar-13 | H11: 31-Mar-14 | I11: 31-Mar-15 | J11: 31-Mar-16 | K11: 31-Mar-17 | N11: # | O11: =_xll.AC.data._get(T5, "", 0) -> Account Name | P11: level | Q11: is metric | R11: 31-Mar-13 | S11: 31-Mar-14 | T11: 31-Mar-15 | U11: 31-Mar-16 | V11: 31-Mar-17
B12: =names!G9 -> TOT_ASSETS | C12: 1 | D12: total assets | E12: 0 | F12: 1 | G12: 1058500 | H12: 1330300 | I12: 1327500 | J12: 1554800 | K12: 1737700 | N12: 1 | O12: gross profits | P12: 0 | Q12: 1 | R12: 530300 | S12: 535700 | T12: 527600 | U12: 480100 | V12: 523500
B13: =names!G24 -> TOT_LIAB_EQTY | C13: =IF(D13="", "", C12+1) -> 2 | D13: total current assets | E13: 1 | F13: 1 | G13: 614500 | H13: 675700 | I13: 684200 | J13: 746100 | K13: 677800 | N13: =IF(O13="", "", N12+1) -> 2 | O13: total revenue | P13: 1 | Q13: 1 | R13: 2862700 | S13: 3131600 | T13: 3425400 | U13: 3357000 | V13: 3007700
C14: =IF(D14="", "", C13+1) -> 3 | D14: cash and marketable securities | E14: 2 | F14: 0 | G14: 65600 | H14: 104100 | I14: 79700 | J14: 122900 | K14: 83400 | N14: =IF(O14="", "", N13+1) -> 3 | O14: total COGS | P14: 1 | Q14: 1 | R14: -2332400 | S14: -2595900 | T14: -2897800 | U14: -2876900 | V14: -2484200
B15: =names!G29 -> GROSS_PROFITS | C15: 4 | D15: accounts receivable | E15: 2 | F15: 0 | G15: 444600 | H15: 472300 | I15: 581600 | J15: 593100 | K15: 480600 | N15: 4 | O15: total operating expense | P15: 0 | Q15: 1 | R15: -352700 | S15: -386700 | T15: -400800 | U15: -352100 | V15: -412100
B16: =names!G30 -> OPEX | C16: 5 | D16: inventory | E16: 2 | F16: 0 | G16: 11700 | H16: 7200 | I16: 4900 | J16: 10500 | K16: 22000 | N16: 5 | O16: selling general and administrative costs | P16: 1 | Q16: 0 | R16: -310000 | S16: -334400 | T16: -346200 | U16: -294200 | V16: -381300
B17: =names!G36 -> EBITDA | C17: 6 | D17: other current assets (part of WC) | E17: 2 | F17: 0 | G17: 92600 | H17: 92100 | I17: 18000 | J17: 19600 | K17: 91800 | N17: 6 | O17: other expense (income) | P17: 1 | Q17: 0 | R17: -42700 | S17: -52300 | T17: -54600 | U17: -57900 | V17: -30800
B18: =names!G37 -> D&A | C18: 7 | D18: total long-term assets | E18: 1 | F18: 1 | G18: 444000 | H18: 654600 | I18: 643300 | J18: 808700 | K18: 1059900 | N18: 7 | O18: earnings before interest, tax and D&A (EBITDA) | P18: 0 | Q18: 1 | R18: 177600 | S18: 149000 | T18: 126800 | U18: 128000 | V18: 111400
B19: =names!G34 -> EBIT | C19: 8 | D19: net fixed assets | E19: 2 | F19: 0 | G19: 16300 | H19: 19300 | I19: 18800 | J19: 159800 | K19: 253800 | N19: 8 | O19: amortization and depreciation | P19: 0 | Q19: 1 | R19: -17100 | S19: -15800 | T19: -39900 | U19: -35300 | V19: -90600
B20: =names!G31 -> TOT_INT | C20: 9 | D20: goodwill | E20: 2 | F20: 0 | G20: 217600 | H20: 216000 | I20: 218900 | J20: 238700 | K20: 252200 | N20: 9 | O20: amortization | P20: 1 | Q20: 0 | R20: -12100 | S20: -13000 | T20: -36800 | U20: -31400 | V20: -86200
B21: =names!G33 -> EBT | C21: 10 | D21: intangible assets (other than goodwill) | E21: 2 | F21: 0 | G21: 51800 | H21: 50300 | I21: 55700 | J21: 127400 | K21: 187900 | N21: 10 | O21: depreciation | P21: 1 | Q21: 0 | R21: -5000 | S21: -2800 | T21: -3100 | U21: -3900 | V21: -4400
B22: =names!G32 -> TOT_NON_OPEX | C22: 11 | D22: investments - long term | E22: 2 | F22: 0 | G22: 14000 | H22: 8000 | I22: 8400 | J22: 37000 | K22: 39700 | N22: 11 | O22: earnings before interest and tax (EBIT) | P22: 0 | Q22: 1 | R22: 160500 | S22: 133200 | T22: 86900 | U22: 92700 | V22: 20800
B23: =names!G39 -> INC_TAX | C23: 12 | D23: deferred tax asset - long-term | E23: 2 | F23: 0 | G23: 17300 | H23: 31500 | I23: 21000 | J23: 1500 | K23: 24500 | N23: 12 | O23: total interest expense | P23: 0 | Q23: 1 | R23: -59500 | S23: -55300 | T23: -64800 | U23: -66000 | V23: -73900
B24: =names!G38 -> NI | C24: 13 | D24: other long-term assets (part of CFO) | E24: 2 | F24: 0 | G24: 0 | H24: 0 | I24: 16100 | J24: 174600 | K24: 68400 | N24: 13 | O24: interest expense | P24: 1 | Q24: 0 | R24: -59500 | S24: -55300 | T24: -64800 | U24: -66000 | V24: -73900
C25: 14 | D25: other long-term assets (part of OCI) | E25: 2 | F25: 0 | G25: 127000 | H25: 329500 | I25: 304400 | J25: 69700 | K25: 233400 | N25: 14 | O25: earnings before tax (EBT) | P25: 0 | Q25: 1 | R25: 101000 | S25: 77900 | T25: 22100 | U25: 26700 | V25: -53100
C26: 15 | D26: total liabilities and equity | E26: 0 | F26: 1 | G26: 795500 | H26: 652700 | I26: 463500 | J26: 1365200 | K26: 1192800 | N26: 15 | O26: total non-operating expense | P26: 0 | Q26: 1 | R26: 286200 | S26: -19300 | T26: -560600 | U26: 179600 | V26: 722700
C27: 16 | D27: total liabilities | E27: 1 | F27: 1 | G27: 918100 | H27: 1174100 | I27: 987300 | J27: 1471400 | K27: 1355000 | N27: 16 | O27: non-operating expenses | P27: 1 | Q27: 0 | R27: 286200 | S27: -19300 | T27: -560600 | U27: 179600 | V27: 722700
C28: 17 | D28: total current liabilities | E28: 2 | F28: 1 | G28: 405400 | H28: 437800 | I28: 448300 | J28: 525800 | K28: 505600 | N28: 17 | O28: total income tax | P28: 0 | Q28: 1 | R28: -32900 | S28: 200 | T28: 25400 | U28: -45800 | V28: -86300
C29: 18 | D29: accounts payable | E29: 3 | F29: 0 | G29: 386000 | H29: 409600 | I29: 435400 | J29: 475900 | K29: 330000 | N29: 18 | O29: current income tax | P29: 1 | Q29: 0 | R29: -32900 | S29: 200 | T29: 25400 | U29: -45800 | V29: -86300
C30: 19 | D30: current portion of long-term debt | E30: 3 | F30: 0 | G30: 0 | H30: 0 | I30: 0 | J30: 47000 | K30: 159800 | N30: 19 | O30: net income | P30: 0 | Q30: 1 | R30: 354300 | S30: 58800 | T30: -513100 | U30: 160500 | V30: 583300
C31: 20 | D31: other current liabilities (part of WC) | E31: 3 | F31: 0 | G31: 19400 | H31: 28200 | I31: 12900 | J31: 2900 | K31: 15800
C32: 21 | D32: total long-term liabilities | E32: 2 | F32: 1 | G32: 512700 | H32: 736300 | I32: 539000 | J32: 945600 | K32: 849400
C33: 22 | D33: third-party debt - long-term | E33: 3 | F33: 0 | G33: 374800 | H33: 508700 | I33: 533100 | J33: 840800 | K33: 782400
C34: 23 | D34: deferred tax liability - long-term | E34: 3 | F34: 0 | G34: 1300 | H34: 1100 | I34: 1000 | J34: 29800 | K34: 30800
C35: 24 | D35: other long-term liabilities (part of CFO) | E35: 3 | F35: 0 | G35: 2100 | H35: 5500 | I35: 4900 | J35: 33900 | K35: 35500
C36: 25 | D36: other long-term liabilities (part of OCI) | E36: 3 | F36: 0 | G36: 134500 | H36: 221000 | I36: 0 | J36: 41100 | K36: 700
C37: 26 | D37: total other comprehensive income | E37: 1 | F37: 1 | G37: 52900 | H37: 53700 | I37: 44400 | J37: 65100 | K37: 46400
C38: 27 | D38: other comprehensive income | E38: 2 | F38: 0 | G38: 52900 | H38: 53700 | I38: 44400 | J38: 65100 | K38: 46400
C39: 28 | D39: total equity | E39: 1 | F39: 1 | G39: -175500 | H39: -575100 | I39: -568200 | J39: -171300 | K39: -208600
C40: 29 | D40: retained earnings | E40: 2 | F40: 0 | G40: -1121000 | H40: -1432100 | I40: -1440900 | J40: -1170800 | K40: -1279300
C41: 30 | D41: other owners equity | E41: 2 | F41: 0 | G41: 945500 | H41: 857000 | I41: 872700 | J41: 993700 | K41: 1071400
C42: 31 | D42: minority interest | E42: 2 | F42: 0 | G42: 0 | H42: 0 | I42: 0 | J42: 5800 | K42: -700
C54: =IF(D54="", "", C53+1) ->  | N54: =IF(O54="", "", N53+1) -> 

Sheet dca
B2: TAB: DCA METRICS AND RATIOS
B4: DCA Metrics
B6: =config!B15 -> metric-names | C6: =_xll.AC.data.list_x(B10:B14, 0, 1) -> java.util.ArrayList@Thu, 15 Feb 2018 05:04:36:401..6327396496261576006 | D6: =_xll.AC.data.size(C6, 1) -> 5
B7: metrics list | C7: =_xll.AC.finance.fs.get(calc!K8, config!B7, _xll.AC.data.map(B6:B6, C6:C6)) -> java.util.ArrayList@Thu, 15 Feb 2018 05:04:36:526..7600518256901461593 | D7: =_xll.AC.data.size(C7, 1) -> 6 | E7: =_xll.AC.data.size(C7, 2) -> 14
B9: Metric | C9: =_xll.AC.data._get(C7, "", 0) -> Account Name | D9: level | E9: is metric | F9: 31-Mar-13 | G9: 31-Mar-14 | H9: 31-Mar-15 | I9: 31-Mar-16 | J9: 31-Mar-17
B10: =names!G19 -> TOT_DEBT | C10: total debt | D10: 0 | E10: 1 | F10: 374800 | G10: 508700 | H10: 533100 | I10: 887800 | J10: 942200
B11: =names!G22 -> TOT_EQTY | C11: total equity | D11: 0 | E11: 1 | F11: -175500 | G11: -575100 | H11: -568200 | I11: -171300 | J11: -208600
B12: =names!G34 -> EBIT | C12: earnings before interest and tax (EBIT) | D12: 0 | E12: 1 | F12: 160500 | G12: 133200 | H12: 86900 | I12: 92700 | J12: 20800
B13: =names!G36 -> EBITDA | C13: earnings before interest, tax and D&A (EBITDA) | D13: 0 | E13: 1 | F13: 177600 | G13: 149000 | H13: 126800 | I13: 128000 | J13: 111400
B14: =names!G31 -> TOT_INT | C14: total interest expense | D14: 0 | E14: 1 | F14: -59500 | G14: -55300 | H14: -64800 | I14: -66000 | J14: -73900
B17: DCA Ratios
B19: =config!B16 -> ratio-names | C19: =_xll.AC.data.list_x(B23:B26, 0, 1) -> java.util.ArrayList@Thu, 15 Feb 2018 05:04:36:442..8832695662314558461 | D19: =_xll.AC.data.size(C19, 1) -> 4
C20: =_xll.AC.finance.fs.get(calc!K8, config!B8, _xll.AC.data.map(B19:B19, C19:C19)) -> java.util.ArrayList@Thu, 15 Feb 2018 05:04:36:520..736281471537571623 | D20: =_xll.AC.data.size(C20, 1) -> 5 | E20: =_xll.AC.data.size(C20, 2) -> 14
B22: Ratio | C22: =_xll.AC.data._get(C20, "", 0) -> Account Name | D22: level | E22: format | F22: 31-Mar-13 | G22: 31-Mar-14 | H22: 31-Mar-15 | I22: 31-Mar-16 | J22: 31-Mar-17
B23: =names!M9 -> DEBT/EBITDA | C23: Debt to EBITDA | D23: 0 | E23: x.x | F23: 2.11036036 | G23: 3.41409396 | H23: 4.204258675 | I23: 6.9359375 | J23: 8.457809695
B24: =names!M10 -> DEBT/EQTY | C24: Debt to Equity | D24: 0 | E24: x.x | F24: -2.135612536 | G24: -0.8845418188 | H24: -0.9382259768 | I24: -5.182720374 | J24: -4.516778523
B25: =names!M11 -> EBIT/INT_EXP | C25: EBIT to Interest Expense | D25: 0 | E25: x.x | F25: 2.697478992 | G25: 2.408679928 | H25: 1.341049383 | I25: 1.404545455 | J25: 0.2814614344
B26: =names!M13 -> EBITDA/INT_EXP | C26: EBITDA to Interest Expense | D26: 0 | E26: x.x | F26: 2.98487395 | G26: 2.694394213 | H26: 1.956790123 | I26: 1.939393939 | J26: 1.50744249

Sheet cra
B2: TAB: CREDIT RATING ANALYSIS
B4: Based on Moody's Methodology: | E4: =_xll.AC.finance.cra.get(calc!K6, config!B25) -> Distribution and Supply Chain Service Industry, 11 Dec 2015
B6: Qualitative overlay | I6: Consensus credit rating
B8: `# | C8: Factor | D8: Weight | E8: Adjusted weight | F8: Rating | I8: Parameter | N8: Weight | O8: Adjusted weight | P8: Credit score | Q8: Credit rating
B9: 1 | C9: =_xll.AC.finance.cra.get(calc!K6, config!B26) -> Business Profile | D9: 0.15 | E9: 0.15 | F9: Ba | I9: Credit rating based on quantitative metric grid | N9: =_xll.AC.finance.cra.get(calc!K11, config!B28) -> 0.7 | O9: 0.7 | P9: 14.4047619 | Q9: B1
B10: =IF(C10="", "", B9+1) -> 2 | C10: Financial Policy | D10: 0.15 | E10: 0.15 | F10: Ba | I10: Credit rating based on qualitative factors | N10: 0.3 | O10: 0.3 | P10: 12 | Q10: Ba2
B11: =IF(C11="", "", B10+1) ->  | I11: Consensus credit rating | N11: 1 | O11: 1 | P11: 13.68333333 | Q11: B1
B14: Quantitative metric grid
D16: Period-averaging scenarios | F16: ="FY" & YEAR(OFFSET($M$16, 0, F17)) & " - " & CHAR(10) &YEAR(OFFSET($M$16, 0, F18)) -> FY2013 - 2015 | G16: ="FY" & YEAR(OFFSET($M$16, 0, G17)) & " - " & CHAR(10) &YEAR(OFFSET($M$16, 0, G18)) -> FY2013 - 2016 | H16: FY2013 - 2017 | I16: FY2014 - 2015 | J16: FY2014 - 2016 | K16: FY2014 - 2017 | M16: Dates | N16: =model!E9 -> 2013-03-31 | O16: =model!F9 -> 2014-03-31 | P16: =model!G9 -> 2015-03-31 | Q16: =model!H9 -> 2016-03-31 | R16: =model!I9 -> 2017-03-31
D17: First period | F17: 1 | G17: 1 | H17: 1 | I17: 2 | J17: 2 | K17: 2 | N17: 1 | O17: =N17+1 -> 2 | P17: =O17+1 -> 3 | Q17: 4 | R17: 5
B18: Factor-specific ratings | D18: Last period | F18: 3 | G18: 4 | H18: 5 | I18: 3 | J18: 4 | K18: 5 | M18: Factor-specific scores
B20: # | C20: Factor | D20: Weight | E20: Adjusted weight | F20: =F16 -> FY2013 - 2015 | G20: =G16 -> FY2013 - 2016 | H20: FY2013 - 2017 | I20: FY2014 - 2015 | J20: FY2014 - 2016 | K20: FY2014 - 2017 | M20: =F20 -> FY2013 - 2015 | N20: =G20 -> FY2013 - 2016 | O20: FY2013 - 2017 | P20: FY2014 - 2015 | Q20: FY2014 - 2016 | R20: FY2014 - 2017
B21: 1 | C21: =_xll.AC.finance.cra.get(calc!K6, config!B27) -> REV_BLN | D21: 0.1 | E21: 0.1 | F21: =_xll.AC.finance.cra.get(calc!K11, config!B29) -> B | G21: B | H21: B | I21: B | J21: B | K21: B | M21: =_xll.AC.finance.cra.get(calc!K11, config!B30) -> 15 | N21: 15 | O21: 15 | P21: 15 | Q21: 15 | R21: 15
B22: =IF(C22="", "", B21+1) -> 2 | C22: EBITA_BLN | D22: 0.1 | E22: 0.1 | F22: B | G22: B | H22: B | I22: B | J22: B | K22: B | M22: 15 | N22: 15 | O22: 15 | P22: 15 | Q22: 15 | R22: 15
B23: =IF(C23="", "", B22+1) -> 3 | C23: OM | D23: 0.1 | E23: 0.1 | F23: B | G23: B | H23: B | I23: B | J23: B | K23: B | M23: 15 | N23: 15 | O23: 15 | P23: 15 | Q23: 15 | R23: 15
B24: 4 | C24: ROC | D24: 0.05 | E24: 0.05 | F24: Ca | G24: B | H24: Aa | I24: Aaa | J24: Ca | K24: Baa | M24: 20 | N24: 15 | O24: 3 | P24: 1 | Q24: 20 | R24: 9
B25: 5 | C25: DEBT/EBITDA | D25: 0.1 | E25: 0.1 | F25: Ba | G25: Ba | H25: B | I25: Ba | J25: B | K25: B | M25: 12 | N25: 12 | O25: 15 | P25: 12 | Q25: 15 | R25: 15
B26: 6 | C26: EBITA/INT_EXP | D26: 0.15 | E26: 0.15 | F26: B | G26: B | H26: B | I26: B | J26: B | K26: B | M26: 15 | N26: 15 | O26: 15 | P26: 15 | Q26: 15 | R26: 15
B27: 7 | C27: RCF/DEBT | D27: 0.1 | E27: 0.1 | F27: B | G27: Ba | H27: Baa | I27: Ca | J27: Ca | K27: Baa | M27: 15 | N27: 12 | O27: 9 | P27: 20 | Q27: 20 | R27: 9
B28: Consensus rating / score before qualitative overlay | F28: =_xll.AC.finance.cra.get(calc!K11, config!B31) -> B2 | G28: B1 | H28: Ba3 | I28: B1 | J28: B3 | K28: B1 | M28: =_xll.AC.finance.cra.get(calc!K11, config!B32) -> 14.92857143 | N28: 14.14285714 | O28: 13.28571429 | P28: 14.28571429 | Q28: 16.07142857 | R28: 13.71428571
B29: Consensus rating / score after qualitative overlay | F29: B1 | G29: Ba3 | H29: Ba3 | I29: B1 | J29: B2 | K29: Ba3 | M29: 14.05 | N29: 13.5 | O29: 12.9 | P29: 13.6 | Q29: 14.85 | R29: 13.2
B31: Matching ratios to grid values | M31: Quantitatve metric grid
B33: =B20 -> # | C33: Factor | D33: Weight | E33: Adjusted weight | F33: FY2013 - 2015 | G33: FY2013 - 2016 | H33: FY2013 - 2017 | I33: FY2014 - 2015 | J33: FY2014 - 2016 | K33: FY2014 - 2017 | M33: =_xll.AC.finance.cra.get(calc!K11, config!B33) -> compare | N33: format | O33: Aaa | P33: Aa | Q33: A | R33: Baa | S33: Ba | T33: B | U33: Caa | V33: Ca
B34: 1 | C34: =_xll.AC.finance.cra.get(calc!K6, config!B27) -> REV_BLN | D34: 0.1 | E34: 0.1 | F34: =_xll.AC.finance.cra.get(calc!K11, config!B34) -> [5, 2] | G34: [5, 2] | H34: [5, 2] | I34: [5, 2] | J34: [5, 2] | K34: [5, 2] | M34: >= | N34: x.x | O34: 160 | P34: 85 | Q34: 35 | R34: 15 | S34: 5 | T34: 2 | U34: 0.5
B35: =IF(C35="", "", B34+1) -> 2 | C35: EBITA_BLN | D35: 0.1 | E35: 0.1 | F35: [0.4, 0.1] | G35: [0.4, 0.1] | H35: [0.4, 0.1] | I35: [0.4, 0.1] | J35: [0.4, 0.1] | K35: [0.4, 0.1] | M35: >= | N35: x.x | O35: 8 | P35: 4 | Q35: 2 | R35: 0.75 | S35: 0.4 | T35: 0.05 | U35: 0
B36: 3 | C36: OM | D36: 0.1 | E36: 0.1 | F36: [5%, 2%] | G36: [5%, 2%] | H36: [5%, 2%] | I36: [5%, 2%] | J36: [5%, 2%] | K36: [5%, 2%] | M36: >= | N36: % | O36: 0.4 | P36: 0.3 | Q36: 0.2 | R36: 0.1 | S36: 0.05 | T36: 0.02 | U36: 0.005
B37: 4 | C37: ROC | D37: 0.05 | E37: 0.05 | F37: [1%, ---] | G37: [7.5%, 2.5%] | H37: [50%, 35%] | I37: [---, 50%] | J37: [1%, ---] | K37: [25%, 15%] | M37: >= | N37: % | O37: 0.5 | P37: 0.35 | Q37: 0.25 | R37: 0.15 | S37: 0.075 | T37: 0.025 | U37: 0.01
B38: 5 | C38: DEBT/EBITDA | D38: 0.1 | E38: 0.1 | F38: [3, 4.5] | G38: [3, 4.5] | H38: [4.5, 6.5] | I38: [3, 4.5] | J38: [4.5, 6.5] | K38: [4.5, 6.5] | M38: <= | N38: x.x | O38: 0.5 | P38: 1 | Q38: 2 | R38: 3 | S38: 4.5 | T38: 6.5 | U38: 9
B39: 6 | C39: EBITA/INT_EXP | D39: 0.15 | E39: 0.15 | F39: [2.5, 1.5] | G39: [2.5, 1.5] | H39: [2.5, 1.5] | I39: [2.5, 1.5] | J39: [2.5, 1.5] | K39: [2.5, 1.5] | M39: >= | N39: x.x | O39: 25 | P39: 15 | Q39: 10 | R39: 5 | S39: 2.5 | T39: 1.5 | U39: 0.75
B40: 7 | C40: RCF/DEBT | D40: 0.1 | E40: 0.1 | F40: [12.5%, 5%] | G40: [22.5%, 12.5%] | H40: [35%, 22.5%] | I40: [0%, ---] | J40: [0%, ---] | K40: [35%, 22.5%] | M40: >= | N40: % | O40: 0.7 | P40: 0.5 | Q40: 0.35 | R40: 0.225 | S40: 0.125 | T40: 0.05 | U40: 0
B42: Period-specific average ratios | M42: Year-specific average ratios
B44: =B20 -> # | C44: Factor | D44: Weight | E44: Adjusted weight | F44: FY2013 - 2015 | G44: FY2013 - 2016 | H44: FY2013 - 2017 | I44: FY2014 - 2015 | J44: FY2014 - 2016 | K44: FY2014 - 2017 | M44: =IF(N16="", "", N16) -> 2013-03-31 | N44: 2014-03-31 | O44: 2015-03-31 | P44: 2016-03-31 | Q44: 2017-03-31
B45: 1 | C45: =_xll.AC.finance.cra.get(calc!K6, config!B27) -> REV_BLN | D45: 0.1 | E45: 0.1 | F45: =_xll.AC.finance.cra.get(calc!K11, config!B36) -> 3.1399 | G45: 3.194175 | H45: 3.15688 | I45: 3.2785 | J45: 3.304666667 | K45: 3.230425 | M45: =_xll.AC.finance.cra.get(calc!K11, config!B35) -> 2.8627 | N45: 3.1316 | O45: 3.4254 | P45: 3.357 | Q45: 3.0077
B46: =IF(C46="", "", B45+1) -> 2 | C46: EBITA_BLN | D46: 0.1 | E46: 0.1 | F46: 0.1475 | G46: 0.14165 | H46: 0.13472 | I46: 0.13495 | J46: 0.1313333333 | K46: 0.12525 | M46: 0.1726 | N46: 0.1462 | O46: 0.1237 | P46: 0.1241 | Q46: 0.107
B47: =IF(C47="", "", B46+1) -> 3 | C47: OM | D47: 0.1 | E47: 0.1 | F47: 0.0404046838 | G47: 0.03704399415 | H47: 0.03130305872 | I47: 0.03356718011 | J47: 0.03155134154 | K47: 0.02581703646 | M47: 0.05606595172 | N47: 0.04253416784 | O47: 0.02536929994 | P47: 0.02761394102 | Q47: 0.006915583336
B48: 4 | C48: ROC | D48: 0.05 | E48: 0.05 | F48: -1.022494888 | G48: 0.07429694216 | H48: 0.415918341 | I48: 4.475862069 | J48: -0.4777235772 | K48: 0.2146670621 | M48: 1.777722027 | N48: -0.8855421687 | O48: 14.61823362 | P48: 0.2240055827 | Q48: 0.7951199564
B49: 5 | C49: DEBT/EBITDA | D49: 0.1 | E49: 0.1 | F49: 3.124393472 | G49: 3.963536292 | H49: 4.686200924 | I49: 3.777374909 | J49: 4.778603269 | K49: 5.574145963 | M49: 2.11036036 | N49: 3.41409396 | O49: 4.204258675 | P49: 6.9359375 | Q49: 8.457809695
B50: 6 | C50: EBITA/INT_EXP | D50: 0.15 | E50: 0.15 | F50: 2.463808463 | G50: 2.307003257 | H50: 2.10829421 | I50: 2.247293922 | J50: 2.117141322 | K50: 1.926923077 | M50: 2.900840336 | N50: 2.643761302 | O50: 1.908950617 | P50: 1.88030303 | Q50: 1.447902571
B51: 7 | C51: RCF/DEBT | D51: 0.1 | E51: 0.1 | F51: 0.08095722152 | G51: 0.1573615692 | H51: 0.337246658 | I51: -0.2915348435 | J51: -0.02890806385 | K51: 0.2355665436 | M51: 1.116342049 | N51: 0.2325280126 | O51: -0.79161133 | P51: 0.2792746114 | Q51: 0.7772033539

Sheet ratios<
B2: TAB: FINANCIAL STATEMENT RATIOS
B4: Parameter key | D4: Parameter object | G4: size | H4: Metric output object
B5: =config!B13 -> metric-levels | D5: =_xll.AC.data.map(names!G9:G80, names!J9:J80) -> java.util.LinkedHashMap@Thu, 15 Feb 2018 05:04:36:478..5876697257220149224 | G5: =_xll.AC.data.size(D5, 1) -> 61 | H5: ratios output | J5: =_xll.AC.finance.fs.get(calc!K8, config!B8, _xll.AC.data.map(B5:B7, D5:D7)) -> java.util.ArrayList@Thu, 15 Feb 2018 05:04:36:524..8206217447685413074 | L5: =_xll.AC.data.size(J5, 1) -> 70
B6: =config!B14 -> ratio-levels | D6: =_xll.AC.data.map(names!M9:M55, names!N9:N55) -> java.util.LinkedHashMap@Thu, 15 Feb 2018 05:04:36:466..8809742407094261855 | G6: =_xll.AC.data.size(D6, 1) -> 39 | L6: =_xll.AC.data.size(J5, 2) -> 14
B7: =config!B16 -> ratio-names | D7: =_xll.AC.data.list_x(B12:B18, 0, 1) -> java.util.ArrayList@Thu, 15 Feb 2018 05:04:36:477..8046283278341980256 | G7: =_xll.AC.data.size(D7, 1) -> 7
G9: Year-specific ratios | L9: Period-specific average ratios
B11: Ratios list | C11: # | D11: =_xll.AC.data._get(J5, "", 0) -> Account Name | E11: level | F11: format | G11: 31-Mar-13 | H11: 31-Mar-14 | I11: 31-Mar-15 | J11: 31-Mar-16 | K11: 31-Mar-17 | L11: FY2013 - 2015 | M11: FY2013 - 2016 | N11: FY2013 - 2017 | O11: FY2014 - 2015 | P11: FY2014 - 2016 | Q11: FY2014 - 2017
B12: =cra!C34 -> REV_BLN | C12: 1 | D12: Revenue (in billions) | E12: 0 | F12: x.x | G12: 2.8627 | H12: 3.1316 | I12: 3.4254 | J12: 3.357 | K12: 3.0077 | L12: 3.1399 | M12: 3.194175 | N12: 3.15688 | O12: 3.2785 | P12: 3.304666667 | Q12: 3.230425
B13: =cra!C35 -> EBITA_BLN | C13: =IF(D13="", "", C12+1) -> 2 | D13: total revenue | E13: 1 | F13: 1 | G13: 2862700 | H13: 3131600 | I13: 3425400 | J13: 3357000 | K13: 3007700 | L13: 3139900 | M13: 3194175 | N13: 3156880 | O13: 3278500 | P13: 3304666.667 | Q13: 3230425
B14: =cra!C36 -> OM | C14: =IF(D14="", "", C13+1) -> 3 | D14: revenues | E14: 2 | F14: 0 | G14: 2862700 | H14: 3131600 | I14: 3425400 | J14: 3357000 | K14: 3007700 | L14: 3139900 | M14: 3194175 | N14: 3156880 | O14: 3278500 | P14: 3304666.667 | Q14: 3230425
B15: =cra!C37 -> ROC | C15: 4 | D15: constant | E15: 1 | F15: 1 | G15: 1000000 | H15: 1000000 | I15: 1000000 | J15: 1000000 | K15: 1000000 | L15: 1000000 | M15: 1000000 | N15: 1000000 | O15: 1000000 | P15: 1000000 | Q15: 1000000
B16: =cra!C38 -> DEBT/EBITDA | C16: 5 | D16: EBITA (in billions) | E16: 0 | F16: x.x | G16: 0.1726 | H16: 0.1462 | I16: 0.1237 | J16: 0.1241 | K16: 0.107 | L16: 0.1475 | M16: 0.14165 | N16: 0.13472 | O16: 0.13495 | P16: 0.1313333333 | Q16: 0.12525
B17: =cra!C39 -> EBITA/INT_EXP | C17: 6 | D17: earnings before interest, tax and amortization (EBITA) | E17: 1 | F17: 1 | G17: 172600 | H17: 146200 | I17: 123700 | J17: 124100 | K17: 107000 | L17: 147500 | M17: 141650 | N17: 134720 | O17: 134950 | P17: 131333.3333 | Q17: 125250
B18: =cra!C40 -> RCF/DEBT | C18: 7 | D18: earnings before interest and tax (EBIT) | E18: 2 | F18: 1 | G18: 160500 | H18: 133200 | I18: 86900 | J18: 92700 | K18: 20800 | L18: 126866.6667 | M18: 118325 | N18: 98820 | O18: 110050 | P18: 104266.6667 | Q18: 83400
C19: 8 | D19: earnings before interest, tax and D&A (EBITDA) | E19: 3 | F19: 1 | G19: 177600 | H19: 149000 | I19: 126800 | J19: 128000 | K19: 111400 | L19: 151133.3333 | M19: 145350 | N19: 138560 | O19: 137900 | P19: 134600 | Q19: 128800
C20: 9 | D20: amortization and depreciation | E20: 3 | F20: 1 | G20: -17100 | H20: -15800 | I20: -39900 | J20: -35300 | K20: -90600 | L20: -24266.66667 | M20: -27025 | N20: -39740 | O20: -27850 | P20: -30333.33333 | Q20: -45400
C21: 10 | D21: amortization | E21: 2 | F21: 0 | G21: -12100 | H21: -13000 | I21: -36800 | J21: -31400 | K21: -86200 | L21: -20633.33333 | M21: -23325 | N21: -35900 | O21: -24900 | P21: -27066.66667 | Q21: -41850
C22: 11 | D22: constant | E22: 1 | F22: 1 | G22: 1000000 | H22: 1000000 | I22: 1000000 | J22: 1000000 | K22: 1000000 | L22: 1000000 | M22: 1000000 | N22: 1000000 | O22: 1000000 | P22: 1000000 | Q22: 1000000
C23: 12 | D23: Operating Margin | E23: 0 | F23: % | G23: 0.05606595172 | H23: 0.04253416784 | I23: 0.02536929994 | J23: 0.02761394102 | K23: 0.006915583336 | L23: 0.0404046838 | M23: 0.03704399415 | N23: 0.03130305872 | O23: 0.03356718011 | P23: 0.03155134154 | Q23: 0.02581703646
C24: 13 | D24: earnings before interest and tax (EBIT) | E24: 1 | F24: 1 | G24: 160500 | H24: 133200 | I24: 86900 | J24: 92700 | K24: 20800 | L24: 126866.6667 | M24: 118325 | N24: 98820 | O24: 110050 | P24: 104266.6667 | Q24: 83400
C25: 14 | D25: earnings before interest, tax and D&A (EBITDA) | E25: 2 | F25: 1 | G25: 177600 | H25: 149000 | I25: 126800 | J25: 128000 | K25: 111400 | L25: 151133.3333 | M25: 145350 | N25: 138560 | O25: 137900 | P25: 134600 | Q25: 128800
C26: 15 | D26: gross profits | E26: 3 | F26: 1 | G26: 530300 | H26: 535700 | I26: 527600 | J26: 480100 | K26: 523500 | L26: 531200 | M26: 518425 | N26: 519440 | O26: 531650 | P26: 514466.6667 | Q26: 516725
C27: 16 | D27: total operating expense | E27: 3 | F27: 1 | G27: -352700 | H27: -386700 | I27: -400800 | J27: -352100 | K27: -412100 | L27: -380066.6667 | M27: -373075 | N27: -380880 | O27: -393750 | P27: -379866.6667 | Q27: -387925
C28: 17 | D28: amortization and depreciation | E28: 2 | F28: 1 | G28: -17100 | H28: -15800 | I28: -39900 | J28: -35300 | K28: -90600 | L28: -24266.66667 | M28: -27025 | N28: -39740 | O28: -27850 | P28: -30333.33333 | Q28: -45400
C29: 18 | D29: amortization | E29: 3 | F29: 0 | G29: -12100 | H29: -13000 | I29: -36800 | J29: -31400 | K29: -86200 | L29: -20633.33333 | M29: -23325 | N29: -35900 | O29: -24900 | P29: -27066.66667 | Q29: -41850
C30: 19 | D30: depreciation | E30: 3 | F30: 0 | G30: -5000 | H30: -2800 | I30: -3100 | J30: -3900 | K30: -4400 | L30: -3633.333333 | M30: -3700 | N30: -3840 | O30: -2950 | P30: -3266.666667 | Q30: -3550
C31: 20 | D31: total revenue | E31: 1 | F31: 1 | G31: 2862700 | H31: 3131600 | I31: 3425400 | J31: 3357000 | K31: 3007700 | L31: 3139900 | M31: 3194175 | N31: 3156880 | O31: 3278500 | P31: 3304666.667 | Q31: 3230425
C32: 21 | D32: revenues | E32: 2 | F32: 0 | G32: 2862700 | H32: 3131600 | I32: 3425400 | J32: 3357000 | K32: 3007700 | L32: 3139900 | M32: 3194175 | N32: 3156880 | O32: 3278500 | P32: 3304666.667 | Q32: 3230425
C33: 22 | D33: Return on Capital | E33: 0 | F33: % | G33: 1.777722027 | H33: -0.8855421687 | I33: 14.61823362 | J33: 0.2240055827 | K33: 0.7951199564 | L33: -1.022494888 | M33: 0.07429694216 | N33: 0.415918341 | O33: 4.475862069 | P33: -0.4777235772 | Q33: 0.2146670621
C34: 23 | D34: net income | E34: 1 | F34: 1 | G34: 354300 | H34: 58800 | I34: -513100 | J34: 160500 | K34: 583300 | L34: -33333.33333 | M34: 15125 | N34: 128760 | O34: -227150 | P34: -97933.33333 | Q34: 72375
C35: 24 | D35: earnings before tax (EBT) | E35: 2 | F35: 1 | G35: 101000 | H35: 77900 | I35: 22100 | J35: 26700 | K35: -53100 | L35: 67000 | M35: 56925 | N35: 34920 | O35: 50000 | P35: 42233.33333 | Q35: 18400
C36: 25 | D36: earnings before interest and tax (EBIT) | E36: 3 | F36: 1 | G36: 160500 | H36: 133200 | I36: 86900 | J36: 92700 | K36: 20800 | L36: 126866.6667 | M36: 118325 | N36: 98820 | O36: 110050 | P36: 104266.6667 | Q36: 83400
C37: 26 | D37: total interest expense | E37: 3 | F37: 1 | G37: -59500 | H37: -55300 | I37: -64800 | J37: -66000 | K37: -73900 | L37: -59866.66667 | M37: -61400 | N37: -63900 | O37: -60050 | P37: -62033.33333 | Q37: -65000
C38: 27 | D38: total income tax | E38: 2 | F38: 1 | G38: -32900 | H38: 200 | I38: 25400 | J38: -45800 | K38: -86300 | L38: -2433.333333 | M38: -13275 | N38: -27880 | O38: 12800 | P38: -6733.333333 | Q38: -26625
C39: 28 | D39: current income tax | E39: 3 | F39: 0 | G39: -32900 | H39: 200 | I39: 25400 | J39: -45800 | K39: -86300 | L39: -2433.333333 | M39: -13275 | N39: -27880 | O39: 12800 | P39: -6733.333333 | Q39: -26625
C40: 29 | D40: non-operating expenses | E40: 2 | F40: 0 | G40: 286200 | H40: -19300 | I40: -560600 | J40: 179600 | K40: 722700 | L40: -97900 | M40: -28525 | N40: 121720 | O40: -289950 | P40: -133433.3333 | Q40: 80600
C41: 30 | D41: total book capitalization | E41: 1 | F41: 1 | G41: 199300 | H41: -66400 | I41: -35100 | J41: 716500 | K41: 733600 | L41: 32600 | M41: 203575 | N41: 309580 | O41: -50750 | P41: 205000 | Q41: 337150
C42: 31 | D42: total debt | E42: 2 | F42: 1 | G42: 374800 | H42: 508700 | I42: 533100 | J42: 887800 | K42: 942200 | L42: 472200 | M42: 576100 | N42: 649320 | O42: 520900 | P42: 643200 | Q42: 717950
C43: 32 | D43: total short-tem debt | E43: 3 | F43: 1 | G43: 0 | H43: 0 | I43: 0 | J43: 47000 | K43: 159800 | L43: 0 | M43: 11750 | N43: 41360 | O43: 0 | P43: 15666.66667 | Q43: 51700
C44: 33 | D44: total long-tem debt | E44: 3 | F44: 1 | G44: 374800 | H44: 508700 | I44: 533100 | J44: 840800 | K44: 782400 | L44: 472200 | M44: 564350 | N44: 607960 | O44: 520900 | P44: 627533.3333 | Q44: 666250
C45: 34 | D45: total equity | E45: 2 | F45: 1 | G45: -175500 | H45: -575100 | I45: -568200 | J45: -171300 | K45: -208600 | L45: -439600 | M45: -372525 | N45: -339740 | O45: -571650 | P45: -438200 | Q45: -380800
C46: 35 | D46: retained earnings | E46: 3 | F46: 0 | G46: -1121000 | H46: -1432100 | I46: -1440900 | J46: -1170800 | K46: -1279300 | L46: -1331333.333 | M46: -1291200 | N46: -1288820 | O46: -1436500 | P46: -1347933.333 | Q46: -1330775
C47: 36 | D47: other owners equity | E47: 3 | F47: 0 | G47: 945500 | H47: 857000 | I47: 872700 | J47: 993700 | K47: 1071400 | L47: 891733.3333 | M47: 917225 | N47: 948060 | O47: 864850 | P47: 907800 | Q47: 948700
C48: 37 | D48: minority interest | E48: 3 | F48: 0 | G48: 0 | H48: 0 | I48: 0 | J48: 5800 | K48: -700 | L48: 0 | M48: 1450 | N48: 1020 | O48: 0 | P48: 1933.333333 | Q48: 1275
C49: 38 | D49: Debt to EBITDA | E49: 0 | F49: x.x | G49: 2.11036036 | H49: 3.41409396 | I49: 4.204258675 | J49: 6.9359375 | K49: 8.457809695 | L49: 3.124393472 | M49: 3.963536292 | N49: 4.686200924 | O49: 3.777374909 | P49: 4.778603269 | Q49: 5.574145963
C50: 39 | D50: total debt | E50: 1 | F50: 1 | G50: 374800 | H50: 508700 | I50: 533100 | J50: 887800 | K50: 942200 | L50: 472200 | M50: 576100 | N50: 649320 | O50: 520900 | P50: 643200 | Q50: 717950
C51: 40 | D51: total short-tem debt | E51: 2 | F51: 1 | G51: 0 | H51: 0 | I51: 0 | J51: 47000 | K51: 159800 | L51: 0 | M51: 11750 | N51: 41360 | O51: 0 | P51: 15666.66667 | Q51: 51700
C52: 41 | D52: current portion of long-term debt | E52: 3 | F52: 0 | G52: 0 | H52: 0 | I52: 0 | J52: 47000 | K52: 159800 | L52: 0 | M52: 11750 | N52: 41360 | O52: 0 | P52: 15666.66667 | Q52: 51700
C53: 42 | D53: total long-tem debt | E53: 2 | F53: 1 | G53: 374800 | H53: 508700 | I53: 533100 | J53: 840800 | K53: 782400 | L53: 472200 | M53: 564350 | N53: 607960 | O53: 520900 | P53: 627533.3333 | Q53: 666250
C54: 43 | D54: third-party debt - long-term | E54: 3 | F54: 0 | G54: 374800 | H54: 508700 | I54: 533100 | J54: 840800 | K54: 782400 | L54: 472200 | M54: 564350 | N54: 607960 | O54: 520900 | P54: 627533.3333 | Q54: 666250
C55: 44 | D55: earnings before interest, tax and D&A (EBITDA) | E55: 1 | F55: 1 | G55: 177600 | H55: 149000 | I55: 126800 | J55: 128000 | K55: 111400 | L55: 151133.3333 | M55: 145350 | N55: 138560 | O55: 137900 | P55: 134600 | Q55: 128800
C56: 45 | D56: gross profits | E56: 2 | F56: 1 | G56: 530300 | H56: 535700 | I56: 527600 | J56: 480100 | K56: 523500 | L56: 531200 | M56: 518425 | N56: 519440 | O56: 531650 | P56: 514466.6667 | Q56: 516725
C57: 46 | D57: total revenue | E57: 3 | F57: 1 | G57: 2862700 | H57: 3131600 | I57: 3425400 | J57: 3357000 | K57: 3007700 | L57: 3139900 | M57: 3194175 | N57: 3156880 | O57: 3278500 | P57: 3304666.667 | Q57: 3230425
C58: 47 | D58: total COGS | E58: 3 | F58: 1 | G58: -2332400 | H58: -2595900 | I58: -2897800 | J58: -2876900 | K58: -2484200 | L58: -2608700 | M58: -2675750 | N58: -2637440 | O58: -2746850 | P58: -2790200 | Q58: -2713700
C59: 48 | D59: total operating expense | E59: 2 | F59: 1 | G59: -352700 | H59: -386700 | I59: -400800 | J59: -352100 | K59: -412100 | L59: -380066.6667 | M59: -373075 | N59: -380880 | O59: -393750 | P59: -379866.6667 | Q59: -387925
C60: 49 | D60: selling general and administrative costs | E60: 3 | F60: 0 | G60: -310000 | H60: -334400 | I60: -346200 | J60: -294200 | K60: -381300 | L60: -330200 | M60: -321200 | N60: -333220 | O60: -340300 | P60: -324933.3333 | Q60: -339025
C61: 50 | D61: other expense (income) | E61: 3 | F61: 0 | G61: -42700 | H61: -52300 | I61: -54600 | J61: -57900 | K61: -30800 | L61: -49866.66667 | M61: -51875 | N61: -47660 | O61: -53450 | P61: -54933.33333 | Q61: -48900
C62: 51 | D62: EBITA to Interest Expense | E62: 0 | F62: x.x | G62: 2.900840336 | H62: 2.643761302 | I62: 1.908950617 | J62: 1.88030303 | K62: 1.447902571 | L62: 2.463808463 | M62: 2.307003257 | N62: 2.10829421 | O62: 2.247293922 | P62: 2.117141322 | Q62: 1.926923077
C63: 52 | D63: earnings before interest, tax and amortization (EBITA) | E63: 1 | F63: 1 | G63: 172600 | H63: 146200 | I63: 123700 | J63: 124100 | K63: 107000 | L63: 147500 | M63: 141650 | N63: 134720 | O63: 134950 | P63: 131333.3333 | Q63: 125250
C64: 53 | D64: earnings before interest and tax (EBIT) | E64: 2 | F64: 1 | G64: 160500 | H64: 133200 | I64: 86900 | J64: 92700 | K64: 20800 | L64: 126866.6667 | M64: 118325 | N64: 98820 | O64: 110050 | P64: 104266.6667 | Q64: 83400
C65: 54 | D65: earnings before interest, tax and D&A (EBITDA) | E65: 3 | F65: 1 | G65: 177600 | H65: 149000 | I65: 126800 | J65: 128000 | K65: 111400 | L65: 151133.3333 | M65: 145350 | N65: 138560 | O65: 137900 | P65: 134600 | Q65: 128800
C66: 55 | D66: amortization and depreciation | E66: 3 | F66: 1 | G66: -17100 | H66: -15800 | I66: -39900 | J66: -35300 | K66: -90600 | L66: -24266.66667 | M66: -27025 | N66: -39740 | O66: -27850 | P66: -30333.33333 | Q66: -45400
C67: 56 | D67: amortization | E67: 2 | F67: 0 | G67: -12100 | H67: -13000 | I67: -36800 | J67: -31400 | K67: -86200 | L67: -20633.33333 | M67: -23325 | N67: -35900 | O67: -24900 | P67: -27066.66667 | Q67: -41850
C68: 57 | D68: total interest expense | E68: 1 | F68: 1 | G68: -59500 | H68: -55300 | I68: -64800 | J68: -66000 | K68: -73900 | L68: -59866.66667 | M68: -61400 | N68: -63900 | O68: -60050 | P68: -62033.33333 | Q68: -65000
C69: 58 | D69: interest expense | E69: 2 | F69: 0 | G69: -59500 | H69: -55300 | I69: -64800 | J69: -66000 | K69: -73900 | L69: -59866.66667 | M69: -61400 | N69: -63900 | O69: -60050 | P69: -62033.33333 | Q69: -65000
C70: 59 | D70: RCF to Debt | E70: 0 | F70: % | G70: 1.116342049 | H70: 0.2325280126 | I70: -0.79161133 | J70: 0.2792746114 | K70: 0.7772033539 | L70: 0.08095722152 | M70: 0.1573615692 | N70: 0.337246658 | O70: -0.2915348435 | P70: -0.02890806385 | Q70: 0.2355665436
C71: 60 | D71: retained cash flows | E71: 1 | F71: 1 | G71: 418405 | H71: 118287 | I71: -422008 | J71: 247940 | K71: 732281 | L71: 38228 | M71: 90656 | N71: 218981 | O71: -151860.5 | P71: -18593.66667 | Q71: 169125
C72: 61 | D72: funds from operations | E72: 2 | F72: 1 | G72: 418405 | H72: 118287 | I72: -422008 | J72: 247940 | K72: 732281 | L72: 38228 | M72: 90656 | N72: 218981 | O72: -151860.5 | P72: -18593.66667 | Q72: 169125
C73: 62 | D73: net income | E73: 3 | F73: 1 | G73: 354300 | H73: 58800 | I73: -513100 | J73: 160500 | K73: 583300 | L73: -33333.33333 | M73: 15125 | N73: 128760 | O73: -227150 | P73: -97933.33333 | Q73: 72375
C74: 63 | D74: amortization and depreciation | E74: 3 | F74: 1 | G74: -17100 | H74: -15800 | I74: -39900 | J74: -35300 | K74: -90600 | L74: -24266.66667 | M74: -27025 | N74: -39740 | O74: -27850 | P74: -30333.33333 | Q74: -45400
C75: 64 | D75: tax-adjusted interest expense | E75: 3 | F75: 1 | G75: -47005 | H75: -43687 | I75: -51192 | J75: -52140 | K75: -58381 | L75: -47294.66667 | M75: -48506 | N75: -50481 | O75: -47439.5 | P75: -49006.33333 | Q75: -51350
C76: 65 | D76: total debt | E76: 1 | F76: 1 | G76: 374800 | H76: 508700 | I76: 533100 | J76: 887800 | K76: 942200 | L76: 472200 | M76: 576100 | N76: 649320 | O76: 520900 | P76: 643200 | Q76: 717950
C77: 66 | D77: total short-tem debt | E77: 2 | F77: 1 | G77: 0 | H77: 0 | I77: 0 | J77: 47000 | K77: 159800 | L77: 0 | M77: 11750 | N77: 41360 | O77: 0 | P77: 15666.66667 | Q77: 51700
C78: =IF(D78="", "", C77+1) -> 67 | D78: current portion of long-term debt | E78: 3 | F78: 0 | G78: 0 | H78: 0 | I78: 0 | J78: 47000 | K78: 159800 | L78: 0 | M78: 11750 | N78: 41360 | O78: 0 | P78: 15666.66667 | Q78: 51700
C79: 68 | D79: total long-tem debt | E79: 2 | F79: 1 | G79: 374800 | H79: 508700 | I79: 533100 | J79: 840800 | K79: 782400 | L79: 472200 | M79: 564350 | N79: 607960 | O79: 520900 | P79: 627533.3333 | Q79: 666250
C80: 69 | D80: third-party debt - long-term | E80: 3 | F80: 0 | G80: 374800 | H80: 508700 | I80: 533100 | J80: 840800 | K80: 782400 | L80: 472200 | M80: 564350 | N80: 607960 | O80: 520900 | P80: 627533.3333 | Q80: 666250

Sheet metrics<
B2: TAB: FINANCIAL STATEMENT METRICS
B4: Parameter key | D4: Parameter object | G4: size | H4: Metric output object | L4: size
B5: =config!B13 -> metric-levels | D5: =_xll.AC.data.map(names!G9:G80, names!H9:H80) -> java.util.LinkedHashMap@Thu, 15 Feb 2018 05:04:36:486..1698388395872754580 | G5: =_xll.AC.data.size(D5, 1) -> 61 | H5: metrics output | J5: =_xll.AC.finance.fs.get(calc!K8, config!B7, _xll.AC.data.map(B5:B6, D5:D6)) -> java.util.ArrayList@Thu, 15 Feb 2018 05:04:36:522..8432161268763603467 | L5: =_xll.AC.data.size(J5, 1) -> 22
B6: =config!B15 -> metric-names | D6: =_xll.AC.data.list_x(B11:B15, 0, 1) -> java.util.ArrayList@Thu, 15 Feb 2018 05:04:36:487..3734492626137006885 | G6: =_xll.AC.data.size(D6, 1) -> 5 | L6: =_xll.AC.data.size(J5, 2) -> 14
F8: Year-specific metrics | L8: Period-specific average metrics
B10: Metrics list | C10: # | D10: =_xll.AC.data._get(J5, "", 0) -> Account Name | E10: level | F10: is metric | G10: 31-Mar-13 | H10: 31-Mar-14 | I10: 31-Mar-15 | J10: 31-Mar-16 | K10: 31-Mar-17 | L10: FY2013 - 2015 | M10: FY2013 - 2016 | N10: FY2013 - 2017 | O10: FY2014 - 2015 | P10: FY2014 - 2016 | Q10: FY2014 - 2017
B11: =names!G36 -> EBITDA | C11: 1 | D11: earnings before interest, tax and D&A (EBITDA) | E11: 0 | F11: 1 | G11: 177600 | H11: 149000 | I11: 126800 | J11: 128000 | K11: 111400 | L11: 151133.3333 | M11: 145350 | N11: 138560 | O11: 137900 | P11: 134600 | Q11: 128800
B12: =names!G13 -> TOT_LIAB | C12: =IF(D12="", "", C11+1) -> 2 | D12: gross profits | E12: 1 | F12: 1 | G12: 530300 | H12: 535700 | I12: 527600 | J12: 480100 | K12: 523500 | L12: 531200 | M12: 518425 | N12: 519440 | O12: 531650 | P12: 514466.6667 | Q12: 516725
B13: =names!G19 -> TOT_DEBT | C13: =IF(D13="", "", C12+1) -> 3 | D13: total operating expense | E13: 1 | F13: 1 | G13: -352700 | H13: -386700 | I13: -400800 | J13: -352100 | K13: -412100 | L13: -380066.6667 | M13: -373075 | N13: -380880 | O13: -393750 | P13: -379866.6667 | Q13: -387925
B14: =names!G30 -> OPEX | C14: 4 | D14: total liabilities | E14: 0 | F14: 1 | G14: 918100 | H14: 1174100 | I14: 987300 | J14: 1471400 | K14: 1355000 | L14: 1026500 | M14: 1137725 | N14: 1181180 | O14: 1080700 | P14: 1210933.333 | Q14: 1246950
B15: =names!G34 -> EBIT | C15: 5 | D15: total current liabilities | E15: 1 | F15: 1 | G15: 405400 | H15: 437800 | I15: 448300 | J15: 525800 | K15: 505600 | L15: 430500 | M15: 454325 | N15: 464580 | O15: 443050 | P15: 470633.3333 | Q15: 479375
C16: 6 | D16: total long-term liabilities | E16: 1 | F16: 1 | G16: 512700 | H16: 736300 | I16: 539000 | J16: 945600 | K16: 849400 | L16: 596000 | M16: 683400 | N16: 716600 | O16: 637650 | P16: 740300 | Q16: 767575
C17: 7 | D17: total debt | E17: 0 | F17: 1 | G17: 374800 | H17: 508700 | I17: 533100 | J17: 887800 | K17: 942200 | L17: 472200 | M17: 576100 | N17: 649320 | O17: 520900 | P17: 643200 | Q17: 717950
C18: 8 | D18: total short-tem debt | E18: 1 | F18: 1 | G18: 0 | H18: 0 | I18: 0 | J18: 47000 | K18: 159800 | L18: 0 | M18: 11750 | N18: 41360 | O18: 0 | P18: 15666.66667 | Q18: 51700
C19: 9 | D19: current portion of long-term debt | E19: 2 | F19: 0 | G19: 0 | H19: 0 | I19: 0 | J19: 47000 | K19: 159800 | L19: 0 | M19: 11750 | N19: 41360 | O19: 0 | P19: 15666.66667 | Q19: 51700
C20: 10 | D20: total long-tem debt | E20: 1 | F20: 1 | G20: 374800 | H20: 508700 | I20: 533100 | J20: 840800 | K20: 782400 | L20: 472200 | M20: 564350 | N20: 607960 | O20: 520900 | P20: 627533.3333 | Q20: 666250
C21: 11 | D21: third-party debt - long-term | E21: 2 | F21: 0 | G21: 374800 | H21: 508700 | I21: 533100 | J21: 840800 | K21: 782400 | L21: 472200 | M21: 564350 | N21: 607960 | O21: 520900 | P21: 627533.3333 | Q21: 666250
C22: 12 | D22: total operating expense | E22: 0 | F22: 1 | G22: -352700 | H22: -386700 | I22: -400800 | J22: -352100 | K22: -412100 | L22: -380066.6667 | M22: -373075 | N22: -380880 | O22: -393750 | P22: -379866.6667 | Q22: -387925
C23: 13 | D23: selling general and administrative costs | E23: 1 | F23: 0 | G23: -310000 | H23: -334400 | I23: -346200 | J23: -294200 | K23: -381300 | L23: -330200 | M23: -321200 | N23: -333220 | O23: -340300 | P23: -324933.3333 | Q23: -339025
C24: 14 | D24: other expense (income) | E24: 1 | F24: 0 | G24: -42700 | H24: -52300 | I24: -54600 | J24: -57900 | K24: -30800 | L24: -49866.66667 | M24: -51875 | N24: -47660 | O24: -53450 | P24: -54933.33333 | Q24: -48900
C25: 15 | D25: earnings before interest and tax (EBIT) | E25: 0 | F25: 1 | G25: 160500 | H25: 133200 | I25: 86900 | J25: 92700 | K25: 20800 | L25: 126866.6667 | M25: 118325 | N25: 98820 | O25: 110050 | P25: 104266.6667 | Q25: 83400
C26: 16 | D26: earnings before interest, tax and D&A (EBITDA) | E26: 1 | F26: 1 | G26: 177600 | H26: 149000 | I26: 126800 | J26: 128000 | K26: 111400 | L26: 151133.3333 | M26: 145350 | N26: 138560 | O26: 137900 | P26: 134600 | Q26: 128800
C27: 17 | D27: gross profits | E27: 2 | F27: 1 | G27: 530300 | H27: 535700 | I27: 527600 | J27: 480100 | K27: 523500 | L27: 531200 | M27: 518425 | N27: 519440 | O27: 531650 | P27: 514466.6667 | Q27: 516725
C28: 18 | D28: total operating expense | E28: 2 | F28: 1 | G28: -352700 | H28: -386700 | I28: -400800 | J28: -352100 | K28: -412100 | L28: -380066.6667 | M28: -373075 | N28: -380880 | O28: -393750 | P28: -379866.6667 | Q28: -387925
C29: 19 | D29: amortization and depreciation | E29: 1 | F29: 1 | G29: -17100 | H29: -15800 | I29: -39900 | J29: -35300 | K29: -90600 | L29: -24266.66667 | M29: -27025 | N29: -39740 | O29: -27850 | P29: -30333.33333 | Q29: -45400
C30: 20 | D30: amortization | E30: 2 | F30: 0 | G30: -12100 | H30: -13000 | I30: -36800 | J30: -31400 | K30: -86200 | L30: -20633.33333 | M30: -23325 | N30: -35900 | O30: -24900 | P30: -27066.66667 | Q30: -41850
C31: 21 | D31: depreciation | E31: 2 | F31: 0 | G31: -5000 | H31: -2800 | I31: -3100 | J31: -3900 | K31: -4400 | L31: -3633.333333 | M31: -3700 | N31: -3840 | O31: -2950 | P31: -3266.666667 | Q31: -3550
C77: =IF(D77="", "", C76+1) -> 

Sheet accounts<
B2: TAB: FINANCIAL STATEMENTS
C4: account-levels | D4: =_xll.AC.data.map(names!C9:C76, names!D9:D76) -> java.util.LinkedHashMap@Thu, 15 Feb 2018 05:04:36:487..8718910813228316133 | H4: =_xll.AC.data.size(D4, 1) -> 54 | N4: =C4 -> account-levels | O4: =D4 -> java.util.LinkedHashMap@Thu, 15 Feb 2018 05:04:36:487..8718910813228316133 | S4: =_xll.AC.data.size(O4, 1) -> 54
C5: P&L output | D5: =_xll.AC.finance.fs.get(calc!G7, config!$B$6, _xll.AC.data.map(C4, D4)) -> java.util.ArrayList@Thu, 15 Feb 2018 05:04:36:530..7733017757578725247 | H5: =_xll.AC.data.size(D5, 1) -> 24 | I5: =_xll.AC.data.size(D5, 2) -> 8 | N5: Balance sheet output | O5: =_xll.AC.finance.fs.get(calc!G6, config!$B$6, _xll.AC.data.map(N4, O4)) -> java.util.ArrayList@Thu, 15 Feb 2018 05:04:36:488..6730781668202339257 | S5: =_xll.AC.data.size(O5, 1) -> 54 | T5: =_xll.AC.data.size(O5, 2) -> 8
B7: # | C7: =_xll.AC.data._get(D5, "", 0) -> JE: Income statement (C$'000) | D7: not balanced | E7: level | F7: 31-Mar-13 | G7: 31-Mar-14 | H7: 31-Mar-15 | I7: 31-Mar-16 | J7: 31-Mar-17 | M7: # | N7: =_xll.AC.data._get(O5, "", 0) -> JE: Balance Sheet (C$'000) | O7: not balanced | P7: level | Q7: 31-Mar-13 | R7: 31-Mar-14 | S7: 31-Mar-15 | T7: 31-Mar-16 | U7: 31-Mar-17
B8: 1 | C8: revenues | E8: 0 | F8: 2862700 | G8: 3131600 | H8: 3425400 | I8: 3357000 | J8: 3007700 | M8: 1 | N8: cash and marketable securities | P8: 0 | Q8: 65600 | R8: 104100 | S8: 79700 | T8: 122900 | U8: 83400
B9: =IF(C9="", "", B8+1) -> 2 | C9: Total Revenue | E9: 1 | F9: 2862700 | G9: 3131600 | H9: 3425400 | I9: 3357000 | J9: 3007700 | M9: =IF(N9="", "", M8+1) -> 2 | N9: Cash, Cash Equivalents and Short-Term Investments | O9: 1 | P9: 1 | Q9: 62900 | R9: 98300 | S9: 65900 | T9: 112000 | U9: 70300
B10: =IF(C10="", "", B9+1) -> 3 | C10: cost of goods sold | E10: 0 | F10: -2332400 | G10: -2595900 | H10: -2897800 | I10: -2876900 | J10: -2484200 | M10: =IF(N10="", "", M9+1) -> 3 | N10: Restricted Cash | P10: 1 | Q10: 2700 | R10: 5800 | S10: 13800 | T10: 10900 | U10: 13100
B11: 4 | C11: Cost of Revenue | E11: 1 | F11: -2332400 | G11: -2595900 | H11: -2897800 | I11: -2876900 | J11: -2484200 | M11: 4 | N11: accounts receivable | P11: 0 | Q11: 444600 | R11: 472300 | S11: 581600 | T11: 593100 | U11: 480600
B12: 5 | C12: selling general and administrative costs | E12: 0 | F12: -310000 | G12: -334400 | H12: -346200 | I12: -294200 | J12: -381300 | M12: 5 | N12: Total Receivables | O12: 1 | P12: 1 | Q12: 444600 | R12: 472300 | S12: 581600 | T12: 593100 | U12: 480600
B13: 6 | C13: Wages and Salaries | E13: 1 | F13: -4600 | G13: -4100 | H13: -6300 | I13: -1500 | J13: -11900 | M13: 6 | N13: inventory | P13: 0 | Q13: 11700 | R13: 7200 | S13: 4900 | T13: 10500 | U13: 22000
B14: 7 | C14: Selling, General and Administrative Expenses | D14: 1 | E14: 1 | F14: -305400 | G14: -330300 | H14: -339900 | I14: -292700 | J14: -369400 | M14: 7 | N14: Total Inventory | P14: 1 | Q14: 11700 | R14: 7200 | S14: 4900 | T14: 10500 | U14: 22000
B15: 8 | C15: other expense (income) | E15: 0 | F15: -42700 | G15: -52300 | H15: -54600 | I15: -57900 | J15: -30800 | M15: 8 | N15: other current assets (part of WC) | P15: 0 | Q15: 92600 | R15: 92100 | S15: 18000 | T15: 19600 | U15: 91800
B16: 9 | C16: Amortization of Securities | E16: 1 | F16: 0 | G16: 0 | H16: 0 | I16: -14200 | J16: 0 | M16: 9 | N16: Prepaid Assets | P16: 1 | Q16: 83800 | R16: 88300 | S16: 18000 | T16: 19600 | U16: 15600
B17: 10 | C17: Provision for Doubtful Accounts | E17: 1 | F17: -42700 | G17: -52300 | H17: -54600 | I17: -43700 | J17: -30800 | M17: 10 | N17: Other Current Assets | P17: 1 | Q17: 8800 | R17: 3800 | S17: 0 | T17: 0 | U17: 76200
B18: 11 | C18: Other Taxes | E18: 1 | F18: 0 | G18: 0 | H18: 0 | I18: 0 | J18: 0 | M18: 11 | N18: net fixed assets | P18: 0 | Q18: 16300 | R18: 19300 | S18: 18800 | T18: 159800 | U18: 253800
B19: 12 | C19: Other Operating Expense | E19: 1 | F19: 0 | G19: 0 | H19: 0 | I19: 0 | J19: 0 | M19: 12 | N19: Property/Plant/Equipment - Net | P19: 1 | Q19: 16300 | R19: 19300 | S19: 18800 | T19: 159800 | U19: 253800
B20: 13 | C20: interest expense | E20: 0 | F20: -59500 | G20: -55300 | H20: -64800 | I20: -66000 | J20: -73900 | M20: 13 | N20: goodwill | P20: 0 | Q20: 217600 | R20: 216000 | S20: 218900 | T20: 238700 | U20: 252200
B21: 14 | C21: Interest Expense - Non-Operating | E21: 1 | F21: -59500 | G21: -55300 | H21: -64800 | I21: -66000 | J21: -73900 | M21: 14 | N21: Goodwill | P21: 1 | Q21: 217600 | R21: 216000 | S21: 218900 | T21: 238700 | U21: 252200
B22: 15 | C22: I/C interest expense | E22: 0 | F22: 0 | G22: 0 | H22: 0 | I22: 0 | J22: 0 | M22: 15 | N22: intangible assets (other than goodwill) | P22: 0 | Q22: 51800 | R22: 50300 | S22: 55700 | T22: 127400 | U22: 187900
B23: 16 | C23: amortization | E23: 0 | F23: -12100 | G23: -13000 | H23: -36800 | I23: -31400 | J23: -86200 | M23: 16 | N23: Other Intangible Assets | P23: 1 | Q23: 51800 | R23: 50300 | S23: 55700 | T23: 127400 | U23: 187900
B24: 17 | C24: Amortization | E24: 1 | F24: -12100 | G24: -13000 | H24: -36800 | I24: -31400 | J24: -86200 | M24: 17 | N24: investments - long term | P24: 0 | Q24: 14000 | R24: 8000 | S24: 8400 | T24: 37000 | U24: 39700
B25: 18 | C25: depreciation | E25: 0 | F25: -5000 | G25: -2800 | H25: -3100 | I25: -3900 | J25: -4400 | M25: 18 | N25: Long-Term Investments | P25: 1 | Q25: 11700 | R25: 5400 | S25: 8400 | T25: 37000 | U25: 39700
B26: 19 | C26: Depreciation | E26: 1 | F26: -5000 | G26: -2800 | H26: -3100 | I26: -3900 | J26: -4400 | M26: 19 | N26: Financial Assets | P26: 1 | Q26: 2300 | R26: 2600 | S26: 0 | T26: 0 | U26: 0
B27: 20 | C27: non-operating expenses | E27: 0 | F27: 286200 | G27: -19300 | H27: -560600 | I27: 179600 | J27: 722700 | M27: 20 | N27: due from related companies - long term | P27: 0 | Q27: 0 | R27: 0 | S27: 0 | T27: 0 | U27: 0
B28: 21 | C28: Other Income (Expense) | E28: 1 | F28: 286200 | G28: -19300 | H28: -560600 | I28: 179600 | J28: 722700 | M28: 21 | N28: deferred tax asset - long-term | P28: 0 | Q28: 17300 | R28: 31500 | S28: 21000 | T28: 1500 | U28: 24500
B29: 22 | C29: current income tax | E29: 0 | F29: -32900 | G29: 200 | H29: 25400 | I29: -45800 | J29: -86300 | M29: 22 | N29: Non-Current Deferred Assets | P29: 1 | Q29: 17300 | R29: 31500 | S29: 21000 | T29: 1500 | U29: 24500
B30: 23 | C30: Total Income Tax | E30: 1 | F30: -32900 | G30: 200 | H30: 25400 | I30: -45800 | J30: -86300 | M30: 23 | N30: other long-term assets (part of CFO) | P30: 0 | Q30: 0 | R30: 0 | S30: 16100 | T30: 174600 | U30: 68400
M31: 24 | N31: Deferred Charges | P31: 1 | Q31: 0 | R31: 0 | S31: 0 | T31: 0 | U31: 57500
M32: 25 | N32: Other Long-Term Assets | P32: 1 | Q32: 0 | R32: 0 | S32: 16100 | T32: 174600 | U32: 10900
M33: 26 | N33: other long-term assets (part of OCI) | P33: 0 | Q33: 127000 | R33: 329500 | S33: 304400 | T33: 69700 | U33: 233400
M34: 27 | N34: Other Current liabilities | P34: 1 | Q34: 127000 | R34: 329500 | S34: 304400 | T34: 69700 | U34: 233400
M35: 28 | N35: accounts payable | P35: 0 | Q35: 386000 | R35: 409600 | S35: 435400 | T35: 475900 | U35: 330000
M36: 29 | N36: Payables | O36: 1 | P36: 1 | Q36: 386000 | R36: 409600 | S36: 435400 | T36: 475900 | U36: 330000
M37: 30 | N37: current portion of long-term debt | P37: 0 | Q37: 0 | R37: 0 | S37: 0 | T37: 47000 | U37: 159800
M38: 31 | N38: Current Debt and Capital Lease Obligation | P38: 1 | Q38: 0 | R38: 0 | S38: 0 | T38: 47000 | U38: 159800
M39: 32 | N39: other current liabilities (part of WC) | P39: 0 | Q39: 19400 | R39: 28200 | S39: 12900 | T39: 2900 | U39: 15800
M40: 33 | N40: Current Provisions | P40: 1 | Q40: 6200 | R40: 10500 | S40: 11700 | T40: 2800 | U40: 3000
M41: 34 | N41: Current Deferred Liabilities | P41: 1 | Q41: 13200 | R41: 17700 | S41: 1200 | T41: 100 | U41: 12800
M42: 35 | N42: third-party debt - long-term | P42: 0 | Q42: 374800 | R42: 508700 | S42: 533100 | T42: 840800 | U42: 782400
M43: 36 | N43: Long-Term Debt and Capital Lease Obligation | P43: 1 | Q43: 374800 | R43: 508700 | S43: 533100 | T43: 840800 | U43: 782400
M44: 37 | N44: I/C debt - long-term | P44: 0 | Q44: 0 | R44: 0 | S44: 0 | T44: 0 | U44: 0
M45: 38 | N45: deferred tax liability - long-term | P45: 0 | Q45: 1300 | R45: 1100 | S45: 1000 | T45: 29800 | U45: 30800
M46: 39 | N46: Deferred Taxes - Non-Current Liabilities | P46: 1 | Q46: 1300 | R46: 1100 | S46: 1000 | T46: 29800 | U46: 30800
M47: 40 | N47: other long-term liabilities (part of CFO) | P47: 0 | Q47: 2100 | R47: 5500 | S47: 4900 | T47: 33900 | U47: 35500
M48: 41 | N48: Long-Term Provisions | P48: 1 | Q48: 0 | R48: 3400 | S48: 3400 | T48: 3400 | U48: 3700
M49: 42 | N49: Non-Current Deferred Liabilities | P49: 1 | Q49: 2100 | R49: 2100 | S49: 1500 | T49: 30500 | U49: 31800
M50: 43 | N50: other long-term liabilities (part of OCI) | P50: 0 | Q50: 134500 | R50: 221000 | S50: 0 | T50: 41100 | U50: 700
M51: 44 | N51: Derivative Product Liabilities | P51: 1 | Q51: 134500 | R51: 221000 | S51: 0 | T51: 0 | U51: 0
M52: 45 | N52: Other Long-Term Liabilities | P52: 1 | Q52: 0 | R52: 0 | S52: 0 | T52: 41100 | U52: 700
M53: 46 | N53: other comprehensive income | P53: 0 | Q53: 52900 | R53: 53700 | S53: 44400 | T53: 65100 | U53: 46400
M54: 47 | N54: Gains (Losses) Not Affecting Retained Earnings | P54: 1 | Q54: 52900 | R54: 53700 | S54: 44400 | T54: 65100 | U54: 46400
M55: 48 | N55: retained earnings | P55: 0 | Q55: -1121000 | R55: -1432100 | S55: -1440900 | T55: -1170800 | U55: -1279300
M56: 49 | N56: Retained Earnings (Accumulated Deficit) | P56: 1 | Q56: -1121000 | R56: -1432100 | S56: -1440900 | T56: -1170800 | U56: -1279300
M57: 50 | N57: other owners equity | P57: 0 | Q57: 945500 | R57: 857000 | S57: 872700 | T57: 993700 | U57: 1071400
M58: 51 | N58: Additional Paid-In Capital | P58: 1 | Q58: 945500 | R58: 857000 | S58: 872700 | T58: 993700 | U58: 1071400
M59: 52 | N59: minority interest | P59: 0 | Q59: 0 | R59: 0 | S59: 0 | T59: 5800 | U59: -700
M60: 53 | N60: Minority Interest | P60: 1 | Q60: 0 | R60: 0 | S60: 0 | T60: 5800 | U60: -700
B74: =IF(C74="", "", B73+1) ->  | M74: =IF(N74="", "", M73+1) -> 

Sheet config
B2: TAB: CONFIGURATION FILE | E2: Calculations enabled: | G2: TRUE
E3: Test connection | G3: =_xll.AC.test.connection() -> host: home-pc; user: Konstantin Rybakov; key: null
B4: Financial statement output keys
B5: Output key | C5: Description | E5: Adjustment type | F5: Description
B6: accounts | C6: Financial statement accounts | E6: GR | F6: Set the account growth rate
B7: metrics | C7: Financial statement metrics | E7: REPLACE | F7: Replace the account
B8: ratios | C8: Financial statement ratios | E8: ADD | F8: Add to current account value. Blank vaues are assumed by default to be ADD operations
B9: balance-sheet | C9: Balance sheet statement
B10: profit-and-loss | C10: Profit and loss statement | E10: Configuration parameters for output arrays
E11: Cell address | F11: Row count | G11: Col count | H11: Comment
B12: account-levels | C12: Returned levels of financial statement accounts | E12: =addressFla('accounts<'!C7) -> 'accounts<'!$C$7 | F12: ='accounts<'!H5 -> 24 | G12: ='accounts<'!I5 -> 8 | H12: Standardized financial statement (Income statement)
B13: metric-levels | C13: Returned levels of financial statement metrics | E13: =addressFla('accounts<'!N7) -> 'accounts<'!$N$7 | F13: ='accounts<'!S5 -> 54 | G13: ='accounts<'!T5 -> 8 | H13: Standardized financial statement (Balance sheet)
B14: ratio-levels | C14: Returned levels of financial statement ratios | E14: =addressFla('metrics<'!D10) -> 'metrics<'!$D$10 | F14: ='metrics<'!L5 -> 22 | G14: ='metrics<'!L6 -> 14 | H14: Metrics estimated based on standard financial statements
B15: metric-names | C15: Range of returned metrics names | E15: =addressFla('ratios<'!D11) -> 'ratios<'!$D$11 | F15: ='ratios<'!L5 -> 70 | G15: ='ratios<'!L6 -> 14 | H15: Ratios estimated based on standard financial statements
B16: ratio-names | C16: Range of returned metrics names | E16: =addressFla(validate!E6) -> 'validate'!$E$6 | F16: =validate!H4 -> -1 | G16: =validate!H5 -> -1 | H16: Valiadation of the original financial statement metrics
E17: =addressFla(cra!C9) -> 'cra'!$C$9 | F17: =MIN(calc!L7, MATCH(cra!B14, cra!B9:B14, 0)-3) -> 2 | G17: 3 | H17: Set qualitative factors
B18: Keys of ajustments based on Moody's financial statement adjustment methodology | E18: =addressFla(cra!C21) -> 'cra'!$C$21 | F18: =MIN(calc!L6, MATCH(cra!B28, cra!B21:B28, 0)-1) -> 7 | G18: 3 | H18: Set quantitative factors
B19: Output key | C19: Description | E19: =addressFla(cra!C34) -> 'cra'!$C$34 | F19: =F18 -> 7 | G19: =G18 -> 3
B20: moody's-adjustment | C20: Indicator which specifies whether to perform Moody's adjustments | E20: =addressFla(cra!C45) -> 'cra'!$C$45 | F20: =F19 -> 7 | G20: =G19 -> 3
B21: operating-lease factor | C21: Multiplier in Moody's adjsutment methodology that specifies additional level of debt related to operating leases | E21: =addressFla(cra!N9) -> 'cra'!$N$9 | F21: 3 | G21: 4 | H21: Table with final aggregated consensus ratings
E22: =addressFla(cra!F21) -> 'cra'!$F$21 | F22: =F20 -> 7 | G22: 6 | H22: Grid of quantitative factors ratings
B23: CRA modelling output keys | E23: =addressFla(cra!M21) -> 'cra'!$M$21 | F23: =F22 -> 7 | G23: =G22 -> 6 | H23: Grid of quantitative factors scores
B24: Output key | C24: Description | E24: =addressFla(cra!F28) -> 'cra'!$F$28 | F24: 2 | G24: =G23 -> 6
B25: model-name | C25: Name of the Moody's CRA model | E25: =addressFla(cra!M28) -> 'cra'!$M$28 | F25: 2 | G25: =G24 -> 6
B26: factors-qualitative | C26: List of qualitative factors with weights and adjusted weights | E26: =addressFla(cra!F34) -> 'cra'!$F$34 | F26: =F23 -> 7 | G26: =G23 -> 6 | H26: Ratios and respective grid ranges, which the ratios matched to
B27: factors-quantitative | C27: List of quantitative factors with weights and adjusted weights | E27: =addressFla(cra!M33) -> 'cra'!$M$33 | F27: =F20+1 -> 8 | G27: 10 | H27: Moody's model quantitative grid
B28: table-final | C28: Table with consensus aggregate credit rating results | E28: =addressFla(cra!F45) -> 'cra'!$F$45 | F28: =F23 -> 7 | G28: =G22 -> 6 | H28: Period-specific ratios estimated for quantitative factors
B29: grid-ratings | C29: Estimated factor-specific ratings | E29: =addressFla(cra!M45) -> 'cra'!$M$45 | F29: =F28 -> 7 | G29: =COUNT(cra!N16:V16) -> 5 | H29: Year-specific ratios estimated for quantitative factors
B30: grid-scores | C30: Estimated factor-specific scores | E30: =addressFla(dca!C9) -> 'dca'!$C$9 | F30: =dca!D7 -> 6 | G30: =dca!E7-G28 -> 8 | H30: Standard debt capacity metrics
B31: grid-ratings-final | C31: Estimated aggregate quantitative and final ratings | E31: =addressFla(dca!C22) -> 'dca'!$C$22 | F31: =dca!D20 -> 5 | G31: =dca!E20-G28 -> 8 | H31: Standard debt capacity ratios
B32: grid-scores-final | C32: Estimated aggregate quantitative and final scores | E32: =addressFla(FS!D11) -> 'FS'!$D$11 | F32: =FS!L5 -> 32 | G32: =FS!L6-G28 -> 8
B33: grid-thresholds | C33: Moody's methodology grid threshold values | E33: =addressFla(FS!O11) -> 'FS'!$O$11 | F33: =FS!V5 -> 20 | G33: =G32 -> 8
B34: ratio-matched-ranges | C34: Ratios and respective grid ranges, which the ratios matched to | E34: =addressFla(test!M7) -> 'test'!$M$7 | F34: =test!R5 -> -1 | G34: =test!S5 -> -1
B35: ratios-year-specific | C35: Year-specific ratios | E35: =addressFla(test!C7) -> 'test'!$C$7 | F35: =test!H5 -> -1 | G35: =test!I5 -> -1 | H35: Test output
B36: ratios-period-specific | C36: Period-specific ratios | E36: =addressFla(count!C8) -> 'count'!$C$8 | F36: =count!B6 -> 0 | G36: 2 | H36: Calculation of accounts in original statements with duplicate names
B37: calculator-metrics | C37: Metrics calculator

Sheet model
B2: TAB: PROJECTION AND ADJUSTMENTS OF CONSOLIDATED FINANCIAL STATEMENTS
B4: # | C4: Parameters | E4: Value | G4: Parameter | K4: Moody's adjustment parameters | L4: Value
B5: 1 | C5: Effective fixed interest rate | E5: 0.05 | G5: Covered Transaction issue date | I5: 2018-03-01 | K5: =config!B20 -> moody's-adjustment | L5: 1
B6: 2 | C6: Covered Transaction size | E6: 50000 | G6: Fiscal year end | I6: 2018-12-31 | K6: =config!B21 -> operating-lease factor | L6: 7
B7: 3 | C7: Target acquisition price | E7: 140000 | G7: Corporate income tax | I7: 0.21 | K7: Parameters's object | L7: =_xll.AC.data.map(K5:K6, L5:L6) -> java.util.LinkedHashMap@Thu, 15 Feb 2018 05:04:36:475..164265036044193492
B9: # | C9: Account name | D9: Adjustment type | E9: 2013-03-31 | F9: 2014-03-31 | G9: 2015-03-31 | H9: 2016-03-31 | I9: 2017-03-31 | J9: Name | K9: Comment
B10: Adjustment of exisiting financial statements | K10: Note: Set adjustments to existing statements (ADD, REPLACE, or blank types); set non-numeric values in blank cells (for REPLACE adjustment)
B11: 1 | C11: =names!C58 -> DEPRECIATION | D11: =config!E8 -> ADD | E11: - | F11: - | G11: - | H11: - | I11: - | K11: Remove deperciation from the COGS account
B12: =IF(C12="", "", B11+1) -> 2 | C12: =names!C57 -> AMORTIZATION | D12: =D11 -> ADD | E12: - | F12: - | G12: - | H12: - | I12: - | K12: Offset COGS by adjusted depreciation
B13: =IF(C13="", "", B12+1) -> 3 | C13: =names!C68 -> TAX_INC_CURR | D13: =config!E7 -> REPLACE | E13: - | F13: - | G13: - | H13: - | I13: - | K13: I/C accounts receivable
B14: 4 | C14: =names!C66 -> NON_OPEX
B15: 5 | C15: =names!C45 -> RE
B16: 6 | C16: =names!C60 -> INT_EXP
B17: 7 | C17: =names!C61 -> INT_EXP_IC | D17: =D13 -> REPLACE | E17: - | F17: - | G17: - | H17: - | I17: - | K17: I/C accounts payable
B18: 8 | C18: =names!C38 -> DEBT_IC_LT | D18: =D17 -> REPLACE | E18: - | F18: - | G18: - | H18: - | I18: - | K18: I/C investments (adjusted to balance the balance sheet)
B19: 9 | C19: =names!C23 -> DEBT_RECEIV_IC_LT | D19: =D18 -> REPLACE | E19: - | F19: - | G19: - | H19: - | I19: - | K19: I/C debt
B20: Projections of financial statements | K20: Note: Set projection parameters for the financial statements (ADD, GR, or blank types)
B21: 1 | C21: =names!C50 -> REV | D21: =config!E6 -> GR | E21: - | F21: - | G21: - | H21: - | I21: - | K21: Projected Revenues growth rates
B22: =B21+1 -> 2 | C22: =names!C54 -> COGS | D22: =D21 -> GR | E22: - | F22: - | G22: - | H22: - | I22: - | K22: Projected COGS growth rates
B23: =B22+1 -> 3 | C23: =names!C59 -> SGA | D23: =D22 -> GR | E23: - | F23: - | G23: - | H23: - | I23: - | K23: Projected SGA growth rates
B24: 4 | C24: =names!C10 -> AR | D24: GR | E24: - | F24: - | G24: - | H24: - | I24: - | K24: Assume the same growth rates as for Revenues
B25: 5 | C25: =names!C12 -> INV | D25: =D24 -> GR | E25: - | F25: - | G25: - | H25: - | I25: - | K25: Assume the same growth rates as for COGS
B26: 6 | C26: =names!C15 -> ASSETS_OTHER_WC_ST | D26: =D21 -> GR | E26: - | F26: - | G26: - | H26: - | I26: - | K26: Assume the same growth rates as for Revenues
B27: =IF(C27="", "", B26+1) -> 7 | C27: =names!C28 -> AP | D27: =D26 -> GR | E27: - | F27: - | G27: - | H27: - | I27: - | K27: Assume the same growth rates as for COGS
B28: 8 | C28: =names!C34 -> LIAB_OTHER_WC_ST | D28: GR | E28: - | F28: - | G28: - | H28: - | I28: - | K28: Assume the same growth rates as for COGS
B29: 9 | C29: =names!C19 -> GOODWILL | D29: =D17 -> REPLACE | E29: - | F29: - | G29: - | H29: - | I29: - | K29: Goodwill adjustment after the target acquisition
B30: 10 | C30: =names!C38 -> DEBT_IC_LT | D30: =D12 -> ADD | E30: - | F30: - | G30: - | H30: - | I30: - | K30: Size of the Covered Transaction
B31: 11 | C31: =names!C61 -> INT_EXP_IC | D31: =D30 -> ADD | E31: - | F31: - | G31: - | H31: - | I31: - | K31: Adjustment for Covered Transaction interest expense
B32: 12 | C32: =names!C72 -> DIV | D32: =D31 -> ADD | E32: - | F32: - | G32: - | H32: - | I32: - | K32: Set projected dividend payments in the model
B33: 13 | C33: =names!C73 -> CAPEX | D33: =D32 -> ADD | E33: - | F33: - | G33: - | H33: - | I33: - | K33: Set projected capital expenditures in the model
B34: =IF(C34="", "", B31+1) -> 
C36: Summary of facts
C38: Acquisition of AIS
B39: 1 | C39: Celestica US acquired AIS on XXX
B40: =B39+1 -> 2 | C40: Historical FY2017 consolidated balance sheet of Celestica US and the target were provided by the client
B41: =B40+1 -> 3 | C41: Both historical FY2017 and projected FY2018-2020 consolidated income statements of Celestica US and the target were provided by the client
C43: Description of the Covered Transaction
B44: =B41+1 -> 4 | C44: The acquistion price was US$140 mln
B45: 5 | C45: The acquisition was financed through the issue of debt and equity (determined in this CRA and DCA analysis)
B46: 6 | C46: The planned date of the AIS acquisition financing is XXX

Sheet manual
B2: TAB: OVERRIDE MODEL-DERIVED METRICS AND RATIOS WITH MANUAL METRICS AND RATIOS
B5: Manual metrics that override model-derived ratios
B7: # | C7: Ratio | D7: =cra!N16 -> 2013-03-31 | E7: =cra!O16 -> 2014-03-31 | F7: =cra!P16 -> 2015-03-31 | G7: =cra!Q16 -> 2016-03-31 | H7: =cra!R16 -> 2017-03-31
B8: 1 | C8: =names!G45 -> CFF | D8: 50000 | E8: 50000 | F8: 50000 | G8: 50000 | H8: 50000
B9: =IF(C9="", "", B8+1) -> 
B10: =IF(C10="", "", B9+1) -> 

Sheet calc
B2: TAB: FINANCIAL STATEMENT CALCULATOR
B4: 1. Financial statements adjsutment / projection model | F4: 2. Financial statements metrics / ratios calculator | J4: 3. CRA calculator | L4: # factors
B6: Adjustment types (exisiting FS): | C6: =_xll.AC.data.map(model!C11:C19, model!D11:D19) -> java.util.LinkedHashMap@Thu, 15 Feb 2018 05:04:36:477..7400884301922308573 | D6: =_xll.AC.data.size(C6, 1) -> 9 | F6: Model output: balance sheet | G6: =_xll.AC.finance.fs.get(C11, config!B9, ) -> jeconkr.finance.IFRS9.geq.lib.account.statement.FinancialStatement@Thu, 15 Feb 2018 05:04:37:854..2703290214678850336 | J6: ='cra grid'!G31 -> Moody's CRA model | K6: ='cra grid'!K31 -> jeconkr.finance.FSTP.cra.ModelCRA@Thu, 15 Feb 2018 05:04:37:856..332424736160870626 | L6: =_xll.AC.finance.cra.size(K6, config!B27) -> 7
B7: Adjustment types projected FS): | C7: =_xll.AC.data.map(model!C21:C33, model!D21:D33) -> java.util.LinkedHashMap@Thu, 15 Feb 2018 05:04:36:479..9049991651446498208 | D7: =_xll.AC.data.size(C7, 1) -> 13 | F7: Model output: P&L | G7: =_xll.AC.finance.fs.get(C11, config!B10,) -> jeconkr.finance.IFRS9.geq.lib.account.statement.FinancialStatement@Thu, 15 Feb 2018 05:04:37:853..351460337489923185 | J7: Qualitative factors overlay | K7: =_xll.AC.data.map(cra!C9:C10, cra!F9:F10) -> java.util.LinkedHashMap@Thu, 15 Feb 2018 05:04:36:488..1573340309836553055 | L7: =_xll.AC.finance.cra.size(K6, config!B26) -> 2
B8: FS: balance sheet | C8: =K20 -> jeconkr.finance.IFRS9.geq.lib.account.statement.FinancialStatement@Thu, 15 Feb 2018 05:04:37:854..2703290214678850336 | F8: Cash flows: | J8: Updated metrics calculator | K8: =_xll.AC.finance.cra.get(K11, config!B37) -> jeconkr.finance.IFRS9.geq.lib.calculator.account.CalculatorMetrics@Thu, 15 Feb 2018 05:04:36:488..1509452961823193125
B9: FS: P&L | C9: =K21 -> jeconkr.finance.IFRS9.geq.lib.account.statement.FinancialStatement@Thu, 15 Feb 2018 05:04:37:853..351460337489923185
B11: Model calculator | C11: =_xll.AC.finance.fs.model(C8, C9, model!E9:I9, model!C11:C19, model!K11:K19, model!E11:I19, C6, model!C21:C33, model!K21:K33, model!E21:I33, C7, model!I7) -> jeconkr.finance.IFRS9.geq.lib.calculator.account.CalculatorAccountingModel@Thu, 15 Feb 2018 05:04:36:486..76139110436068824 | F11: Metrics calculator | G11: =_xll.AC.finance.fs.metrics(G6, G7,,,,model!I7) -> jeconkr.finance.IFRS9.geq.lib.calculator.account.CalculatorMetrics@Thu, 15 Feb 2018 05:04:36:488..1509452961823193125 | J11: CRA calculator output | K11: =_xll.AC.finance.cra.runmodel(K6, G11, K7, cra!F16:K18) -> jeconkr.finance.FSTP.cra.OutputCRA@Thu, 15 Feb 2018 05:07:27:340..9010838609995714661
B14: Financial statements calculator
B16: Hostorical and merged projected JEUS income statements | F16: Hostorical and merged projected JEUS balance sheet | J16: Group historical financial statements
J18: Balance Sheet, 2013-2017 | K18: =K49 -> jeconkr.finance.IFRS9.geq.lib.account.statement.FinancialStatement@Thu, 15 Feb 2018 05:04:37:844..245975045255545048
J19: P&L, 2013-2017 | K19: =K39 -> jeconkr.finance.IFRS9.geq.lib.account.statement.FinancialStatement@Thu, 15 Feb 2018 05:04:37:847..5774946984170704883
J20: Copy of Balance Sheet, 2013-2017 | K20: =_xll.AC.finance.fs.copy(K18) -> jeconkr.finance.IFRS9.geq.lib.account.statement.FinancialStatement@Thu, 15 Feb 2018 05:04:37:854..2703290214678850336
J21: Copy of P&L, 2013-2017 | K21: =_xll.AC.finance.fs.copy(K19) -> jeconkr.finance.IFRS9.geq.lib.account.statement.FinancialStatement@Thu, 15 Feb 2018 05:04:37:853..351460337489923185
B24: Parameter | C24: JEUS | D24: JE | M24: JE
B25: Account multipier | C25: 0.001 | D25: 1000 | M25: 2017-03-31
B26: Account units | C26: 1000 | D26: 1000 | M26: 2016-03-31
B27: Accounts currency | C27: US$ | D27: C$ | M27: 2015-03-31
M28: 2014-03-31
M29: 2013-03-31
B31: Income statement | C31: JEUS | D31: 2017-03-31 | F31: =B31 -> Income statement | G31: =C31 -> JEUS | H31: 2018-03-31 | J31: Income statement | K31: JE | L31: FY2013-2017
B33: Parameter | C33: Object | D33: size | F33: =B33 -> Parameter | G33: =C33 -> Object | H33: size | J33: Parameter | K33: Object | L33: size
B34: Levels mapping | F34: =B44 -> Levels mapping | J34: Levels mapping | K34: =_xll.AC.data.map('<JE'!T14:T52, '<JE'!U14:U52, 0) -> java.util.LinkedHashMap@Thu, 15 Feb 2018 05:04:36:403..4768138763638624491 | L34: =_xll.AC.data.size(K34, 1) -> 33
B35: Multiplier mapping | F35: =B45 -> Multiplier mapping | J35: Multiplier mapping | K35: =_xll.AC.data.map('<JE'!T14:T52, '<JE'!V14:V52, 0) -> java.util.LinkedHashMap@Thu, 15 Feb 2018 05:04:36:441..7111137418728933959 | L35: =_xll.AC.data.size(K35, 1) -> 33
B36: Standard accounts | F36: =B46 -> Standard accounts | J36: Standard accounts | K36: =_xll.AC.data.map('<JE'!T14:T52, '<JE'!W14:W52, 0) -> java.util.LinkedHashMap@Thu, 15 Feb 2018 05:04:36:440..5775278568690871220 | L36: =_xll.AC.data.size(K36, 1) -> 33
B38: P&L original | F38: =B48 -> P&L original | J38: P&L original | K38: =_xll.AC.finance.fs.statement(K31, J31, $M$25:$M$29, '<JE'!$T$14:$T$52, '<JE'!$X$14:$AB$52, K34, K35, $D$25, $D$26, $D$27) -> jeconkr.finance.IFRS9.geq.lib.account.statement.FinancialStatement@Thu, 15 Feb 2018 05:04:37:847..5774946984170704883
B39: P&L standard | F39: =B49 -> P&L standard | J39: P&L standard | K39: =_xll.AC.finance.fs.standard(K38,K36) -> jeconkr.finance.IFRS9.geq.lib.account.statement.FinancialStatement@Thu, 15 Feb 2018 05:04:37:847..5774946984170704883
B41: Balance Sheet | C41: JEUS | D41: =D31 -> 2017-03-31 | F41: =B41 -> Balance Sheet | G41: =C41 -> JEUS | H41: =H31 -> 2018-03-31 | J41: Balance Sheet | K41: JE | L41: =L31 -> FY2013-2017
B43: =B33 -> Parameter | C43: =C33 -> Object | D43: =D33 -> size | F43: =B43 -> Parameter | G43: =C43 -> Object | H43: size | J43: Parameter | K43: Object | L43: size
B44: =B34 -> Levels mapping | F44: =B34 -> Levels mapping | J44: Historical P&L: | K44: =_xll.AC.data.map('<JE'!B13:B87, '<JE'!C13:C87, 0) -> java.util.LinkedHashMap@Thu, 15 Feb 2018 05:04:36:438..3082856348681009686 | L44: =_xll.AC.data.size(K44, 1) -> 70
B45: =B35 -> Multiplier mapping | F45: =B35 -> Multiplier mapping | J45: Adjustment types (exisiting FS): | K45: =_xll.AC.data.map('<JE'!B13:B87, '<JE'!D13:D87, 0) -> java.util.LinkedHashMap@Thu, 15 Feb 2018 05:04:36:437..8774906353584091997 | L45: =_xll.AC.data.size(K45, 1) -> 70
B46: =B36 -> Standard accounts | F46: =B36 -> Standard accounts | J46: Adjustment types projected FS): | K46: =_xll.AC.data.map('<JE'!B13:B87, '<JE'!E13:E87, 0) -> java.util.LinkedHashMap@Thu, 15 Feb 2018 05:04:36:463..1444578359241545198 | L46: =_xll.AC.data.size(K46, 1) -> 70
B48: =B38 -> P&L original | F48: =B38 -> P&L original | J48: Historical and projected P&L: | K48: =_xll.AC.finance.fs.statement(K41, J41, $M$25:$M$29, '<JE'!$B$13:$B$87, '<JE'!$I$13:$M$87, K44, K45, $D$25, $D$26, $D$27) -> jeconkr.finance.IFRS9.geq.lib.account.statement.FinancialStatement@Thu, 15 Feb 2018 05:04:37:844..245975045255545048
B49: P&L standard | F49: =B39 -> P&L standard | J49: Model calculator | K49: =_xll.AC.finance.fs.standard(K48,K46) -> jeconkr.finance.IFRS9.geq.lib.account.statement.FinancialStatement@Thu, 15 Feb 2018 05:04:37:844..245975045255545048

Sheet names
B2: TAB: NAMES OF ACCOUNTS, METRICS, AND RATIOS USED IN STANDARDIZED FINANCIAL STATEMENTS
B4: Financial statements standard accounts | F4: Financial statement metrics | L4: Financial statement ratios
B6: Name | C6: ID | D6: level | F6: Name | G6: ID | H6: level (metric) | I6: level (metric, output) | J6: level (ratio) | L6: Name | M6: ID | N6: level
B8: Balance Sheet Accounts | F8: Aggregate Balance Sheet Accounts | L8: Solvency Ratios
B9: cash and marketable securities | C9: CASH | D9: 1 | F9: total assets | G9: TOT_ASSETS | H9: 1 | I9: 2 | J9: 1 | L9: Debt to EBITDA | M9: DEBT/EBITDA | N9: 1
B10: accounts receivable | C10: AR | D10: 1 | F10: total current assets | G10: TOT_CURR_ASSETS | H10: 1 | I10: 2 | J10: 1 | L10: Debt to Equity | M10: DEBT/EQTY | N10: 1
B11: I/C accounts receivable | C11: AR_IC | D11: 1 | F11: total accounts receivable | G11: TOT_AR | H11: 1 | I11: 2 | J11: 1 | L11: EBIT to Interest Expense | M11: EBIT/INT_EXP | N11: 1
B12: inventory | C12: INV | D12: 1 | F12: total long-term assets | G12: TOT_LT_ASSETS | H12: 1 | I12: 2 | J12: 1 | L12: EBITA to Interest Expense | M12: EBITA/INT_EXP | N12: 1
B13: due from related companies - short term | C13: DEBT_RECEIV_IC_ST | D13: 1 | F13: total liabilities | G13: TOT_LIAB | H13: 1 | I13: 2 | J13: 1 | L13: EBITDA to Interest Expense | M13: EBITDA/INT_EXP | N13: 1
B14: deferred tax asset - short-term | C14: TAX_RECEIV_ST | D14: 1 | F14: total current liabilities | G14: TOT_CURR_LIAB | H14: 2 | I14: 2 | J14: 1 | L14: Debt to Total Book Capitalization | M14: DEBT/TOT_CAPITAL | N14: 1
B15: other current assets (part of WC) | C15: ASSETS_OTHER_WC_ST | D15: 1 | F15: total account payables | G15: TOT_AP | H15: 1 | I15: 2 | J15: 1 | L15: Debt to Total Assets | M15: DEBT/ASSETS | N15: 1
B16: other current assets (part of OCI) | C16: ASSETS_OTHER_OCI_ST | D16: 1 | F16: total long-term liabilities | G16: TOT_LT_LIAB | H16: 1 | I16: 2 | J16: 1 | L16: Equity Multiplier | M16: ASSETS/EQTY | N16: 1
F17: total short-tem debt | G17: TOT_ST_DEBT | H17: 3 | I17: 2 | J17: 1 | L17: RCF to Debt | M17: RCF/DEBT | N17: 1
B18: net fixed assets | C18: ASSETS_FIXED | D18: 1 | F18: total long-tem debt | G18: TOT_LT_DEBT | H18: 3 | I18: 2 | J18: 1 | L18: FFO (before Interest) to Interest | M18: (FFO+INT_EXP)/INT_EXP | N18: 1
B19: goodwill | C19: GOODWILL | D19: 1 | F19: total debt | G19: TOT_DEBT | H19: 4 | I19: 2 | J19: 1 | L19: FFO to Net Debt | M19: FFO/NET_DEBT | N19: 1
B20: intangible assets (other than goodwill) | C20: INTANGIBLES | D20: 1 | F20: net debt | G20: NET_DEBT | H20: 1 | I20: 2 | J20: 1
B21: investments - long-term | C21: INVEST | D21: 1 | F21: total other comprehensive income | G21: TOT_OCI | H21: 1 | I21: 2 | J21: 1 | L21: Profitability Ratios
B22: I/C investments - long-term | C22: INVEST_IC | D22: 1 | F22: total equity | G22: TOT_EQTY | H22: 2 | I22: 2 | J22: 1 | L22: Gross Margin | M22: GM | N22: 1
B23: due from related companies - long term | C23: DEBT_RECEIV_IC_LT | D23: 1 | F23: total book capitalization | G23: TOT_BOOK_CAPITAL | H23: 1 | I23: 2 | J23: 1 | L23: Operating Margin | M23: OM | N23: 1
B24: deferred tax asset - long-term | C24: TAX_RECEIV_LT | D24: 1 | F24: total liabilities and equity | G24: TOT_LIAB_EQTY | H24: 2 | I24: 3 | J24: 1 | L24: Pre-tax Margin | M24: EBT/REV | N24: 1
B25: other long-term assets (part of CFO) | C25: ASSETS_OTHER_CFO_LT | D25: 1 | L25: Net-income Margin | M25: NI/REV | N25: 1
B26: other long-term assets (part of OCI) | C26: ASSETS_OTHER_OCI_LT | D26: 1 | F26: Income Statement Aggregate and Derived Accounts | L26: Operating Return on Assets | M26: ROA_OP | N26: 1
F27: total revenue | G27: TOT_REV | H27: 1 | I27: 1 | J27: 1 | L27: Return on Assets | M27: ROA | N27: 1
B28: accounts payable | C28: AP | D28: 1 | F28: total COGS | G28: TOT_COGS | H28: 1 | I28: 1 | J28: 1 | L28: Return on Capital | M28: ROC | N28: 1
B29: I/C accounts payable | C29: AP_IC | D29: 1 | F29: gross profits | G29: GROSS_PROFITS | H29: 1 | I29: 1 | J29: 1 | L29: Return on Equity | M29: ROE | N29: 1
B30: third-party debt - short-term | C30: DEBT_ST | D30: 1 | F30: total operating expense | G30: OPEX | H30: 1 | I30: 1 | J30: 1 | L30: Return on Common Equity | M30: RCE | N30: 1
B31: current portion of long-term debt | C31: DEBT_LT_CURR | D31: 1 | F31: total interest expense | G31: TOT_INT | H31: 3 | I31: 1 | J31: 1
B32: I/C debt - short-term | C32: DEBT_IC_ST | D32: 1 | F32: total non-operating expense | G32: TOT_NON_OPEX | H32: 1 | I32: 1 | J32: 1 | L32: Valuation Ratios
B33: income taxes payable - short-term | C33: TAX_PAYABLE_ST | D33: 1 | F33: earnings before tax (EBT) | G33: EBT | H33: 1 | I33: 0 | J33: 1 | L33: Price to Earnings | M33: P/NI | N33: 1
B34: other current liabilities (part of WC) | C34: LIAB_OTHER_WC_ST | D34: 1 | F34: earnings before interest and tax (EBIT) | G34: EBIT | H34: 2 | I34: 0 | J34: 1 | L34: Price to Cash Flow | M34: P/CFO | N34: 1
B35: other current liabilities (part of OCI) | C35: LIAB_OTHER_OCI_ST | D35: 1 | F35: earnings before interest, tax and amortization (EBITA) | G35: EBITA | H35: 1 | I35: 0 | J35: 1 | L35: Price to Sales | M35: P/REV | N35: 1
F36: earnings before interest, tax and D&A (EBITDA) | G36: EBITDA | H36: 1 | I36: 0 | J36: 1 | L36: Price to Book Value | M36: P/BOOK_EQTY | N36: 1
B37: third-party debt - long-term | C37: DEBT_LT | D37: 1 | F37: amortization and depreciation | G37: D&A | H37: 1 | I37: 2 | J37: 1 | L37: Basic Earnings per Share | M37: EPS | N37: 1
B38: I/C debt - long-term | C38: DEBT_IC_LT | D38: 1 | F38: net income | G38: NI | H38: 2 | I38: 0 | J38: 1 | L38: Diluted Earnings per Share | M38: EPS_DILUTE | N38: 1
B39: capital leases | C39: LEASES_CAPITAL | D39: 1 | F39: total income tax | G39: INC_TAX | H39: 1 | I39: 2 | J39: 1 | L39: Cash Flow per Share | M39: CFO/SHARES | N39: 1
B40: deferred tax liability - long-term | C40: TAX_PAYABLE_LT | D40: 1 | F40: tax-adjusted interest expense | G40: TAX_ADJ_INT | H40: 1 | I40: 2 | J40: 1 | L40: EBITDA per Share | M40: EBITDA/SHARES | N40: 1
B41: other long-term liabilities (part of CFO) | C41: LIAB_OTHER_CFO_LT | D41: 1 | L41: Dividends per Share | M41: DIV/SHARES | N41: 1
B42: other long-term liabilities (part of OCI) | C42: LIAB_OTHER_OCI_LT | D42: 1 | F42: Cash Flows Aggregate and Derived Accounts | L42: Dividend Payout | M42: DIV_PAYOUT | N42: 1
F43: cash flows from operations | G43: CFO | H43: 2 | I43: 2 | J43: 1 | L43: Retention Rate | M43: RETENTION | N43: 1
B44: other comprehensive income | C44: OCI | D44: 1 | F44: cash flows from investing activities | G44: CFI | H44: 2 | I44: 2 | J44: 1 | L44: Sustainable Growth Rate | M44: GR | N44: 1
B45: retained earnings | C45: RE | D45: 1 | F45: cash flows from financing activities | G45: CFF | H45: 2 | I45: 2 | J45: 1
B46: other owners equity | C46: EQTY_CONTRIB | D46: 1 | F46: funds from operations | G46: FFO | H46: 2 | I46: 2 | J46: 1 | L46: Liquidity Ratios
B47: minority interest | C47: MINORITY | D47: 1 | F47: retained cash flows | G47: RCF | H47: 2 | I47: 2 | J47: 1 | L47: Current Ratio | M47: CURR_ASSETS/CURR_LIAB | N47: 1
F48: free cash flows | G48: FCF | H48: 2 | I48: 2 | J48: 1 | L48: Quick Ratio | M48: (CASH+AR)/CURR_LIAB | N48: 1
B49: Income Statement Accounts | F49: FFO before interest expense | G49: FFO+INT_EXP | H49: 2 | I49: 2 | J49: 1 | L49: Cash Ratio | M49: CASH/CURR_LIAB | N49: 1
B50: revenues | C50: REV | D50: 1 | F50: working capital | G50: WC | H50: 2 | I50: 2 | J50: 1
B51: I/C revenues | C51: REV_IC | D51: 1 | F51: change in working capital | G51: D_WC | H51: 2 | I51: 2 | J51: 1 | L51: Other Ratios
B52: discounts and disbursments | C52: DISBURSEMENT | D52: 1 | L52: Effective Interest Rate | M52: EFF_INT_RATE | N52: 1
F53: Increase (decrease) in cash | G53: D_CASH | H53: 2 | I53: 2 | J53: 1 | L53: CFO to Net Debt | M53: CFO/NET_DEBT | N53: 1
B54: cost of goods sold | C54: COGS | D54: 1 | F54: Decrease (increase) in A/R | G54: D_AR | H54: 2 | I54: 2 | J54: 1 | L54: Revenue (in billions) | M54: REV_BLN | N54: 1
B55: I/C cost of goods sold | C55: COGS_IC | D55: 1 | F55: Decrease (increase) in inventory | G55: D_INV | H55: 2 | I55: 2 | J55: 1 | L55: EBITA (in billions) | M55: EBITA_BLN | N55: 1
F56: Decrease (increase) in other current assets (part of WC) | G56: D_OTHER_ASSETS_WC_ST | H56: 2 | I56: 2 | J56: 1 | L56: Total Assets (in billions) | M56: ASSETS_BLN | N56: 1
B57: amortization | C57: AMORTIZATION | D57: 1 | F57: Decrease (increase) in other current assets (part of OCI) | G57: D_OTHER_ASSETS_OCI_ST | H57: 2 | I57: 2 | J57: 1
B58: depreciation | C58: DEPRECIATION | D58: 1 | F58: Decrease (increase) in other long-term assets (part of CFO) | G58: D_OTHER_ASSETS_CFO_LT | H58: 2 | I58: 2 | J58: 1
B59: selling general and administrative costs | C59: SGA | D59: 1 | F59: Decrease (increase) in other long-term assets (part of OCI) | G59: D_OTHER_ASSETS_OCI_LT | H59: 2 | I59: 2 | J59: 1
B60: interest expense | C60: INT_EXP | D60: 1 | F60: Increase (decrease) in A/P | G60: D_AP | H60: 2 | I60: 2 | J60: 1
B61: I/C interest expense | C61: INT_EXP_IC | D61: 1 | F61: Increase (decrease) in other short-term liabilities (part of WC) | G61: D_OTHER_LIAB_WC_ST | H61: 2 | I61: 2 | J61: 1
B62: interest income | C62: INT_INC | D62: 1 | F62: Increase (decrease) in other short-term liabilities (part of OCI) | G62: D_OTHER_LIAB_OCI_ST | H62: 2 | I62: 2 | J62: 1
B63: operating leases | C63: LEASES_OPER | D63: 1 | F63: Increase (decrease) in other long-term liabilities (part of CFO) | G63: D_OTHER_LIAB_CFO_LT | H63: 2 | I63: 2 | J63: 1
B64: other expense (income) | C64: EXP_OTHER | D64: 1 | F64: Increase (decrease) in other long-term liabilities (part of OCI) | G64: D_OTHER_LIAB_OCI_LT | H64: 2 | I64: 2 | J64: 1
B65: other income (expense) | C65: INC_OTHER | D65: 1
B66: non-operating expense | C66: NON_OPEX | D66: 1 | F66: Increase in asset value due to acquisitions | G66: D_ACQUSITION | H66: 2 | I66: 2 | J66: 1
F67: increase in investments | G67: D_INVEST | H67: 2 | I67: 2 | J67: 1
B68: current income tax | C68: TAX_INC_CURR | D68: 1 | F68: increase in I/C investments | G68: D_INVEST_IC | H68: 2 | I68: 2 | J68: 1
B69: future income tax | C69: TAX_INC_FUT | D69: 1
F70: Increase in debt - short term | G70: D_DEBT_ST | H70: 2 | I70: 2 | J70: 1
B71: Cash Flow Statement Accounts | F71: Increase in debt - long term | G71: D_DEBT_LT | H71: 2 | I71: 2 | J71: 1
B72: dividends | C72: DIV | D72: 1 | F72: Increase in other comprehensive income | G72: D_OCI | H72: 2 | I72: 2 | J72: 1
B73: capital expenditures | C73: CAPEX | D73: 1 | F73: Issuance of common stock and adjustment to equity | G73: D_EQTY | H73: 2 | I73: 2 | J73: 1
F75: Market Valuation Metrics
F76: Total number of market shares | G76: SHARES | H76: 2 | I76: 2 | J76: 1
F77: Market price per share | G77: P | H77: 2 | I77: 2 | J77: 1
F79: Validation Test Metrics
F80: balance sheet balancing test | G80: TEST_BS | H80: 1 | I80: 2 | J80: 1
F81: income statement balancing test | G81: TEST_IS | H81: 1 | I81: 2 | J81: 1
F82: cash flow statement balancing test | G82: TEST_CF | H82: 1 | I82: 2 | J82: 1
F83: capex account test | G83: TEST_CAPEX | H83: 1 | I83: 2 | J83: 1

Sheet validate
B2: TAB: VALIDATION OF FINANCIAL STATEMENTS
B4: List of financial statements | E4: P&L metrics | F4: =_xll.AC.finance.fs.get(calc!C39, config!B7, 'accounts<'!D4) -> 0 | H4: =_xll.AC.data.size($F$4, 1) -> -1
H5: =_xll.AC.data.size($F$4, 2) -> -1
B6: =calc!C39 -> 0 | D6: # | E6: =_xll.AC.data._get(F4, "", 0) -> 0 | F6: 0 | G6: 0
B7: =_xll.AC.data.list_x(B6:B6, 0, 1) -> java.util.ArrayList@Thu, 15 Feb 2018 05:04:36:488..597782670240864507 | D7: 1 | E7: 0 | F7: 0 | G7: 0
D8: =IF(E8="", "", D7+1) -> 2 | E8: 0 | F8: 0 | G8: 0
B9: Validation | D9: 3 | E9: 0 | F9: 0 | G9: 0
D10: 4 | E10: 0 | F10: 0 | G10: 0
B11: =_xll.AC.finance.fs.validate(B7, 1) -> java.lang.ClassCastException: java.lang.Double cannot be cast to jeconkr.finance.IFRS9.geq.iLib.account.statement.IFinancialStatement | C11: =_xll.AC.data.size(B11, 1) -> -1 | D11: 5 | E11: 0 | F11: 0 | G11: 0

Sheet cra grid
B2: TAB: CRA QUANTITATIVE METRICS GRIDS AND QUALITATIVE FACTORS
B4: Mappings
B6: Rating-to-score mapping | G6: Aaa | I6: Aa | J6: A | K6: Baa | L6: Ba | M6: B | N6: Caa | O6: Ca
B7: =_xll.AC.data.map(G6:O6, G7:O7) -> java.util.LinkedHashMap@Thu, 15 Feb 2018 05:04:36:466..5030072378946356434 | F7: =_xll.AC.data.size(B7, 1) -> 8 | G7: 1 | I7: 3 | J7: 6 | K7: 9 | L7: 12 | M7: 15 | N7: 18 | O7: 20
B9: Aggregate score-to-rating mapping | G9: 1.5 | H9: =G9+1 -> 2.5 | I9: =H9+1 -> 3.5 | J9: 4.5 | K9: 5.5 | L9: 6.5 | M9: 7.5 | N9: 8.5 | O9: 9.5 | P9: =O9+1 -> 10.5 | S9: =P9+1 -> 11.5 | T9: =S9+1 -> 12.5 | U9: 13.5 | W9: =U9+1 -> 14.5 | X9: 15.5 | Y9: 16.5 | Z9: 17.5 | AA9: 18.5 | AB9: 19.5 | AC9: 1000
B10: =_xll.AC.data.map(G9:AC9, G10:AC10) -> java.util.LinkedHashMap@Thu, 15 Feb 2018 05:04:36:466..3142166712048917003 | F10: =_xll.AC.data.size(B10, 1) -> 20 | G10: Aaa | H10: Aa1 | I10: Aa2 | J10: Aa3 | K10: A1 | L10: A2 | M10: A3 | N10: Baa1 | O10: Baa2 | P10: Baa3 | S10: Ba1 | T10: Ba2 | U10: Ba3 | W10: B1 | X10: B2 | Y10: B3 | Z10: Caa1 | AA10: Caa2 | AB10: Caa3 | AC10: Ca
B13: Distribution and Supply Chain Service Industry, 11 Dec 2015 | S13: Unregulated Utilities and Unregulated Power Companies, 17 May 2017
B15: Quantitative metrics grid | S15: Quantitative metrics grid
B17: # | C17: Metric | D17: weight | E17: weight adjusted | F17: id | G17: match ≥ | H17: format | I17: Aaa | J17: Aa | K17: A | L17: Baa | M17: Ba | N17: B | O17: Caa | P17: Ca | S17: # | T17: =C17 -> Metric | U17: =D17 -> weight | V17: weight adjusted | W17: =F17 -> id | X17: =G17 -> match ≥ | Y17: format | Z17: =I17 -> Aaa | AA17: Aa | AB17: A | AC17: Baa | AD17: Ba | AE17: B | AF17: Caa
B18: 1 | C18: Revenue (in USD bln) | D18: 0.1 | E18: =D18 -> 0.1 | F18: =names!M54 -> REV_BLN | G18: 1 | H18: x.x | I18: 160 | J18: 85 | K18: 35 | L18: 15 | M18: 5 | N18: 2 | O18: 0.5 | S18: 1 | T18: Scale (USD bln) | U18: 0.1 | V18: =U18 -> 0.1 | W18: =names!M56 -> ASSETS_BLN | X18: 1 | Y18: x.x | Z18: 100 | AA18: 50 | AB18: 25 | AC18: 10 | AD18: 5 | AE18: 2.5
B19: =B18+1 -> 2 | C19: EBITA (in USD bln) | D19: 0.1 | E19: =D19 -> 0.1 | F19: =names!M55 -> EBITA_BLN | G19: 1 | H19: x.x | I19: 8 | J19: 4 | K19: 2 | L19: 0.75 | M19: 0.4 | N19: 0.05 | O19: 0 | S19: =S18+1 -> 2 | T19: (CFO Pre-WC + Interest) / Interest | U19: 0.1 | V19: =U19 -> 0.1 | W19: =names!M18 -> (FFO+INT_EXP)/INT_EXP | X19: 1 | Y19: x.x | Z19: 18 | AA19: 13 | AB19: 8 | AC19: 4.2 | AD19: 2.8 | AE19: 1
B20: =B19+1 -> 3 | C20: Operating Margin | D20: 0.1 | E20: 0.1 | F20: =names!M23 -> OM | G20: 1 | H20: % | I20: 0.4 | J20: 0.3 | K20: 0.2 | L20: 0.1 | M20: 0.05 | N20: 0.02 | O20: 0.005 | S20: =S19+1 -> 3 | T20: (CFO Pre-WC) / Debt | U20: 0.15 | V20: 0.15 | W20: =names!M19 -> FFO/NET_DEBT | X20: 1 | Y20: % | Z20: 0.9 | AA20: 0.6 | AB20: 0.35 | AC20: 0.2 | AD20: 0.12 | AE20: 0.05
B21: 4 | C21: Return on invested capital | D21: 0.05 | E21: 0.05 | F21: =names!M28 -> ROC | G21: 1 | H21: % | I21: 0.5 | J21: 0.35 | K21: 0.25 | L21: 0.15 | M21: 0.075 | N21: 0.025 | O21: 0.01 | S21: 4 | T21: RCF / Debt | U21: 0.15 | V21: 0.15 | W21: =names!M17 -> RCF/DEBT | X21: 1 | Y21: % | Z21: 0.6 | AA21: 0.45 | AB21: 0.25 | AC21: 0.15 | AD21: 0.08 | AE21: 0.03
B22: 5 | C22: Debt / EBITDA | D22: 0.1 | E22: 0.1 | F22: =names!M9 -> DEBT/EBITDA | G22: 0 | H22: x.x | I22: 0.5 | J22: 1 | K22: 2 | L22: 3 | M22: 4.5 | N22: 6.5 | O22: 9 | U22: =SUM(U18:U21) -> 0.5 | V22: =SUM(V18:V21) -> 0.5
B23: 6 | C23: EBITA / Interest | D23: 0.15 | E23: 0.15 | F23: =names!M12 -> EBITA/INT_EXP | G23: 1 | H23: x.x | I23: 25 | J23: 15 | K23: 10 | L23: 5 | M23: 2.5 | N23: 1.5 | O23: 0.75
B24: 7 | C24: RCF / Debt | D24: 0.1 | E24: 0.1 | F24: =names!M17 -> RCF/DEBT | G24: 1 | H24: % | I24: 0.7 | J24: 0.5 | K24: 0.35 | L24: 0.225 | M24: 0.125 | N24: 0.05 | O24: 0
D25: =SUM(D18:D24) -> 0.7 | E25: =SUM(E18:E24) -> 0.7
B26: Qualitative overlay | G26: Methodology objects | S26: Qualitative overlay
B28: # | C28: Factor | D28: weight | E28: =E17 -> weight adjusted | G28: Name | K28: Object | S28: # | T28: Factor | U28: weight | V28: =V17 -> weight adjusted
B29: 1 | C29: Business Profile | D29: 0.15 | E29: =D29 -> 0.15 | S29: 1 | T29: Market Diversification | U29: 0.1 | V29: =U29 -> 0.1
B30: =B29+1 -> 2 | C30: Financial Policy | D30: 0.15 | E30: =D30 -> 0.15 | S30: =S29+1 -> 2 | T30: Hedging and Intergration Impact on Cash Flow Predictability | U30: 0.05 | V30: =U30 -> 0.05
D31: =SUM(D29:D30) -> 0.3 | E31: =SUM(E29:E30) -> 0.3 | G31: Moody's CRA model | K31: =_xll.AC.finance.cra.model(B13, C18:P24, C29:E30, $B$7, $B$10) -> jeconkr.finance.FSTP.cra.ModelCRA@Thu, 15 Feb 2018 05:04:37:856..332424736160870626 | S31: =S30+1 -> 3 | T31: Market Framework & Positioning | U31: 0.1 | V31: 0.1
S32: 4 | T32: Capital Requirements and Operational Performance | U32: 0.05 | V32: 0.05
S33: 5 | T33: Business Mix Impact on Cash Flow Predictability | U33: 0.1 | V33: 0.1
S34: 6 | T34: Financial Policy | U34: 0.1 | V34: =U34 -> 0.1
U35: =SUM(U29:U34) -> 0.5 | V35: =SUM(V29:V34) -> 0.5 | X35: Moody's CRA model | AB35: =_xll.AC.finance.cra.model(S13, T18:AF21, T29:V34, $B$7, $B$10) -> jeconkr.finance.FSTP.cra.ModelCRA@Thu, 15 Feb 2018 05:04:37:857..3770334199112215231

Sheet test
B2: TAB: TESTING
B4: ='accounts<'!N4 -> account-levels | E4: ='accounts<'!D4 -> java.util.LinkedHashMap@Thu, 15 Feb 2018 05:04:36:487..8718910813228316133 | L4: account-levels | O4: =E4 -> java.util.LinkedHashMap@Thu, 15 Feb 2018 05:04:36:487..8718910813228316133
B5: Financial statement | E5: =_xll.AC.finance.fs.get(calc!C20, config!B6, _xll.AC.data.map(B4, E4)) -> 0 | H5: =_xll.AC.data.size(E5, 1) -> -1 | I5: =_xll.AC.data.size(E5, 2) -> -1 | L5: Financial statement | O5: =_xll.AC.finance.fs.get(calc!C21, config!B6, _xll.AC.data.map(B4, E4)) -> 0 | R5: =_xll.AC.data.size(O5, 1) -> -1 | S5: =_xll.AC.data.size(O5, 2) -> -1
B7: # | C7: =_xll.AC.data._get(E5, "", 0) -> 0 | D7: 0 | E7: 0 | F7: 0 | G7: 0 | H7: 0 | I7: 0 | L7: # | M7: =_xll.AC.data._get(O5, "", 0) -> 0 | N7: 0 | O7: 0 | P7: 0 | Q7: 0 | R7: 0 | S7: 0 | T7: 0
B8: 1 | C8: 0 | D8: 0 | E8: 0 | F8: 0 | G8: 0 | H8: 0 | I8: 0 | L8: 1 | M8: 0 | N8: 0 | O8: 0 | P8: 0 | Q8: 0 | R8: 0 | S8: 0 | T8: 0
B9: =IF(C9="", "", B8+1) -> 2 | C9: 0 | D9: 0 | E9: 0 | F9: 0 | G9: 0 | H9: 0 | I9: 0 | L9: =IF(M9="", "", L8+1) -> 2 | M9: 0 | N9: 0 | O9: 0 | P9: 0 | Q9: 0 | R9: 0 | S9: 0 | T9: 0
B10: =IF(C10="", "", B9+1) -> 3 | C10: 0 | D10: 0 | E10: 0 | F10: 0 | G10: 0 | H10: 0 | I10: 0 | L10: =IF(M10="", "", L9+1) -> 3 | M10: 0 | N10: 0 | O10: 0 | P10: 0 | Q10: 0 | R10: 0 | S10: 0 | T10: 0
B11: 4 | C11: 0 | D11: 0 | E11: 0 | F11: 0 | G11: 0 | H11: 0 | I11: 0 | L11: 4 | M11: 0 | N11: 0 | O11: 0 | P11: 0 | Q11: 0 | R11: 0 | S11: 0 | T11: 0
B12: 5 | C12: 0 | D12: 0 | E12: 0 | F12: 0 | G12: 0 | H12: 0 | I12: 0 | L12: 5 | M12: 0 | N12: 0 | O12: 0 | P12: 0 | Q12: 0 | R12: 0 | S12: 0 | T12: 0
B13: 6 | C13: 0 | D13: 0 | E13: 0 | F13: 0 | G13: 0 | H13: 0 | I13: 0 | L13: 6 | M13: 0 | N13: 0 | O13: 0 | P13: 0 | Q13: 0 | R13: 0 | S13: 0 | T13: 0
B14: 7 | C14: 0 | D14: 0 | E14: 0 | F14: 0 | G14: 0 | H14: 0 | I14: 0 | L14: 7 | M14: 0 | N14: 0 | O14: 0 | P14: 0 | Q14: 0 | R14: 0 | S14: 0 | T14: 0
B15: 8 | C15: 0 | D15: 0 | E15: 0 | F15: 0 | G15: 0 | H15: 0 | I15: 0 | L15: 8 | M15: 0 | N15: 0 | O15: 0 | P15: 0 | Q15: 0 | R15: 0 | S15: 0 | T15: 0
B16: 9 | C16: 0 | D16: 0 | E16: 0 | F16: 0 | G16: 0 | H16: 0 | I16: 0 | L16: 9 | M16: 0 | N16: 0 | O16: 0 | P16: 0 | Q16: 0 | R16: 0 | S16: 0 | T16: 0
B17: 10 | C17: 0 | D17: 0 | E17: 0 | F17: 0 | G17: 0 | H17: 0 | I17: 0 | L17: 10 | M17: 0 | N17: 0 | O17: 0 | P17: 0 | Q17: 0 | R17: 0 | S17: 0 | T17: 0
B18: 11 | C18: 0 | D18: 0 | E18: 0 | F18: 0 | G18: 0 | H18: 0 | I18: 0 | L18: 11 | M18: 0 | N18: 0 | O18: 0 | P18: 0 | Q18: 0 | R18: 0 | S18: 0 | T18: 0
B19: 12 | C19: 0 | D19: 0 | E19: 0 | F19: 0 | G19: 0 | H19: 0 | I19: 0 | L19: 12 | M19: 0 | N19: 0 | O19: 0 | P19: 0 | Q19: 0 | R19: 0 | S19: 0 | T19: 0
B20: 13 | C20: 0 | D20: 0 | E20: 0 | F20: 0 | G20: 0 | H20: 0 | I20: 0 | L20: 13 | M20: 0 | N20: 0 | O20: 0 | P20: 0 | Q20: 0 | R20: 0 | S20: 0 | T20: 0
B21: 14 | C21: 0 | D21: 0 | E21: 0 | F21: 0 | G21: 0 | H21: 0 | I21: 0 | L21: 14 | M21: 0 | N21: 0 | O21: 0 | P21: 0 | Q21: 0 | R21: 0 | S21: 0 | T21: 0
B22: 15 | C22: 0 | D22: 0 | E22: 0 | F22: 0 | G22: 0 | H22: 0 | I22: 0 | L22: 15 | M22: 0 | N22: 0 | O22: 0 | P22: 0 | Q22: 0 | R22: 0 | S22: 0 | T22: 0
B23: 16 | C23: 0 | D23: 0 | E23: 0 | F23: 0 | G23: 0 | H23: 0 | I23: 0 | L23: 16 | M23: 0 | N23: 0 | O23: 0 | P23: 0 | Q23: 0 | R23: 0 | S23: 0 | T23: 0
B24: 17 | C24: 0 | D24: 0 | E24: 0 | F24: 0 | G24: 0 | H24: 0 | I24: 0 | L24: 17 | M24: 0 | N24: 0 | O24: 0 | P24: 0 | Q24: 0 | R24: 0 | S24: 0 | T24: 0
B25: 18 | C25: 0 | D25: 0 | E25: 0 | F25: 0 | G25: 0 | H25: 0 | I25: 0 | L25: 18 | M25: 0 | N25: 0 | O25: 0 | P25: 0 | Q25: 0 | R25: 0 | S25: 0 | T25: 0
B26: 19 | C26: 0 | D26: 0 | E26: 0 | F26: 0 | G26: 0 | H26: 0 | I26: 0 | L26: 19 | M26: 0 | N26: 0 | O26: 0 | P26: 0 | Q26: 0 | R26: 0 | S26: 0 | T26: 0
B27: 20 | C27: 0 | D27: 0 | E27: 0 | F27: 0 | G27: 0 | H27: 0 | I27: 0 | L27: 20 | M27: 0 | N27: 0 | O27: 0 | P27: 0 | Q27: 0 | R27: 0 | S27: 0 | T27: 0
B28: 21 | C28: 0 | D28: 0 | E28: 0 | F28: 0 | G28: 0 | H28: 0 | I28: 0 | L28: 21 | M28: 0 | N28: 0 | O28: 0 | P28: 0 | Q28: 0 | R28: 0 | S28: 0 | T28: 0
B29: 22 | C29: 0 | D29: 0 | E29: 0 | F29: 0 | G29: 0 | H29: 0 | I29: 0 | L29: 22 | M29: 0 | N29: 0 | O29: 0 | P29: 0 | Q29: 0 | R29: 0 | S29: 0 | T29: 0
B30: 23 | C30: 0 | D30: 0 | E30: 0 | F30: 0 | G30: 0 | H30: 0 | I30: 0 | L30: 23 | M30: 0 | N30: 0 | O30: 0 | P30: 0 | Q30: 0 | R30: 0 | S30: 0 | T30: 0
B31: 24 | C31: 0 | D31: 0 | E31: 0 | F31: 0 | G31: 0 | H31: 0 | I31: 0 | L31: 24 | M31: 0 | N31: 0 | O31: 0 | P31: 0 | Q31: 0 | R31: 0 | S31: 0 | T31: 0
B32: 25 | C32: 0 | D32: 0 | E32: 0 | F32: 0 | G32: 0 | H32: 0 | I32: 0 | L32: 25 | M32: 0 | N32: 0 | O32: 0 | P32: 0 | Q32: 0 | R32: 0 | S32: 0 | T32: 0
B33: 26 | C33: 0 | D33: 0 | E33: 0 | F33: 0 | G33: 0 | H33: 0 | I33: 0 | L33: 26 | M33: 0 | N33: 0 | O33: 0 | P33: 0 | Q33: 0 | R33: 0 | S33: 0 | T33: 0
B34: 27 | C34: 0 | D34: 0 | E34: 0 | F34: 0 | G34: 0 | H34: 0 | I34: 0 | L34: 27 | M34: 0 | N34: 0 | O34: 0 | P34: 0 | Q34: 0 | R34: 0 | S34: 0 | T34: 0
B35: 28 | C35: 0 | D35: 0 | E35: 0 | F35: 0 | G35: 0 | H35: 0 | I35: 0 | L35: 28 | M35: 0 | N35: 0 | O35: 0 | P35: 0 | Q35: 0 | R35: 0 | S35: 0 | T35: 0
B36: 29 | C36: 0 | D36: 0 | E36: 0 | F36: 0 | G36: 0 | H36: 0 | I36: 0 | L36: 29 | M36: 0 | N36: 0 | O36: 0 | P36: 0 | Q36: 0 | R36: 0 | S36: 0 | T36: 0
B37: 30 | C37: 0 | D37: 0 | E37: 0 | F37: 0 | G37: 0 | H37: 0 | I37: 0 | L37: 30 | M37: 0 | N37: 0 | O37: 0 | P37: 0 | Q37: 0 | R37: 0 | S37: 0 | T37: 0
B38: 31 | C38: 0 | D38: 0 | E38: 0 | F38: 0 | G38: 0 | H38: 0 | I38: 0 | L38: 31 | M38: 0 | N38: 0 | O38: 0 | P38: 0 | Q38: 0 | R38: 0 | S38: 0 | T38: 0
B39: 32 | C39: 0 | D39: 0 | E39: 0 | F39: 0 | G39: 0 | H39: 0 | I39: 0 | L39: 32 | M39: 0 | N39: 0 | O39: 0 | P39: 0 | Q39: 0 | R39: 0 | S39: 0 | T39: 0
B40: 33 | C40: 0 | D40: 0 | E40: 0 | F40: 0 | G40: 0 | H40: 0 | I40: 0 | L40: 33 | M40: 0 | N40: 0 | O40: 0 | P40: 0 | Q40: 0 | R40: 0 | S40: 0 | T40: 0
B41: 34 | C41: 0 | D41: 0 | E41: 0 | F41: 0 | G41: 0 | H41: 0 | I41: 0 | L41: 34 | M41: 0 | N41: 0 | O41: 0 | P41: 0 | Q41: 0 | R41: 0 | S41: 0 | T41: 0
B42: 35 | C42: 0 | D42: 0 | E42: 0 | F42: 0 | G42: 0 | H42: 0 | I42: 0 | L42: 35 | M42: 0 | N42: 0 | O42: 0 | P42: 0 | Q42: 0 | R42: 0 | S42: 0 | T42: 0
B43: 36 | C43: 0 | D43: 0 | E43: 0 | F43: 0 | G43: 0 | H43: 0 | I43: 0 | L43: 36 | M43: 0 | N43: 0 | O43: 0 | P43: 0 | Q43: 0 | R43: 0 | S43: 0 | T43: 0
B44: 37 | C44: 0 | D44: 0 | E44: 0 | F44: 0 | G44: 0 | H44: 0 | I44: 0 | L44: 37 | M44: 0 | N44: 0 | O44: 0 | P44: 0 | Q44: 0 | R44: 0 | S44: 0 | T44: 0
B45: 38 | C45: 0 | D45: 0 | E45: 0 | F45: 0 | G45: 0 | H45: 0 | I45: 0 | L45: 38 | M45: 0 | N45: 0 | O45: 0 | P45: 0 | Q45: 0 | R45: 0 | S45: 0 | T45: 0
B46: 39 | C46: 0 | D46: 0 | E46: 0 | F46: 0 | G46: 0 | H46: 0 | I46: 0 | L46: 39 | M46: 0 | N46: 0 | O46: 0 | P46: 0 | Q46: 0 | R46: 0 | S46: 0 | T46: 0
B47: 40 | C47: 0 | D47: 0 | E47: 0 | F47: 0 | G47: 0 | H47: 0 | I47: 0 | L47: 40 | M47: 0 | N47: 0 | O47: 0 | P47: 0 | Q47: 0 | R47: 0 | S47: 0 | T47: 0
B48: 41 | C48: 0 | D48: 0 | E48: 0 | F48: 0 | G48: 0 | H48: 0 | I48: 0 | L48: 41 | M48: 0 | N48: 0 | O48: 0 | P48: 0 | Q48: 0 | R48: 0 | S48: 0 | T48: 0
B49: 42 | C49: 0 | D49: 0 | E49: 0 | F49: 0 | G49: 0 | H49: 0 | I49: 0 | L49: 42 | M49: 0 | N49: 0 | O49: 0 | P49: 0 | Q49: 0 | R49: 0 | S49: 0 | T49: 0
B50: 43 | C50: 0 | D50: 0 | E50: 0 | F50: 0 | G50: 0 | H50: 0 | I50: 0 | L50: 43 | M50: 0 | N50: 0 | O50: 0 | P50: 0 | Q50: 0 | R50: 0 | S50: 0 | T50: 0
B51: 44 | C51: 0 | D51: 0 | E51: 0 | F51: 0 | G51: 0 | H51: 0 | I51: 0 | L51: 44 | M51: 0 | N51: 0 | O51: 0 | P51: 0 | Q51: 0 | R51: 0 | S51: 0 | T51: 0
B52: 45 | C52: 0 | D52: 0 | E52: 0 | F52: 0 | G52: 0 | H52: 0 | I52: 0 | L52: 45 | M52: 0 | N52: 0 | O52: 0 | P52: 0 | Q52: 0 | R52: 0 | S52: 0 | T52: 0
B53: 46 | C53: 0 | D53: 0 | E53: 0 | F53: 0 | G53: 0 | H53: 0 | I53: 0 | L53: 46 | M53: 0 | N53: 0 | O53: 0 | P53: 0 | Q53: 0 | R53: 0 | S53: 0 | T53: 0
B54: 47 | C54: 0 | D54: 0 | E54: 0 | F54: 0 | G54: 0 | H54: 0 | I54: 0 | L54: 47 | M54: 0 | N54: 0 | O54: 0 | P54: 0 | Q54: 0 | R54: 0 | S54: 0 | T54: 0
L55: 48 | M55: 0 | N55: 0 | O55: 0 | P55: 0 | Q55: 0 | R55: 0 | S55: 0 | T55: 0
L56: 49 | M56: 0 | N56: 0 | O56: 0 | P56: 0 | Q56: 0 | R56: 0 | S56: 0 | T56: 0
L57: 50 | M57: 0 | N57: 0 | O57: 0 | P57: 0 | Q57: 0 | R57: 0 | S57: 0 | T57: 0
L58: 51 | M58: 0 | N58: 0 | O58: 0 | P58: 0 | Q58: 0 | R58: 0 | S58: 0 | T58: 0
L59: 52 | M59: 0 | N59: 0 | O59: 0 | P59: 0 | Q59: 0 | R59: 0 | S59: 0 | T59: 0
L60: 53 | M60: 0 | N60: 0 | O60: 0 | P60: 0 | Q60: 0 | R60: 0 | S60: 0 | T60: 0
L61: 54 | M61: 0 | N61: 0 | O61: 0 | P61: 0 | Q61: 0 | R61: 0 | S61: 0 | T61: 0
L62: 55 | M62: 0 | N62: 0 | O62: 0 | P62: 0 | Q62: 0 | R62: 0 | S62: 0 | T62: 0
L63: 56 | M63: 0 | N63: 0 | O63: 0 | P63: 0 | Q63: 0 | R63: 0 | S63: 0 | T63: 0
L64: 57 | M64: 0 | N64: 0 | O64: 0 | P64: 0 | Q64: 0 | R64: 0 | S64: 0 | T64: 0
L65: 58 | M65: 0 | N65: 0 | O65: 0 | P65: 0 | Q65: 0 | R65: 0 | S65: 0 | T65: 0
L66: 59 | M66: 0 | N66: 0 | O66: 0 | P66: 0 | Q66: 0 | R66: 0 | S66: 0 | T66: 0
L67: 60 | M67: 0 | N67: 0 | O67: 0 | P67: 0 | Q67: 0 | R67: 0 | S67: 0 | T67: 0
L68: 61 | M68: 0 | N68: 0 | O68: 0 | P68: 0 | Q68: 0 | R68: 0 | S68: 0 | T68: 0
L69: 62 | M69: 0 | N69: 0 | O69: 0 | P69: 0 | Q69: 0 | R69: 0 | S69: 0 | T69: 0
L70: 63 | M70: 0 | N70: 0 | O70: 0 | P70: 0 | Q70: 0 | R70: 0 | S70: 0 | T70: 0
L71: 64 | M71: 0 | N71: 0 | O71: 0 | P71: 0 | Q71: 0 | R71: 0 | S71: 0 | T71: 0
L72: 65 | M72: 0 | N72: 0 | O72: 0 | P72: 0 | Q72: 0 | R72: 0 | S72: 0 | T72: 0
L73: 66 | M73: 0 | N73: 0 | O73: 0 | P73: 0 | Q73: 0 | R73: 0 | S73: 0 | T73: 0
B74: =IF(C74="", "", B73+1) ->  | L74: =IF(M74="", "", L73+1) -> 67 | M74: 0 | N74: 0 | O74: 0 | P74: 0 | Q74: 0 | R74: 0 | S74: 0 | T74: 0
L75: 68 | M75: 0 | N75: 0 | O75: 0 | P75: 0 | Q75: 0 | R75: 0 | S75: 0 | T75: 0
L76: 69 | M76: 0 | N76: 0 | O76: 0 | P76: 0 | Q76: 0 | R76: 0 | S76: 0 | T76: 0
L77: 70 | M77: 0 | N77: 0 | O77: 0 | P77: 0 | Q77: 0 | R77: 0 | S77: 0 | T77: 0
L78: 71 | M78: 0 | N78: 0 | O78: 0 | P78: 0 | Q78: 0 | R78: 0 | S78: 0 | T78: 0
L79: 72 | M79: 0 | N79: 0 | O79: 0 | P79: 0 | Q79: 0 | R79: 0 | S79: 0 | T79: 0
L80: 73 | M80: 0 | N80: 0 | O80: 0 | P80: 0 | Q80: 0 | R80: 0 | S80: 0 | T80: 0

Sheet <JE
B2: Just Energy Group Inc | F2: epsilon | G2: 0.4 | T2: Just Energy Group Inc | AI2: Just Energy Group Inc
B3: Annual Balance Sheet | T3: Annual Income Statement | AI3: Annual Cash Flows
B4: [Standardized in USD Millions] | T4: [Standardized in USD Millions] | AI4: [Standardized in USD Millions]
I6: 31-Mar-2017 | J6: 31-Mar-2016 | K6: 31-Mar-2015 | L6: 31-Mar-2014 | M6: 31-Mar-2013 | N6: 31-Mar-2012 | O6: 31-Mar-2011 | P6: 31-Mar-2010 | Q6: 31-Mar-2009 | R6: 31-Mar-2008 | X6: 31-Mar-2017 | Y6: 31-Mar-2016 | Z6: 31-Mar-2015 | AA6: 31-Mar-2014 | AB6: 31-Mar-2013 | AC6: 31-Mar-2012 | AD6: 31-Mar-2011 | AE6: 31-Mar-2010 | AF6: 31-Mar-2009 | AG6: 31-Mar-2008 | AJ6: 31-Mar-2017 | AK6: 31-Mar-2016 | AL6: 31-Mar-2015 | AM6: 31-Mar-2014 | AN6: 31-Mar-2013 | AO6: 31-Mar-2012 | AP6: 31-Mar-2011 | AQ6: 31-Mar-2010 | AR6: 31-Mar-2009 | AS6: 31-Mar-2008
B7: UpdateDate | I7: Filed 31-May-2017 | J7: Filed 31-May-2017 | K7: Filed 02-Jun-2016 | L7: Filed 02-Jun-2015 | M7: Filed 04-Jun-2014 | N7: Filed 31-May-2013 | O7: Filed 26-Jun-2012 | P7: Filed 03-Jun-2011 | Q7: Filed 02-Jun-2010 | R7: Filed 31-Mar-2009 | T7: Period Length | X7: 12 Months | Y7: 12 Months | Z7: 12 Months | AA7: 12 Months | AB7: 12 Months | AC7: 12 Months | AD7: 12 Months | AE7: 12 Months | AF7: 12 Months | AG7: 12 Months | AI7: Period Length | AJ7: 12 Months | AK7: 12 Months | AL7: 12 Months | AM7: 12 Months | AN7: 12 Months | AO7: 12 Months | AP7: 12 Months | AQ7: 12 Months | AR7: 12 Months | AS7: 12 Months
B8: Filed Currency | I8: CAD | J8: CAD | K8: CAD | L8: CAD | M8: CAD | N8: CAD | O8: CAD | P8: CAD | Q8: CAD | R8: CAD | T8: UpdateDate | X8: Filed 31-May-2017 | Y8: Filed 31-May-2017 | Z8: Filed 02-Jun-2016 | AA8: Filed 02-Jun-2015 | AB8: Filed 04-Jun-2014 | AC8: Filed 31-May-2013 | AD8: Filed 26-Jun-2012 | AE8: Filed 03-Jun-2011 | AF8: Filed 02-Jun-2010 | AG8: Filed 31-Mar-2009 | AI8: UpdateDate | AJ8: Filed 31-May-2017 | AK8: Filed 31-May-2017 | AL8: Filed 02-Jun-2016 | AM8: Filed 02-Jun-2015 | AN8: Filed 04-Jun-2014 | AO8: Filed 31-May-2013 | AP8: Filed 26-Jun-2012 | AQ8: Filed 03-Jun-2011 | AR8: Filed 02-Jun-2010 | AS8: Filed 31-Mar-2009
B9: Exchange Rate | I9: 1.329094 | J9: 1.29853 | K9: 1.269025 | L9: 1.106072 | M9: 1.016418 | N9: 0.998222 | O9: 0.97275 | P9: 1.01455 | Q9: 1.25815 | R9: 1.02605 | T9: Filed Currency | X9: CAD | Y9: CAD | Z9: CAD | AA9: CAD | AB9: CAD | AC9: CAD | AD9: CAD | AE9: CAD | AF9: CAD | AG9: CAD | AI9: Filed Currency | AJ9: CAD | AK9: CAD | AL9: CAD | AM9: CAD | AN9: CAD | AO9: CAD | AP9: CAD | AQ9: CAD | AR9: CAD | AS9: CAD
B10: Auditor | I10: Ernst & Young LLP | J10: Ernst & Young LLP | K10: Ernst & Young LLP | M10: Ernst & Young LLP | N10: Ernst & Young LLP | O10: Ernst & Young LLP | P10: KPMG LLP | Q10: Chartered Accountants, Licensed Public Accountants | T10: Exchange Rate (Period Average) | X10: 1.312401 | Y10: 1.311114 | Z10: 1.137363 | AA10: 1.052911 | AB10: 1.001154 | AC10: 0.993044 | AD10: 1.01687 | AE10: 1.090827 | AF10: 1.126447 | AG10: 1.032316 | AI10: Exchange Rate (Period Average) | AJ10: 1.312401 | AK10: 1.311114 | AL10: 1.137363 | AM10: 1.052911 | AN10: 1.001154 | AO10: 0.993044 | AP10: 1.01687 | AQ10: 1.090827 | AR10: 1.126447 | AS10: 1.032316
A11: # | B11: Auditor Opinion | C11: level | D11: multiplier | E11: Mapped account | I11: Unqualified | J11: Unqualified | K11: Unqualified | M11: Unqualified | N11: Unqualified | O11: Unqualified | P11: Unqualified | Q11: Unqualified | T11: Auditor | U11: level | V11: multiplier | W11: Mapped account | X11: Ernst & Young LLP | Y11: Ernst & Young LLP | Z11: Ernst & Young LLP | AB11: Ernst & Young LLP | AC11: Ernst & Young LLP | AD11: Ernst & Young LLP | AE11: KPMG LLP | AF11: Chartered Accountants, Licensed Public Accountants | AI11: Auditor | AJ11: Ernst & Young LLP | AK11: Ernst & Young LLP | AL11: Ernst & Young LLP | AN11: Ernst & Young LLP | AO11: Ernst & Young LLP | AP11: Ernst & Young LLP | AQ11: KPMG LLP | AR11: Chartered Accountants, Licensed Public Accountants
T12: Auditor Opinion | X12: Unqualified | Y12: Unqualified | Z12: Unqualified | AB12: Unqualified | AC12: Unqualified | AD12: Unqualified | AE12: Unqualified | AF12: Unqualified | AI12: Auditor Opinion | AJ12: Unqualified | AK12: Unqualified | AL12: Unqualified | AN12: Unqualified | AO12: Unqualified | AP12: Unqualified | AQ12: Unqualified | AR12: Unqualified
A13: 0 | B13: Cash | C13: -1 | D13: 1 | F13: =_xll.AC.finance.fs.match(B13:B91, I13:R91,,,G2) -> d | I13: - | J13: - | K13: - | L13: - | M13: - | N13: - | O13: - | P13: 59.3 | Q13: 47 | R13: -
A14: =A13+1 -> 1 | B14: Cash and Cash Equivalents | C14: -1 | D14: 1 | F14: -1 | I14: 43.2 | J14: 98.3 | K14: 62.1 | L14: 18.4 | M14: 37.9 | N14: 53.3 | O14: 100.4 | P14: 59.3 | Q14: 47 | R14: 26.6 | T14: Other Operating Revenue | X14: 2862.7 | Y14: 3131.6 | Z14: 3425.4 | AA14: - | AB14: 3007.7 | AC14: - | AD14: 2904.2 | AE14: 2107.8 | AF14: 1686 | AG14: 1684.3 | AI14: Net Income | AJ14: - | AK14: - | AL14: - | AM14: - | AN14: - | AO14: - | AP14: - | AQ14: 212.2 | AR14: -983.2 | AS14: 148
A15: =A14+1 -> 2 | B15: Short-Term Investments | C15: -1 | D15: 1 | F15: -1 | I15: 19.8 | J15: - | K15: 3.8 | L15: 93.6 | M15: 32.5 | N15: - | O15: - | P15: - | Q15: - | R15: - | T15: Operating Revenue | X15: 2862.7 | Y15: 3131.6 | Z15: 3425.4 | AA15: 3357 | AB15: 3007.7 | AC15: 2673.4 | AD15: 2904.2 | AE15: 2107.8 | AF15: 1686 | AG15: 1684.3 | AI15: Discontinued Operations | AJ15: - | AK15: - | AL15: 116.6 | AM15: -31.9 | AN15: -71.2 | AO15: 1.8 | AP15: - | AQ15: - | AR15: - | AS15: -
A16: 3 | B16: Cash, Cash Equivalents and Short-Term Investments | C16: 0 | D16: 1 | E16: =names!C9 -> CASH | F16: 0 | I16: 62.9 | J16: 98.3 | K16: 65.9 | L16: 112 | M16: 70.3 | N16: 53.3 | O16: 100.4 | P16: 59.3 | Q16: 47 | R16: 26.6 | T16: Total Revenue | U16: 0 | V16: 1 | W16: =names!C50 -> REV | X16: 2862.7 | Y16: 3131.6 | Z16: 3425.4 | AA16: 3357 | AB16: 3007.7 | AC16: 2673.4 | AD16: 2904.2 | AE16: 2107.8 | AF16: 1686 | AG16: 1684.3 | AI16: Net Income from Continuing Operations | AJ16: - | AK16: - | AL16: - | AM16: - | AN16: - | AO16: - | AP16: - | AQ16: 212.2 | AR16: -983.2 | AS16: 148
A17: 4 | B17: Accounts Receivable, Net | C17: -1 | D17: 1 | F17: -1 | I17: 216.9 | J17: 231.5 | K17: 296.1 | L17: - | M17: - | N17: - | O17: 289.6 | P17: 229.2 | Q17: 198.3 | R17: 202.5 | AI17: Depreciation | AJ17: 5 | AK17: 2.8 | AL17: 3.1 | AM17: 3.9 | AN17: 4.4 | AO17: 4.6 | AP17: 5.6 | AQ17: 5 | AR17: 4.5 | AS17: 5
A18: 5 | B18: Unbilled Receivables | C18: -1 | D18: 1 | F18: -1 | I18: 164.3 | J18: 175.1 | K18: 173.1 | L18: 154.3 | M18: 127.1 | N18: 131 | O18: 115.3 | P18: 73 | Q18: 45.9 | R18: 46.1 | T18: Cost of Revenue | U18: 0 | V18: -1 | W18: =names!C54 -> COGS | X18: 2332.4 | Y18: 2595.9 | Z18: 2897.8 | AA18: 2876.9 | AB18: 2484.2 | AC18: 2170.2 | AD18: 2430.6 | AE18: 1727 | AF18: 1399.4 | AG18: 1418.1 | AI18: Amortization of Intangibles | AJ18: 12.1 | AK18: 27.8 | AL18: 36.8 | AM18: 45.6 | AN18: 86.2 | AO18: 123.1 | AP18: 131.1 | AQ18: 55.9 | AR18: 3.2 | AS18: 7.3
A19: 6 | B19: Taxes Receivable | C19: -1 | D19: 1 | F19: -1 | I19: 2.2 | J19: 7.8 | K19: 10.3 | L19: 8.8 | M19: 9.6 | N19: 8.2 | O19: 9.4 | P19: - | Q19: - | R19: 2.6 | T19: Gross Profit | X19: 530.3 | Y19: 535.6 | Z19: 527.6 | AA19: 480.1 | AB19: 523.5 | AC19: 503.2 | AD19: 473.6 | AE19: 380.8 | AF19: 286.6 | AG19: 266.2 | AI19: Amortization | AJ19: 12.1 | AK19: 27.8 | AL19: 36.8 | AM19: 45.6 | AN19: 95.4 | AO19: 123.1 | AP19: 131.1 | AQ19: 55.9 | AR19: 3.2 | AS19: 7.3
A20: 7 | B20: Other Receivables | C20: -1 | D20: 1 | F20: -1 | I20: 61.1 | J20: 57.9 | K20: 102.2 | L20: 430 | M20: 343.9 | N20: 297.7 | O20: 27.3 | P20: 20.5 | Q20: - | R20: - | AI20: Depreciation and Amortization | AJ20: 17.2 | AK20: 30.6 | AL20: 39.9 | AM20: 49.5 | AN20: 99.8 | AO20: 127.7 | AP20: 136.7 | AQ20: 60.9 | AR20: 7.7 | AS20: 12.3
A21: 8 | B21: Total Receivables | C21: 0 | D21: 1 | E21: =names!C10 -> AR | F21: 0 | I21: 444.6 | J21: 472.3 | K21: 581.6 | L21: 593.1 | M21: 480.6 | N21: 437 | O21: 441.5 | P21: 322.7 | Q21: 244.2 | R21: 251.2 | T21: Wages and Salaries | U21: 0 | V21: -1 | W21: =names!C59 -> SGA | X21: 4.6 | Y21: 4.1 | Z21: 6.3 | AA21: 1.5 | AB21: 11.9 | AC21: 10.7 | AD21: 9.7 | AE21: 4.4 | AF21: 3.6 | AG21: 3 | AI21: Depreciation, Amortization and Depletion | AJ21: 17.2 | AK21: 30.6 | AL21: 39.9 | AM21: 49.5 | AN21: 99.8 | AO21: 127.7 | AP21: 136.7 | AQ21: 60.9 | AR21: 7.7 | AS21: 12.3
A22: 9 | B22: Fuel and Natural Gas | C22: -1 | D22: 1 | F22: -1 | I22: 11.7 | J22: 7.2 | K22: 4.9 | L22: 2.2 | M22: 16 | N22: 24.3 | O22: 9.9 | P22: 11.3 | Q22: 5.3 | R22: 4.2 | T22: General and Administrative Expense | U22: -1 | V22: 1 | X22: 133 | Y22: 134 | Z22: 141.9 | AA22: 112.4 | AB22: 149.1 | AC22: 126.8 | AD22: 117.3 | AE22: 85.4 | AF22: 56.5 | AG22: 53 | AI22: Deferred Income Tax | AJ22: - | AK22: - | AL22: - | AM22: - | AN22: - | AO22: - | AP22: - | AQ22: -111.9 | AR22: -56.9 | AS22: -18.1
A23: 10 | B23: Materials and Supplies | C23: -1 | D23: 1 | F23: -1 | I23: - | J23: - | K23: - | L23: - | M23: - | N23: 1.2 | O23: 2.3 | P23: 2.3 | Q23: - | R23: - | T23: Marketing Expense | U23: -1 | V23: 1 | X23: - | Y23: - | Z23: - | AA23: - | AB23: - | AC23: - | AD23: - | AE23: 87.8 | AF23: 60.4 | AG23: 54.4 | AI23: Deferred Taxes | AJ23: - | AK23: - | AL23: - | AM23: - | AN23: - | AO23: - | AP23: - | AQ23: -111.9 | AR23: -56.9 | AS23: -18.1
A24: 11 | B24: Inventories - Other | C24: -1 | D24: 1 | F24: -1 | I24: - | J24: - | K24: - | L24: 8.3 | M24: 6 | N24: 8.8 | O24: - | P24: 4 | Q24: 0.2 | R24: - | T24: Selling and Marketing | U24: -1 | V24: 1 | X24: 172.4 | Y24: 196.3 | Z24: 198 | AA24: 180.3 | AB24: 220.2 | AC24: 178.5 | AD24: 131.4 | AE24: 87.8 | AF24: 60.4 | AG24: 54.4 | AI24: Amortization of Securities | AJ24: 2.3 | AK24: 1.9 | AL24: 26.9 | AM24: 16.5 | AN24: 17.4 | AO24: 6.8 | AP24: 9.7 | AQ24: - | AR24: - | AS24: -
A25: 12 | B25: Total Inventory | C25: 0 | D25: 1 | E25: =names!C12 -> INV | F25: 0 | I25: 11.7 | J25: 7.2 | K25: 4.9 | L25: 10.5 | M25: 22 | N25: 34.3 | O25: 12.2 | P25: 17.5 | Q25: 5.5 | R25: 4.2 | T25: Selling, General and Administrative Expenses | U25: 0 | V25: -1 | W25: =names!C59 -> SGA | X25: 305.4 | Y25: 330.3 | Z25: 339.9 | AA25: 292.7 | AB25: 369.4 | AC25: 305.4 | AD25: 248.7 | AE25: 173.2 | AF25: 117 | AG25: 107.4 | AI25: Unrealized Gain (Loss) on Investment Securities | AJ25: -285.6 | AK25: 17.4 | AL25: 558.5 | AM25: -176.8 | AN25: -718.7 | AO25: - | AP25: - | AQ25: 1.2 | AR25: 1186.9 | AS25: 0.8
A26: 13 | B26: Prepaid Assets | C26: 0 | D26: 1 | E26: =names!C15 -> ASSETS_OTHER_WC_ST | F26: 0 | I26: 83.8 | J26: 88.3 | K26: 18 | L26: 19.6 | M26: 15.6 | N26: 9.5 | O26: 6.2 | P26: 19.8 | Q26: 1.6 | R26: 2.3 | T26: Depreciation | U26: 0 | V26: -1 | W26: =names!C58 -> DEPRECIATION | X26: 5 | Y26: 2.8 | Z26: 3.1 | AA26: 3.9 | AB26: 4.4 | AC26: 4.6 | AD26: - | AE26: 5 | AF26: 4.5 | AG26: 5 | AI26: Stock-Based Compensation | AJ26: 4.6 | AK26: 4.1 | AL26: 6.3 | AM26: 1.5 | AN26: 11.9 | AO26: 10.7 | AP26: 9.7 | AQ26: 4.4 | AR26: 3.6 | AS26: 3
A27: 14 | B27: Restricted Cash | C27: 0 | D27: 1 | E27: =names!C9 -> CASH | F27: 0 | I27: 2.7 | J27: 5.8 | K27: 13.8 | L27: 10.9 | M27: 13.1 | N27: 12.2 | O27: 0.9 | P27: 18.4 | Q27: 6 | R27: 4.6 | T27: Amortization of Intangibles | X27: 12.1 | Y27: 13 | Z27: 30.4 | AA27: 31.4 | AB27: 86.2 | AC27: 28.4 | AD27: - | AE27: 55.9 | AF27: 3.2 | AG27: 7.3 | AI27: Other Non-Cash Items | AJ27: -278.7 | AK27: 23.4 | AL27: 591.7 | AM27: -158.8 | AN27: -689.4 | AO27: 17.6 | AP27: 19.4 | AQ27: 5.5 | AR27: 1190.5 | AS27: 3.8
A28: 15 | B28: Deferred Taxes - Current Assets | F28: d | I28: - | J28: - | K28: - | L28: - | M28: - | N28: - | O28: - | P28: 28.7 | Q28: - | R28: - | T28: Amortization | U28: 0 | V28: -1 | W28: =names!C57 -> AMORTIZATION | X28: 12.1 | Y28: 13 | Z28: 36.8 | AA28: 31.4 | AB28: 86.2 | AC28: 28.4 | AD28: 124.4 | AE28: 55.9 | AF28: 3.2 | AG28: 7.3 | AI28: Accounts Receivable | AJ28: - | AK28: - | AL28: - | AM28: - | AN28: - | AO28: 13.5 | AP28: - | AQ28: - | AR28: -15.3 | AS28: -14.4
A29: 16 | B29: Current Deferred Assets | C29: 0 | D29: 1 | E29: =names!C14 -> TAX_RECEIV_ST | F29: 0 | I29: - | J29: - | K29: - | L29: - | M29: - | N29: - | O29: - | P29: 28.7 | Q29: - | R29: - | T29: Depreciation and Amortization | X29: 17.2 | Y29: 15.8 | Z29: 39.9 | AA29: 35.3 | AB29: 90.6 | AC29: 33 | AD29: 124.4 | AE29: 60.9 | AF29: 7.7 | AG29: 12.3 | AI29: Receivables | AJ29: 11.7 | AK29: 107.3 | AL29: -81.7 | AM29: -152.2 | AN29: -15 | AO29: 13.5 | AP29: - | AQ29: -55 | AR29: -15.3 | AS29: -14.4
A30: 17 | B30: Other Current Assets | C30: 0 | D30: 1 | E30: =E26 -> ASSETS_OTHER_WC_ST | F30: 0 | I30: 8.8 | J30: 3.8 | K30: - | L30: - | M30: 76.2 | N30: 12.8 | O30: 8.8 | P30: 2.7 | Q30: 4.4 | R30: 188.5 | T30: Depreciation, Amortization and Depletion | X30: 17.2 | Y30: 15.8 | Z30: 39.9 | AA30: 35.3 | AB30: 90.6 | AC30: 33 | AD30: 124.4 | AE30: 60.9 | AF30: 7.7 | AG30: 12.3 | AI30: Inventories | AJ30: -4.7 | AK30: -2.2 | AL30: -2.9 | AM30: 14.3 | AN30: -4.7 | AO30: -4.9 | AP30: - | AQ30: 2.2 | AR30: -1.3 | AS30: 1.6
A31: 18 | B31: Total Current Assets | C31: m | D31: 1 | E31: =names!G10 -> TOT_CURR_ASSETS | I31: 614.5 | J31: 675.8 | K31: 684.3 | L31: 746.1 | M31: 677.8 | N31: 559.2 | O31: 569.9 | P31: 469 | Q31: 308.8 | R31: 477.4 | T31: Amortization of Securities | U31: 0 | V31: -1 | W31: =names!C64 -> EXP_OTHER | X31: - | Y31: - | Z31: - | AA31: 14.2 | AB31: - | AC31: 80.6 | AD31: - | AE31: - | AF31: - | AG31: - | AI31: Prepaid Expenses | AJ31: 2.6 | AK31: -30.4 | AL31: -23.8 | AM31: -4.9 | AN31: -2.7 | AO31: 0.4 | AP31: - | AQ31: 23.7 | AR31: 0.3 | AS31: -0.1
A32: 19 | T32: Provision for Doubtful Accounts | U32: 0 | V32: -1 | W32: =W31 -> EXP_OTHER | X32: 42.7 | Y32: 52.3 | Z32: 54.6 | AA32: 43.7 | AB32: 30.8 | AC32: 28.7 | AD32: - | AE32: 16.4 | AF32: 12.3 | AG32: 6.7 | AI32: Taxes Payable | AJ32: - | AK32: - | AL32: - | AM32: - | AN32: - | AO32: - | AP32: - | AQ32: -7.6 | AR32: - | AS32: 1.6
A33: 20 | B33: Water Production | F33: d | I33: - | J33: - | K33: - | L33: - | M33: - | N33: - | O33: - | P33: 50.3 | Q33: 1.8 | R33: - | T33: Other Taxes | U33: 0 | V33: -1 | W33: =W32 -> EXP_OTHER | X33: - | Y33: - | Z33: - | AA33: - | AB33: - | AC33: - | AD33: - | AE33: 0.5 | AF33: 0.2 | AG33: 0.8 | AI33: Payables | AJ33: -19.1 | AK33: -39.3 | AL33: 70.9 | AM33: 178.9 | AN33: 12.7 | AO33: -24.2 | AP33: - | AQ33: -7.6 | AR33: - | AS33: 2.6
A34: 21 | B34: Leases | F34: d | I34: 3.4 | J34: 6.9 | K34: 6.8 | L34: 8.2 | M34: 8.8 | N34: 8.7 | O34: 8.8 | P34: 8.3 | Q34: 6 | R34: 7.3 | T34: Other Operating Expense | U34: 0 | V34: -1 | W34: =W33 -> EXP_OTHER | X34: - | Y34: - | Z34: - | AA34: - | AB34: - | AC34: - | AD34: 28.6 | AE34: - | AF34: - | AG34: - | AI34: Accrued Expenses | AJ34: 1 | AK34: -13.2 | AL34: -5.1 | AM34: 6.5 | AN34: - | AO34: - | AP34: - | AQ34: - | AR34: - | AS34: -
A35: 22 | B35: Other Property/Plant/Equipment | F35: d | I35: 12.9 | J35: 12.4 | K35: 11.9 | L35: 151.6 | M35: 245 | N35: 282.9 | O35: 231.8 | P35: 155.2 | Q35: 8 | R35: 9 | T35: Total Operating Expense | X35: 365.3 | Y35: 398.3 | Z35: 434.4 | AA35: 386 | AB35: 490.8 | AC35: 447.6 | AD35: 401.8 | AE35: 251 | AF35: 137.2 | AG35: 127.2 | AI35: Payables/Accrued | AJ35: -18.2 | AK35: -52.5 | AL35: 65.8 | AM35: 185.4 | AN35: 12.7 | AO35: -24.2 | AP35: - | AQ35: -2.2 | AR35: 16.9 | AS35: 1.9
A36: 23 | B36: Property/Plant/Equipment - Gross | C36: -1 | D36: 1 | F36: -1 | I36: 43.9 | J36: 55.2 | K36: 50.8 | L36: 224.1 | M36: 307.7 | N36: 357.9 | O36: 289.6 | P36: 243.1 | Q36: 31.6 | R36: 30 | AI36: Other Working Capital | AJ36: -9.2 | AK36: 3.4 | AL36: 1.2 | AM36: -5 | AN36: - | AO36: - | AP36: - | AQ36: -1.3 | AR36: 5 | AS36: -0.4
A37: 24 | B37: Accumulated Depreciation | C37: -1 | D37: 1 | F37: -1 | I37: -27.6 | J37: -35.9 | K37: -32 | L37: -64.3 | M37: -53.9 | N37: -66.3 | O37: -49 | P37: -28.9 | Q37: -15.7 | R37: -13.8 | T37: Total Expenses | X37: 2697.7 | Y37: 2994.2 | Z37: 3332.2 | AA37: 3262.8 | AB37: 2975 | AC37: 2617.8 | AD37: 2832.4 | AE37: 1978.1 | AF37: 1536.7 | AG37: 1545.2 | AI37: Changes in Working Capital | AJ37: -17.9 | AK37: 25.6 | AL37: -41.5 | AM37: 37.6 | AN37: -9.8 | AO37: -15.2 | AP37: -38.4 | AQ37: -32.6 | AR37: 5.5 | AS37: -11.5
A38: 25 | B38: Property/Plant/Equipment - Net | C38: 0 | D38: 1 | E38: =names!C18 -> ASSETS_FIXED | F38: 0 | I38: 16.3 | J38: 19.3 | K38: 18.8 | L38: 159.8 | M38: 253.8 | N38: 291.6 | O38: 240.6 | P38: 214.1 | Q38: 15.9 | R38: 16.2 | AI38: Cash from Discontinued Operating Activities | AJ38: - | AK38: - | AL38: 18.4 | AM38: 6.3 | AN38: - | AO38: - | AP38: - | AQ38: - | AR38: - | AS38: -
A39: 26 | B39: Goodwill | C39: 0 | D39: 1 | E39: =names!C19 -> GOODWILL | F39: -1 | I39: 217.6 | J39: 216 | K39: 218.9 | L39: 238.7 | M39: 252.2 | N39: 255.3 | O39: - | P39: 175.3 | Q39: 93 | R39: 113.2 | T39: Operating Income | X39: 165 | Y39: 137.3 | Z39: 93.2 | AA39: 94.2 | AB39: 32.7 | AC39: 55.6 | AD39: 71.8 | AE39: 129.7 | AF39: 149.4 | AG39: 139 | AI39: Cash from Operating Activities | AJ39: 114.6 | AK39: 142.7 | AL39: 84.6 | AM39: 157.1 | AN39: 93 | AO39: 145.4 | AP39: 143.1 | AQ39: 145.1 | AR39: 153.4 | AS39: 131.7
A40: 27 | B40: Other Intangible Assets | C40: 0 | D40: 1 | E40: =names!C20 -> INTANGIBLES | F40: -1 | I40: 51.8 | J40: 50.3 | K40: 55.7 | L40: 127.4 | M40: 187.9 | N40: 295.1 | O40: 688.6 | P40: 337.1 | Q40: 4.1 | R40: 1.5
A41: 28 | B41: Goodwill and Other Intangible Assets | F41: 0 | I41: 269.3 | J41: 266.4 | K41: 274.6 | L41: 366.1 | M41: 440.1 | N41: 550.4 | O41: 688.6 | P41: 512.5 | Q41: 97.1 | R41: 114.7 | T41: Interest Expense - Non-Operating | U41: 0 | V41: -1 | W41: =names!C60 -> INT_EXP | X41: 59.5 | Y41: 55.3 | Z41: 64.8 | AA41: 66 | AB41: 73.9 | AC41: 54.8 | AD41: 58.9 | AE41: 14.8 | AF41: 3.4 | AG41: 5.2 | AI41: Purchase of Property/Plant/Equipment | AJ41: -6.3 | AK41: -5.3 | AL41: -5.1 | AM41: -6.9 | AN41: -38.3 | AO41: -75.1 | AP41: -32.9 | AQ41: -37.8 | AR41: -5.6 | AS41: -7.6
A42: 29 | B42: Long-Term Investments | C42: 0 | D42: 1 | E42: =names!C21 -> INVEST | F42: 0 | I42: 11.7 | J42: 5.4 | K42: 8.4 | L42: 37 | M42: 39.7 | N42: - | O42: 5.5 | P42: - | Q42: - | R42: - | T42: Net Non-Operating Interest Income (Expense) | X42: -59.5 | Y42: -55.3 | Z42: -64.8 | AA42: -66 | AB42: -73.9 | AC42: -54.8 | AD42: -58.9 | AE42: -14.8 | AF42: -3.4 | AG42: -5.2 | AI42: Net Purchase (Sale) of Property/Plant/Equipment | AJ42: -6.3 | AK42: -5.3 | AL42: -5.1 | AM42: -6.9 | AN42: -38.3 | AO42: -75.1 | AP42: -32.9 | AQ42: -37.8 | AR42: -5.6 | AS42: -7.6
A43: 30 | B43: Financial Assets | C43: 0 | D43: 1 | E43: =E42 -> INVEST | F43: 0 | I43: 2.3 | J43: 2.6 | K43: - | L43: - | M43: - | N43: - | O43: - | P43: - | Q43: - | R43: - | T43: Other Income (Expense) | U43: 0 | V43: 1 | W43: =names!C66 -> NON_OPEX | X43: 286.2 | Y43: -19.3 | Z43: -560.6 | AA43: 179.6 | AB43: 722.7 | AC43: -92.3 | AD43: 504.8 | AE43: 2 | AF43: -1180.1 | AG43: 0.1 | AI43: Purchase/Acquisition of Intangibles | AJ43: -13.8 | AK43: -7.7 | AL43: -6.7 | AM43: -7.1 | AN43: -14.5 | AO43: -5.9 | AP43: -5.7 | AQ43: -5.8 | AR43: - | AS43: -
A44: 31 | B44: Deferred Taxes - Non-Current Assets | F44: d | I44: 17.3 | J44: 31.5 | K44: 21 | L44: 1.5 | M44: 24.5 | N44: 78.5 | O44: 125.2 | P44: 84 | Q44: - | R44: 9.2 | T44: Income Before Tax | X44: 391.7 | Y44: 62.7 | Z44: -532.2 | AA44: 207.8 | AB44: 681.5 | AC44: -91.6 | AD44: 517.6 | AE44: 117 | AF44: -1034.2 | AG44: 133.9 | AI44: Intangible, Net | AJ44: -13.8 | AK44: -7.7 | AL44: -6.7 | AM44: -7.1 | AN44: -14.5 | AO44: -5.9 | AP44: -5.7 | AQ44: -5.8 | AR44: - | AS44: -
A45: 32 | B45: Non-Current Deferred Assets | C45: 0 | D45: 1 | E45: =names!C24 -> TAX_RECEIV_LT | F45: 0 | I45: 17.3 | J45: 31.5 | K45: 21 | L45: 1.5 | M45: 24.5 | N45: 78.5 | O45: 125.2 | P45: 84 | Q45: - | R45: 9.2 | AI45: Purchase of Short-Term Investments | AJ45: -20 | AK45: - | AL45: - | AM45: - | AN45: - | AO45: - | AP45: - | AQ45: - | AR45: - | AS45: -
A46: 33 | B46: Deferred Charges | C46: 0 | D46: 1 | E46: =names!C25 -> ASSETS_OTHER_CFO_LT | F46: 0 | I46: - | J46: - | K46: - | L46: - | M46: 57.5 | N46: 44.3 | O46: - | P46: 5.5 | Q46: - | R46: - | T46: Total Income Tax | U46: 0 | V46: -1 | W46: =names!C68 -> TAX_INC_CURR | X46: 32.9 | Y46: -0.2 | Z46: -25.4 | AA46: 45.8 | AB46: 86.3 | AC46: 37.8 | AD46: 170.6 | AE46: -91.9 | AF46: -51 | AG46: -14 | AI46: Purchase of Investments | AJ46: -20 | AK46: - | AL46: - | AM46: -6.8 | AN46: -10.5 | AO46: - | AP46: - | AQ46: - | AR46: - | AS46: -
A47: 34 | B47: Other Long-Term Assets | C47: 0 | D47: 1 | E47: =E46 -> ASSETS_OTHER_CFO_LT | F47: 0 | I47: - | J47: - | K47: 16.1 | L47: 174.6 | M47: 10.9 | N47: 21.8 | O47: 4.7 | P47: 6.9 | Q47: 4.1 | R47: 73.6 | T47: Income After Tax | X47: 358.8 | Y47: 62.9 | Z47: -506.8 | AA47: 162 | AB47: 595.2 | AC47: -129.4 | AD47: 347.1 | AE47: 208.9 | AF47: -983.2 | AG47: 148 | AI47: Investment, Net | AJ47: -20 | AK47: - | AL47: - | AM47: -6.8 | AN47: -10.5 | AO47: - | AP47: - | AQ47: - | AR47: - | AS47: -
A48: 35 | B48: Total Non-Current Assets | I48: 316.9 | J48: 325.2 | K48: 338.9 | L48: 739 | M48: 826.4 | N48: 986.6 | O48: 1064.6 | P48: 823 | Q48: 117.1 | R48: 213.7 | AI48: Acquisition of Business | AJ48: -7.2 | AK48: - | AL48: - | AM48: - | AN48: - | AO48: -1.1 | AP48: -1.3 | AQ48: 9 | AR48: - | AS48: -32.4
A49: 36 | T49: Net Income from Continuing Operations | X49: 358.8 | Y49: 62.9 | Z49: -506.8 | AA49: 162 | AB49: 595.2 | AC49: -129.4 | AD49: 347.1 | AE49: 208.9 | AF49: -983.2 | AG49: 148 | AI49: Sale of Business | AJ49: - | AK49: - | AL49: 171.9 | AM49: - | AN49: - | AO49: - | AP49: - | AQ49: - | AR49: - | AS49: -
A50: 37 | B50: Total Assets | I50: 931.4 | J50: 1001 | K50: 1023.2 | L50: 1485.1 | M50: 1504.2 | N50: 1545.8 | O50: 1634.6 | P50: 1292 | Q50: 425.8 | R50: 691.1 | T50: Discontinued Operations | X50: - | Y50: - | Z50: 116.6 | AA50: -31.9 | AB50: -71.2 | AC50: 1.8 | AD50: - | AE50: - | AF50: - | AG50: - | AI50: Net Acquisition (Sale) of Business | AJ50: -7.2 | AK50: - | AL50: 171.9 | AM50: - | AN50: - | AO50: -95.1 | AP50: -258.3 | AQ50: 9 | AR50: -1.6 | AS50: -32.4
A51: 38 | T51: Minority Interest | X51: -18.6 | Y51: -13.6 | Z51: -2.7 | AA51: -1 | AB51: 5.7 | AC51: 0.1 | AD51: 2.1 | AE51: 3.3 | AF51: 0.1 | AG51: - | AI51: Other Investing Cash Flow | AJ51: 3 | AK51: 8 | AL51: -26.2 | AM51: -22 | AN51: -35.6 | AO51: -30.3 | AP51: -16.7 | AQ51: 0.3 | AR51: - | AS51: -
A52: 39 | B52: Accounts Payable | C52: -1 | D52: 1 | F52: -1 | I52: - | J52: - | K52: - | L52: - | M52: - | N52: 287.7 | O52: 283.2 | P52: - | Q52: - | R52: 4.5 | T52: Net Income | X52: 340.1 | Y52: 49.3 | Z52: -392.8 | AA52: 129.1 | AB52: 529.7 | AC52: -127.4 | AD52: 349.2 | AE52: 212.2 | AF52: -983.2 | AG52: 148 | AI52: Cash from Discontinued Investing Activities | AJ52: - | AK52: - | AL52: -16.5 | AM52: -64.7 | AN52: -63.7 | AO52: -0.3 | AP52: - | AQ52: - | AR52: - | AS52: -
A53: 40 | B53: Income Taxes Payable | C53: -2 | D53: 1 | F53: d | I53: 10.5 | J53: 7.2 | K53: 10.4 | L53: 5.7 | M53: 5.1 | N53: 4.8 | O53: 10.1 | P53: - | Q53: - | R53: - | AI53: Cash from Investing Activities | AJ53: -44.3 | AK53: -4.9 | AL53: 117.4 | AM53: -107.6 | AN53: -162.7 | AO53: -206.7 | AP53: -313.6 | AQ53: -34.3 | AR53: -7.3 | AS53: -40
A54: 41 | B54: Total Tax Payable | C54: -1 | D54: 1 | F54: -1 | I54: 10.5 | J54: 7.2 | K54: 10.4 | L54: 5.7 | M54: 5.1 | N54: 4.8 | O54: 10.1 | P54: 6.3 | Q54: 1.5 | R54: - | T54: Net Income Available to Common Stockholders | X54: 340.1 | Y54: 49.3 | Z54: -392.8 | AA54: 129.1 | AB54: 529.7 | AC54: -127.4 | AD54: 349.2 | AE54: 212.2 | AF54: -983.2 | AG54: 148
A55: 42 | B55: Other Payables | C55: -1 | D55: 1 | F55: -1 | I55: 375.6 | J55: 402.4 | K55: 425.1 | L55: 470.2 | M55: 325 | N55: 3 | O55: 19.9 | P55: 13 | Q55: 8.7 | R55: 32.1 | AI55: Short-Term Debt Reduction | AJ55: - | AK55: - | AL55: - | AM55: - | AN55: - | AO55: - | AP55: -5.8 | AQ55: - | AR55: - | AS55: -
A56: 43 | B56: Payables | C56: 0 | D56: 1 | E56: =names!C28 -> AP | F56: 0 | I56: 386 | J56: 409.6 | K56: 435.4 | L56: 475.9 | M56: 330 | N56: 295.4 | O56: 313.2 | P56: 19.3 | Q56: 10.2 | R56: 36.6 | T56: Basic EPS | X56: 2.3 | Y56: 0.34 | Z56: -2.7 | AA56: 0.9 | AB56: 3.79 | AC56: -0.93 | AD56: 2.72 | AE56: 1.66 | AF56: -8.9 | AG56: 1.38 | AI56: Short-Term Debt, Net | AJ56: - | AK56: - | AL56: - | AM56: - | AN56: - | AO56: - | AP56: -5.8 | AQ56: 7.6 | AR56: - | AS56: -
A57: 44 | B57: Accrued Expenses | C57: 0 | D57: 1 | E57: =names!C34 -> LIAB_OTHER_WC_ST | F57: 0 | I57: - | J57: - | K57: - | L57: - | M57: - | N57: - | O57: - | P57: 14.9 | Q57: 32.9 | R57: 37.5 | T57: Basic EPS from Continuing Operations | X57: 2.3 | Y57: 0.34 | Z57: -3.53 | AA57: 1.09 | AB57: 4.26 | AC57: -0.94 | AD57: 2.72 | AE57: 1.66 | AF57: -8.9 | AG57: 1.38 | AI57: Long-Term Debt Issued | AJ57: 121.9 | AK57: - | AL57: 272.8 | AM57: 571.3 | AN57: 471.2 | AO57: 467.8 | AP57: 476.8 | AQ57: 223.5 | AR57: 77.9 | AS57: 94.2
A58: 45 | B58: Other Payables and Accrued Expenses | C58: 0 | D58: 1 | E58: =E57 -> LIAB_OTHER_WC_ST | F58: 0 | I58: - | J58: - | K58: - | L58: - | M58: - | N58: - | O58: - | P58: 182 | Q58: 138.2 | R58: 125.4 | T58: Basic EPS from Discontinued Operations | X58: - | Y58: - | Z58: 0.83 | AA58: -0.19 | AB58: -0.5 | AC58: 0.01 | AD58: - | AE58: - | AF58: - | AG58: - | AI58: Long-Term Debt Reduction | AJ58: -305.7 | AK58: -24.5 | AL58: -335.3 | AM58: -545.1 | AN58: -277.3 | AO58: -284.2 | AP58: -148 | AQ58: -190.2 | AR58: -76.1 | AS58: -66.2
A59: 46 | B59: Current Provisions | C59: 0 | D59: 1 | E59: =E58 -> LIAB_OTHER_WC_ST | F59: 0 | I59: 6.2 | J59: 10.5 | K59: 11.7 | L59: 2.8 | M59: 3 | N59: 3.2 | O59: 4.1 | P59: - | Q59: - | R59: - | T59: Diluted EPS | X59: 1.84 | Y59: 0.33 | Z59: -2.7 | AA59: 0.89 | AB59: 3.27 | AC59: -0.93 | AD59: 2.36 | AE59: 1.64 | AF59: -8.9 | AG59: 1.37 | AI59: Long-Term Debt, Net | AJ59: -183.8 | AK59: -24.5 | AL59: -62.5 | AM59: 26.3 | AN59: 193.9 | AO59: 183.6 | AP59: 328.8 | AQ59: 33.3 | AR59: 1.8 | AS59: 28.1
A60: 47 | B60: Current Debt | F60: d | I60: - | J60: - | K60: 0 | L60: 47 | M60: 159.8 | N60: 98.8 | O60: 99.1 | P60: 70 | Q60: - | R60: - | T60: Diluted EPS from Continuing Operations | X60: 1.84 | Y60: 0.33 | Z60: -3.53 | AA60: 1.05 | AB60: 3.65 | AC60: -0.94 | AD60: 2.36 | AE60: 1.64 | AF60: -8.9 | AG60: 1.37 | AI60: Issuance (Retirement) of Debt, Net | AJ60: -183.8 | AK60: -24.5 | AL60: -62.5 | AM60: 26.3 | AN60: 193.9 | AO60: 183.6 | AP60: 323 | AQ60: 40.8 | AR60: 1.8 | AS60: 28.1
A61: 48 | B61: Current Debt and Capital Lease Obligation | C61: 0 | D61: 1 | E61: =names!C31 -> DEBT_LT_CURR | F61: 0 | I61: - | J61: - | K61: 0 | L61: 47 | M61: 159.8 | N61: 98.8 | O61: 99.1 | P61: 70 | Q61: - | R61: - | T61: Diluted EPS from Discontinued Operations | X61: - | Y61: - | Z61: 0.8 | AA61: -0.19 | AB61: -0.5 | AC61: 0.01 | AD61: - | AE61: - | AF61: - | AG61: - | AI61: Sale/Issuance of Common | AJ61: - | AK61: - | AL61: - | AM61: - | AN61: 0 | AO61: - | AP61: - | AQ61: - | AR61: - | AS61: 17.5
A62: 49 | B62: Deferred Taxes - Current Liabilities | C62: -1 | D62: 1 | F62: d | I62: - | J62: - | K62: - | L62: - | M62: - | N62: - | O62: - | P62: 6.7 | Q62: - | R62: - | T62: Basic Average Shares | X62: 147.6 | Y62: 146.9 | Z62: 145.3 | AA62: 143 | AB62: 140 | AC62: 138.2 | AD62: 128.2 | AE62: 128 | AF62: 110.5 | AG62: 107.5 | AI62: Repurchase/Retirement of Common | AJ62: -5 | AK62: - | AL62: - | AM62: - | AN62: - | AO62: - | AP62: - | AQ62: - | AR62: - | AS62: -
A63: 50 | B63: Customer Advances | C63: -1 | D63: 1 | F63: 0 | I63: 13.2 | J63: 17.7 | K63: 1.2 | L63: 0.1 | M63: 12.8 | N63: 12 | O63: - | P63: 7.1 | Q63: - | R63: - | T63: Diluted Average Shares | X63: 189.4 | Y63: 190.1 | Z63: 188.5 | AA63: 173.6 | AB63: 171.3 | AC63: 138.2 | AD63: 147.9 | AE63: 129.4 | AF63: 110.5 | AG63: 108.4 | AI63: Common Stock, Net | AJ63: -5 | AK63: - | AL63: - | AM63: - | AN63: 0 | AO63: -1 | AP63: - | AQ63: - | AR63: -5.9 | AS63: 17.5
A64: 51 | B64: Current Deferred Liabilities | C64: 0 | D64: 1 | E64: =E59 -> LIAB_OTHER_WC_ST | F64: 0 | I64: 13.2 | J64: 17.7 | K64: 1.2 | L64: 0.1 | M64: 12.8 | N64: 12 | O64: - | P64: 13.8 | Q64: - | R64: - | T64: Dilution Adjustment | X64: 9.7 | Y64: 37.6 | Z64: 28.8 | AA64: - | AB64: - | AC64: - | AD64: - | AE64: - | AF64: - | AG64: - | AI64: Sale/Issuance of Preferred | AJ64: 101.3 | AK64: - | AL64: - | AM64: - | AN64: - | AO64: - | AP64: - | AQ64: - | AR64: - | AS64: -
A65: 52 | B65: Other Current liabilities | C65: 0 | D65: 1 | E65: =names!C26 -> ASSETS_OTHER_OCI_LT | F65: 0 | I65: 127 | J65: 329.5 | K65: 304.4 | L65: 69.7 | M65: 233.4 | N65: 637.2 | O65: 499 | P65: 675.4 | Q65: 412.8 | R65: 57.6 | T65: Interest Expense | X65: 59.5 | Y65: 55.3 | Z65: 64.8 | AA65: 66 | AB65: 73.9 | AC65: 54.8 | AD65: 58.9 | AE65: 14.8 | AF65: 3.4 | AG65: 5.2 | AI65: Preferred Stock, Net | AJ65: 101.3 | AK65: - | AL65: - | AM65: - | AN65: - | AO65: - | AP65: - | AQ65: - | AR65: - | AS65: -
A66: 53 | B66: Total Current Liabilities | I66: 532.4 | J66: 767.2 | K66: 752.8 | L66: 595.4 | M66: 739.1 | N66: 1046.7 | O66: 915.4 | P66: 975.4 | Q66: 594.1 | R66: 257.2 | T66: Net Interest Income | X66: -59.5 | Y66: -55.3 | Z66: -64.8 | AA66: -66 | AB66: -73.9 | AC66: -54.8 | AD66: -58.9 | AE66: -14.8 | AF66: -3.4 | AG66: -5.2 | AI66: Cash Dividends Paid - Common | AJ66: - | AK66: - | AL66: - | AM66: - | AN66: - | AO66: - | AP66: - | AQ66: - | AR66: -114.8 | AS66: -127
A67: 54 | T67: Net Income Including Non-Controlling Interests | X67: 358.8 | Y67: 62.9 | Z67: -390.1 | AA67: 130.1 | AB67: 524 | AC67: -127.5 | AD67: 347.1 | AE67: 208.9 | AF67: -983.2 | AG67: 148 | AI67: Cash Dividends Paid - Preferred | AJ67: - | AK67: - | AL67: - | AM67: - | AN67: - | AO67: - | AP67: - | AQ67: -6.9 | AR67: -7.5 | AS67: -11.5
A68: 55 | B68: Long-Term Provisions | C68: 0 | D68: 1 | E68: =names!C41 -> LIAB_OTHER_CFO_LT | F68: 0 | I68: - | J68: 3.4 | K68: 3.4 | L68: 3.4 | M68: 3.7 | N68: 3.1 | O68: 3.3 | P68: - | Q68: - | R68: - | T68: Net Income from Continuing and Discontinued Operations | X68: 340.1 | Y68: 49.3 | Z68: -392.8 | AA68: 129.1 | AB68: 529.7 | AC68: -127.4 | AD68: 349.2 | AE68: 212.2 | AF68: -983.2 | AG68: 148 | AI68: Total Cash Dividends Paid | AJ68: -58.5 | AK68: -57 | AL68: -73 | AM68: -109.3 | AN68: -156.5 | AO68: -147.9 | AP68: -132.4 | AQ68: -151.3 | AR68: -122.3 | AS68: -138.5
A69: 56 | B69: Deferred Taxes - Non-Current Liabilities | C69: 0 | D69: 1 | E69: =names!C40 -> TAX_PAYABLE_LT | F69: 0 | I69: 1.3 | J69: 1.1 | K69: 1 | L69: 29.8 | M69: 30.8 | N69: 6.1 | O69: 23.6 | P69: - | Q69: - | R69: 19 | T69: Normalized Income | X69: 340.1 | Y69: 49.3 | Z69: -509.5 | AA69: 161 | AB69: 600.9 | AC69: -129.2 | AD69: 349.2 | AE69: 212.2 | AF69: -983.2 | AG69: 148 | AI69: Options Exercised | AJ69: - | AK69: - | AL69: - | AM69: - | AN69: - | AO69: - | AP69: - | AQ69: - | AR69: 3.8 | AS69: 3.9
A70: 57 | B70: Non-Current Deferred Liabilities | C70: 0 | D70: 1 | E70: =E68 -> LIAB_OTHER_CFO_LT | F70: 0 | I70: 2.1 | J70: 2.1 | K70: 1.5 | L70: 30.5 | M70: 31.8 | N70: 7.9 | O70: 25.2 | P70: 2 | Q70: 1.9 | R70: 21.7 | T70: Basic EPS from Continuing &amp; Discontinued Operations | X70: 2.3 | Y70: 0.34 | Z70: -2.7 | AA70: 0.9 | AB70: 3.76 | AC70: -0.93 | AD70: 2.72 | AE70: 1.66 | AF70: -8.9 | AG70: 1.38 | AI70: Other Financing Cash Flow | AJ70: 23.4 | AK70: -16.3 | AL70: -0.3 | AM70: -16.5 | AN70: -1.9 | AO70: -11.4 | AP70: 17.5 | AQ70: 4.2 | AR70: 2.3 | AS70: 6.7
A71: 58 | B71: Derivative Product Liabilities | C71: 0 | D71: 1 | E71: =names!C42 -> LIAB_OTHER_OCI_LT | F71: 0 | I71: 134.5 | J71: 221 | K71: - | L71: - | M71: - | N71: - | O71: - | P71: - | Q71: - | R71: - | T71: Diluted EPS from Continuing &amp; Discontinued Operations | X71: 1.84 | Y71: 0.33 | Z71: -2.73 | AA71: 0.86 | AB71: 3.15 | AC71: -0.93 | AD71: 2.36 | AE71: 1.64 | AF71: -8.9 | AG71: 1.37 | AI71: Cash from Discontinued Financing Activities | AJ71: - | AK71: - | AL71: -13.7 | AM71: 36.5 | AN71: 22.2 | AO71: -7.1 | AP71: - | AQ71: - | AR71: - | AS71: -
A72: 59 | B72: Minority Interest | C72: 0 | D72: 1 | E72: =names!C47 -> MINORITY | F72: 0 | I72: - | J72: - | K72: - | L72: 5.8 | M72: -0.7 | N72: -0.6 | O72: - | P72: 20.3 | Q72: 0.2 | R72: - | T72: Dividends per Share | X72: 0.38 | Y72: 0.38 | Z72: 0.45 | AA72: 0.8 | AB72: 1.21 | AC72: 1.25 | AD72: 0.95 | AE72: 0.73 | AF72: 1.26 | AG72: 1.15 | AI72: Cash from Financing Activities | AJ72: -122.5 | AK72: -97.8 | AL72: -155.2 | AM72: -63 | AN72: 57.8 | AO72: 16.2 | AP72: 208.2 | AQ72: -106.3 | AR72: -120.3 | AS72: -82.3
A73: 60 | B73: Other Long-Term Liabilities | C73: 0 | D73: 1 | E73: =E71 -> LIAB_OTHER_OCI_LT | F73: 0 | I73: - | J73: - | K73: - | L73: 41.1 | M73: 0.7 | N73: 310.8 | O73: 365.4 | P73: 561.8 | Q73: 319.1 | R73: 152.4 | T73: Net Income Before Extraord Items | X73: 340.1 | Y73: 49.3 | Z73: -509.5 | AA73: 161 | AB73: 600.9 | AC73: -129.2 | AD73: 349.2 | AE73: 212.2 | AF73: -983.2 | AG73: 148
A74: 61 | B74: Deferred Credits and Other Non-Current Liabilities | I74: 136.6 | J74: 226.5 | K74: 4.9 | L74: 80.8 | M74: 35.6 | N74: 321.1 | O74: 393.9 | P74: 584.1 | Q74: 321.2 | R74: 174.1 | T74: Tax Rate | X74: 8.41% | Y74: - | Z74: 4.77% | AA74: 23.99% | AB74: 12.55% | AC74: 25.00% | AD74: 5.89% | AE74: 28.00% | AF74: 4.93% | AG74: 10.49% | AI74: Cash from Discontinued Operating Activities | AJ74: - | AK74: - | AL74: 18.4 | AM74: 6.3 | AN74: - | AO74: - | AP74: - | AQ74: - | AR74: - | AS74: -
A75: 62 | T75: Basic Normalized EPS | X75: 2.3 | Y75: 0.34 | Z75: -3.53 | AA75: 1.09 | AB75: 4.26 | AC75: -0.94 | AD75: 2.72 | AE75: 1.66 | AF75: -8.9 | AG75: 1.38 | AI75: Cash from Discontinued Investing Activities | AJ75: - | AK75: - | AL75: -16.5 | AM75: -64.7 | AN75: -63.7 | AO75: -0.3 | AP75: - | AQ75: - | AR75: - | AS75: -
A76: 63 | B76: Long-Term Debt | F76: d | I76: 374.8 | J76: 508.7 | K76: 533.1 | L76: 840.8 | M76: 782.4 | N76: 680.3 | O76: 521.7 | P76: 228.5 | Q76: 60.8 | R76: 65.9 | T76: Diluted Normalized EPS | X76: 1.84 | Y76: 0.33 | Z76: -3.53 | AA76: 1.05 | AB76: 3.65 | AC76: -0.94 | AD76: 2.36 | AE76: 1.64 | AF76: -8.9 | AG76: 1.37 | AI76: Cash from Discontinued Financing Activities | AJ76: - | AK76: - | AL76: -13.7 | AM76: 36.5 | AN76: 22.2 | AO76: -7.1 | AP76: - | AQ76: - | AR76: - | AS76: -
A77: 64 | B77: Long-Term Debt and Capital Lease Obligation | C77: 0 | D77: 1 | E77: =names!C37 -> DEBT_LT | F77: 0 | I77: 374.8 | J77: 508.7 | K77: 533.1 | L77: 840.8 | M77: 782.4 | N77: 680.3 | O77: 521.7 | P77: 228.5 | Q77: 60.8 | R77: 65.9 | T77: EBITDA | X77: 468.4 | Y77: 148.6 | Z77: -427.5 | AA77: 323.2 | AB77: 855.3 | AC77: 90.9 | AD77: 713.2 | AE77: 192.7 | AF77: -1023.1 | AG77: 151.4 | AI77: Net Cash - Beginning Balance | AJ77: 97.2 | AK77: 60.1 | AL77: 17.9 | AM77: 36.6 | AN77: 53 | AO77: 98.3 | AP77: 59.1 | AQ77: 54.2 | AR77: 24.2 | AS77: 16.3
A78: 65 | B78: Total Liabilities | I78: 1043.8 | J78: 1502.4 | K78: 1526.6 | L78: 1573.8 | M78: 1640.4 | N78: 2047.5 | O78: 1831 | P78: 1808.3 | Q78: 976.3 | R78: 497.2 | T78: Normalized EBITDA | X78: 468.4 | Y78: 148.6 | Z78: -427.5 | AA78: 323.2 | AB78: 855.3 | AC78: 90.9 | AD78: 713.2 | AE78: 192.7 | AF78: -1023.1 | AG78: 151.4 | AI78: Net Change in Cash | AJ78: -53.5 | AK78: 37.2 | AL78: 53.1 | AM78: -12.3 | AN78: -14.5 | AO78: -44.7 | AP78: 36.9 | AQ78: 1 | AR78: 28.2 | AS78: 10.2
A79: =A78+1 -> 66 | T79: Reconciled Cost of Revenue | X79: 2332.4 | Y79: 2581.1 | Z79: 2897.8 | AA79: 2862.7 | AB79: 2475 | AC79: 2075.5 | AD79: 2418.4 | AE79: 1727 | AF79: 1399.4 | AG79: 1418.1 | AI79: Foreign Exchange Effects | AJ79: -1.3 | AK79: -2.8 | AL79: 6.2 | AM79: 1.2 | AN79: -2.7 | AO79: 0.3 | AP79: -0.9 | AQ79: -3.5 | AR79: 2.4 | AS79: 0.7
A80: 67 | B80: Capital Stock | C80: 0 | D80: 1 | E80: =E82 -> EQTY_CONTRIB | F80: 0 | I80: - | J80: - | K80: - | L80: - | M80: - | N80: - | O80: - | P80: 649.7 | Q80: - | R80: 349 | T80: Reconciled Depreciation | X80: 17.2 | Y80: 30.6 | Z80: 39.9 | AA80: 49.5 | AB80: 99.8 | AC80: 127.7 | AD80: 136.7 | AE80: 60.9 | AF80: 7.7 | AG80: 12.3 | AI80: Net Cash - Ending Balance | AJ80: 43.7 | AK80: 97.3 | AL80: 69.3 | AM80: 19.4 | AN80: 38.5 | AO80: 53.6 | AP80: 96 | AQ80: 55.1 | AR80: 52.5 | AS80: 26.5
A81: 68 | B81: Retained Earnings (Accumulated Deficit) | C81: 0 | D81: 1 | E81: =names!C45 -> RE | F81: 0 | I81: -1121 | J81: -1432.1 | K81: -1440.9 | L81: -1170.8 | M81: -1279.3 | N81: -1655.1 | O81: -1387.7 | P81: -1403.3 | Q81: -1156.9 | R81: -206.6 | T81: EBIT | X81: 451.2 | Y81: 118 | Z81: -467.4 | AA81: 273.7 | AB81: 755.4 | AC81: -36.7 | AD81: 576.5 | AE81: 131.8 | AF81: -1030.8 | AG81: 139.1
A82: 69 | B82: Additional Paid-In Capital | C82: 0 | D82: 1 | E82: =names!C46 -> EQTY_CONTRIB | F82: 0 | I82: 945.5 | J82: 857 | K82: 872.7 | L82: 993.7 | M82: 1071.4 | N82: 1057.2 | O82: 1045.2 | P82: 18.6 | Q82: - | R82: 11.7 | T82: Non-Operating Expenses | X82: -59.5 | Y82: -55.3 | Z82: -64.8 | AA82: -66 | AB82: -73.9 | AC82: -54.8 | AD82: -58.9 | AE82: -14.3 | AF82: -3.2 | AG82: -4.4 | AI82: Capital Expenditures | AJ82: -20.1 | AK82: -12.9 | AL82: -11.8 | AM82: -14 | AN82: -52.9 | AO82: -81 | AP82: -38.5 | AQ82: -43.6 | AR82: -5.6 | AS82: -7.6
A83: 70 | B83: Gains (Losses) Not Affecting Retained Earnings | C83: 0 | D83: 1 | E83: =names!C44 -> OCI | F83: 0 | I83: 52.9 | J83: 53.7 | K83: 44.4 | L83: 65.1 | M83: 46.4 | N83: 70.4 | O83: 127.4 | P83: 218.8 | Q83: 289.8 | R83: 39.8 | T83: Non-Operating Income | X83: 286.2 | Y83: -19.3 | Z83: -560.6 | AA83: 179.6 | AB83: 722.7 | AC83: -92.3 | AD83: 504.8 | AE83: 2 | AF83: -1180.1 | AG83: 0.1 | AI83: Issuance of Capital Stock | AJ83: 101.3 | AK83: - | AL83: - | AM83: - | AN83: 0 | AO83: - | AP83: - | AQ83: - | AR83: - | AS83: 17.5
A84: 71 | B84: Stockholders' Equity | I84: -112.4 | J84: -501.4 | K84: -503.4 | L84: -88.7 | M84: -136.1 | N84: -501.7 | O84: -196.5 | P84: -516.3 | Q84: - | R84: 193.9 | AI84: Total Debt Issued | AJ84: 121.9 | AK84: - | AL84: 272.8 | AM84: 571.3 | AN84: 471.2 | AO84: 467.8 | AP84: 476.8 | AQ84: 223.5 | AR84: 77.9 | AS84: 94.2
A85: 72 | B85: Limited Partner | C85: 0 | D85: 1 | E85: =E82 -> EQTY_CONTRIB | F85: 0 | I85: - | J85: - | K85: - | L85: - | M85: - | N85: - | O85: - | P85: - | Q85: 316.7 | R85: - | AI85: Total Debt Reduction | AJ85: -305.7 | AK85: -24.5 | AL85: -335.3 | AM85: -545.1 | AN85: -277.3 | AO85: -284.2 | AP85: -153.8 | AQ85: -190.2 | AR85: -76.1 | AS85: -66.2
A86: 73 | B86: Total Partnership Capital | I86: - | J86: - | K86: - | L86: - | M86: - | N86: - | O86: - | P86: - | Q86: -550.5 | R86: - | AI86: Repurchase of Capital Stock | AJ86: -5 | AK86: - | AL86: - | AM86: - | AN86: - | AO86: - | AP86: - | AQ86: - | AR86: - | AS86: -
A87: 74 | B87: Total Equity | I87: -112.4 | J87: -501.4 | K87: -503.4 | L87: -88.7 | M87: -136.1 | N87: -501.7 | O87: -196.5 | P87: -516.3 | Q87: -550.5 | R87: 193.9 | AI87: Cash Taxes Paid | AJ87: - | AK87: - | AL87: - | AM87: - | AN87: - | AO87: - | AP87: - | AQ87: 25.6 | AR87: 1 | AS87: 1.2
A88: 75 | AI88: Cash Interest Paid | AJ88: 40.6 | AK88: 44.6 | AL88: 49.7 | AM88: 54.2 | AN88: 66.4 | AO88: 53.2 | AP88: 38.5 | AQ88: 13.4 | AR88: 3.6 | AS88: 5.4
A89: 76 | B89: Total Liabilities and Shareholders&#8217; Equity | I89: 931.4 | J89: 1001 | K89: 1023.2 | L89: 1485.1 | M89: 1504.2 | N89: 1545.8 | O89: 1634.6 | P89: 1292 | Q89: 425.8 | R89: 691.1 | AI89: Free Cash Flow | AJ89: 94.5 | AK89: 129.8 | AL89: 72.8 | AM89: 143.1 | AN89: 40.1 | AO89: 64.4 | AP89: 104.6 | AQ89: 101.5 | AR89: 147.7 | AS89: 124.2
A90: 77
B91: Net Tangible Assets | I91: -381.7 | J91: -767.8 | K91: -778 | L91: -454.8 | M91: -576.2 | N91: -1052.1 | O91: -885.1 | P91: -1028.7 | Q91: -647.6 | R91: 79.2
B92: Working Capital | I92: 82.1 | J92: -91.4 | K92: -68.5 | L92: 150.7 | M92: -61.3 | N92: -487.6 | O92: -345.5 | P92: -506.4 | Q92: -285.3 | R92: 220.2
B93: Invested Capital | I93: 262.4 | J93: 7.3 | K93: 29.7 | L93: 799.2 | M93: 806.1 | N93: 277.5 | O93: 424.3 | P93: -217.7 | Q93: -489.7 | R93: 259.8
B94: Total Debt | I94: 374.8 | J94: 508.7 | K94: 533.1 | L94: 887.8 | M94: 942.2 | N94: 779.1 | O94: 620.8 | P94: 298.6 | Q94: 60.8 | R94: 65.9
B95: Net Debt | I95: 331.6 | J95: 410.4 | K95: 471 | L95: 869.4 | M95: 904.4 | N95: 725.8 | O95: 520.4 | P95: 239.3 | Q95: 13.8 | R95: 39.3
B96: Total Capitalization | I96: 262.4 | J96: 7.3 | K96: 29.7 | L96: 752.2 | M96: 646.3 | N96: 178.6 | O96: 325.2 | P96: -287.8 | Q96: -489.7 | R96: 259.8
B97: Common Stock Equity | I97: -112.4 | J97: -501.4 | K97: -503.4 | L97: -88.7 | M97: -136.1 | N97: -501.7 | O97: -196.5 | P97: -516.3 | Q97: -550.5 | R97: 193.9
B98: Total Common Shares Outstanding | I98: 147 | J98: 147.2 | K98: 146.6 | L98: 143.8 | M98: 142 | N98: 139.3 | O98: 137 | P98: 124.3 | Q98: 111.4 | R98: 108.9
B99: Total Preferred Shares Outstanding | I99: - | J99: - | K99: - | L99: - | M99: - | N99: - | O99: - | P99: 5.3 | Q99: 5.3 | R99: -
B100: Shares Issued | I100: 147 | J100: 147.2 | K100: 146.6 | L100: 143.8 | M100: 142 | N100: 139.3 | O100: 137 | P100: 124.3 | Q100: 111.4 | R100: 108.9
B101: Tangible Book Value | I101: -381.7 | J101: -767.8 | K101: -778 | L101: -454.8 | M101: -576.2 | N101: -1052.1 | O101: -885.1 | P101: -1028.7 | Q101: -647.6 | R101: 79.2
B102: Employees | I102: 2146 | J102: 1450 | K102: 1220 | L102: 1500 | M102: 1500 | N102: 1200 | O102: 1055 | P102: 898 | Q102: 702 | R102: 435

Sheet count
B2: TAB: DATA COUNT
B4: =_xll.AC.data.list_x(#REF!, 0, 1) -> java.util.ArrayList@Thu, 15 Feb 2018 05:04:36:487..7425052831053461416
B5: =_xll.AC.data.count(B4) -> java.util.LinkedHashMap@Thu, 15 Feb 2018 05:04:36:488..4789770072572806373
B6: =_xll.AC.data.size(B5, 1) -> 0
B7: # | C7: Account | D7: Count
B8: 1 | C8: =_xll.AC.data._get(B5, "parse", 0) -> 
B9: =B8+1 -> 2
B10: =B9+1 -> 3
B11: 4
B12: 5
B13: 6
B14: 7
B15: 8
B16: 9
B17: 10
B18: 11
B19: 12
B20: 13
B21: 14
B22: 15
B23: 16
B24: 17
B25: 18
B26: 19
B27: 20
B28: 21
B29: 22
B30: 23
B31: 24
B32: 25
B33: 26
B34: 27
B35: 28
B36: 29
B37: 30
B38: 31
B39: 32
B40: 33
B41: 34
B42: 35
B43: 36
B44: 37
B45: 38
B46: 39
B47: 40
B48: 41
B49: 42
B50: 43
B51: 44
B52: 45
B53: 46
B54: 47
B55: 48
B56: 49
B57: 50
B58: 51
B59: 52
B60: 53
B61: 54
B62: 55
B63: 56
B64: 57
B65: 58
B66: 59
B67: 60
B68: 61
B69: 62
B70: 63
B71: 64
B72: 65
B73: 66
B74: =B73+1 -> 67
B75: 68
B76: 69
B77: 70
B78: 71
B79: 72
B80: 73
B81: 74
B82: 75
B83: 76
B84: 77
B85: 78
B86: 79
B87: 80
B88: 81
B89: 82
B90: 83
B91: 84
B92: 85
B93: 86
B94: 87
B95: 88
B96: 89
B97: 90
B98: 91
B99: 92
B100: 93
B101: 94
B102: 95
B103: 96
B104: 97
B105: 98
B106: 99
B107: 100
B108: 101
B109: 102
B110: 103
B111: 104
B112: 105
B113: 106
B114: 107
B115: 108
B116: 109
B117: 110
B118: 111
B119: 112
B120: 113
B121: 114
B122: 115
B123: 116
B124: 117
B125: 118
B126: 119
B127: 120
B128: 121
B129: 122
B130: 123
B131: 124
B132: 125
B133: 126
B134: 127
B135: 128
B136: 129
B137: 130
B138: =B137+1 -> 131
B139: 132
B140: 133
B141: 134
B142: 135
B143: 136
B144: 137
B145: 138
B146: 139
B147: 140
B148: 141
B149: 142
B150: 143
B151: 144
B152: 145
B153: 146
B154: 147
B155: 148
B156: 149
B157: 150
B158: 151
B159: 152
B160: 153
B161: 154
B162: 155
B163: 156
B164: 157
B165: 158
B166: 159
B167: 160
B168: 161
B169: 162
B170: 163
B171: 164
B172: 165
B173: 166
B174: 167
B175: 168
B176: 169
B177: 170
B178: 171
B179: 172
B180: 173
B181: 174
B182: 175
B183: 176
B184: 177
B185: 178
B186: 179
B187: 180
B188: 181
B189: 182
B190: 183
B191: 184
B192: 185
B193: 186
B194: 187
B195: 188
B196: 189
B197: 190
B198: 191
B199: 192
B200: 193
B201: 194
B202: =B201+1 -> 195
... 17 more rows
